BODY,BODY NAME,SERVICE CODE,ORGANISATIONAL UNIT,ORGANISATIONAL UNIT CODE,EXPENDITURE CATEGORY,EXPENDITURE CODE,DATE (POSTING DATE),TRANSACTION NUMBER,AMOUNT,SUPPLIER NAME,SUPPLIER ID
WARRINGTON BOROUGH COUNCIL,http://opendatacommunities.org/id/unitary-authority/warrington,ENP,Environment & Regeneration,82000,Consult.& Prof. Serv,440000,24/10/2019,5100408658,612.5,Civica Uk Ltd,100585
WARRINGTON BOROUGH COUNCIL,http://opendatacommunities.org/id/unitary-authority/warrington,ENO,Highways Other,82005,Consult.& Prof. Serv,440000,24/02/2020,5100421040,1000,Hydrock Consultants Limited,116675
WARRINGTON BOROUGH COUNCIL,http://opendatacommunities.org/id/unitary-authority/warrington,ET0,Recreation & Games,41431,Materials,400500,27/03/2020,5100424857,2856,Agrovista Uk Ltd,101700
WARRINGTON BOROUGH COUNCIL,http://opendatacommunities.org/id/unitary-authority/warrington,RSC,IT - Contracts,23600,Computer Software - Maintenance,450850,26/06/2020,5100425118,2726.43,Gandlake Limited,104740
WARRINGTON BOROUGH COUNCIL,http://opendatacommunities.org/id/unitary-authority/warrington,FWB,Contracts - SM Commissioning Team 1,55910,Drug Action,443600,06/06/2020,5100425323,28460.71,NHS Business Services Authority,113435
WARRINGTON BOROUGH COUNCIL,http://opendatacommunities.org/id/unitary-authority/warrington,DG0,Development Control,43430,Consult.& Prof. Serv,440000,29/05/2020,5100425439,700,Park Avenue Recruitment Limited,116840
WARRINGTON BOROUGH COUNCIL,http://opendatacommunities.org/id/unitary-authority/warrington,ET0,Waste Recycling,41820,Waste Initiatives,443200,12/06/2020,5100425455,11784,Contenur UK Ltd,117538
WARRINGTON BOROUGH COUNCIL,http://opendatacommunities.org/id/unitary-authority/warrington,RSC,IT - Contracts,23600,Computer Software - Purchase,450800,06/06/2020,5100425568,18696,Edenhouse Solutions Ltd,114416
WARRINGTON BOROUGH COUNCIL,http://opendatacommunities.org/id/unitary-authority/warrington,ET0,Woolston Depot,41331,Oil - Gas,301250,24/06/2020,5100425982,2490,Standard Fuel Oils Ltd,117478
WARRINGTON BOROUGH COUNCIL,http://opendatacommunities.org/id/unitary-authority/warrington,ENO,Highways Other,82005,Consult.& Prof. Serv,440000,06/06/2020,5100426025,1275,Hydrock Consultants Limited,116675
WARRINGTON BOROUGH COUNCIL,http://opendatacommunities.org/id/unitary-authority/warrington,RSC,Financial Protection Team,56130,Consult.& Prof. Serv,440000,06/06/2020,5100426035,678.73,Allied Publicity Services (Man) LTD,117019
WARRINGTON BOROUGH COUNCIL,http://opendatacommunities.org/id/unitary-authority/warrington,RSC,HR Advisory,20005,Consult.& Prof. Serv,440000,22/06/2020,5100426044,8426.83,People Asset Management Ltd,105943
WARRINGTON BOROUGH COUNCIL,http://opendatacommunities.org/id/unitary-authority/warrington,FWB,BCF - Padgate House,54760,Annual Maintenance,442100,17/06/2020,5100426102,567,Shorrock Trichem,104724
WARRINGTON BOROUGH COUNCIL,http://opendatacommunities.org/id/unitary-authority/warrington,ET0,Transport Holding Account,41311,Oil - Gas,301250,25/06/2020,5100426174,1264.95,Standard Fuel Oils Ltd,117478
WARRINGTON BOROUGH COUNCIL,http://opendatacommunities.org/id/unitary-authority/warrington,FWB,Contracts - SM Commissioning Team 1,55910,Drug Action,443600,07/05/2020,5100426226,592.99,Frontier NX,106478
WARRINGTON BOROUGH COUNCIL,http://opendatacommunities.org/id/unitary-authority/warrington,ET0,Transport Holding Account,41311,Maintenance Work - Sub Contractors,301150,10/06/2020,5100426391,577.5,Quartix Ltd,115590
WARRINGTON BOROUGH COUNCIL,http://opendatacommunities.org/id/unitary-authority/warrington,ENO,Highways LTP,82004,Materials,400500,15/04/2020,5100426690,1200,Smith Bros (Caer Conan) Wh'Sale Ltd,105136
WARRINGTON BOROUGH COUNCIL,http://opendatacommunities.org/id/unitary-authority/warrington,FWB,Contracts - SM Commissioning Team 1,55910,Public Health Contract Payments,540000,17/06/2020,5100426790,23444,Homestart Warrington,103200
WARRINGTON BOROUGH COUNCIL,http://opendatacommunities.org/id/unitary-authority/warrington,ET0,Transport Holding Account,41311,Petrol,300050,04/06/2020,5100426803,2299,Standard Fuel Oils Ltd,117478
WARRINGTON BOROUGH COUNCIL,http://opendatacommunities.org/id/unitary-authority/warrington,DG0,Business Exchange,22260,Computer Software - Maintenance,450850,21/04/2020,5100427088,4550,Carpe Diem Incorporated Limited,109442
WARRINGTON BOROUGH COUNCIL,http://opendatacommunities.org/id/unitary-authority/warrington,ENO,Priority Infrastructure,82009,Materials,400500,17/06/2020,5100427310,25740,Tarmac,100489
WARRINGTON BOROUGH COUNCIL,http://opendatacommunities.org/id/unitary-authority/warrington,FWB,CIN Team 3,31003,Fees (Including Agents Fees),441450,24/04/2020,5100427406,679,AlphaBiolabs,109403
WARRINGTON BOROUGH COUNCIL,http://opendatacommunities.org/id/unitary-authority/warrington,ENO,Priority Infrastructure,82009,Consult.& Prof. Serv,440000,22/06/2020,5100427525,80344.1,Mott Macdonald Ltd,104950
WARRINGTON BOROUGH COUNCIL,http://opendatacommunities.org/id/unitary-authority/warrington,ENO,Priority Infrastructure,82009,Consult.& Prof. Serv,440000,22/06/2020,5100427525,20632,Mott Macdonald Ltd,104950
WARRINGTON BOROUGH COUNCIL,http://opendatacommunities.org/id/unitary-authority/warrington,ENO,Priority Infrastructure,82009,Consult.& Prof. Serv,440000,22/06/2020,5100427525,36258.81,Mott Macdonald Ltd,104950
WARRINGTON BOROUGH COUNCIL,http://opendatacommunities.org/id/unitary-authority/warrington,DG0,Business Exchange,22260,Computer Software - Maintenance,450850,27/04/2020,5100427543,1365,Carpe Diem Incorporated Limited,109442
WARRINGTON BOROUGH COUNCIL,http://opendatacommunities.org/id/unitary-authority/warrington,DG0,Development Control,43430,Consult.& Prof. Serv,440000,06/06/2020,5100427664,2946.46,Park Avenue Recruitment Limited,116840
WARRINGTON BOROUGH COUNCIL,http://opendatacommunities.org/id/unitary-authority/warrington,DG0,Local Plan,43445,Consult.& Prof. Serv,440000,22/06/2020,5100427745,2450,AECOM Infrastructure & Environment,112506
WARRINGTON BOROUGH COUNCIL,http://opendatacommunities.org/id/unitary-authority/warrington,ET0,Core Operational Business,41730,Oil - Gas,301250,25/06/2020,5100427858,2490,Standard Fuel Oils Ltd,117478
WARRINGTON BOROUGH COUNCIL,http://opendatacommunities.org/id/unitary-authority/warrington,FWB,DSG Post-16 Special Educational Needs,32309,Fees (Including Agents Fees),441450,17/06/2020,5100427955,3078.41,The City of Liverpool College,101237
WARRINGTON BOROUGH COUNCIL,http://opendatacommunities.org/id/unitary-authority/warrington,FWB,Contracts - SM Commissioning Team 1,55910,Drug Action,443600,06/06/2020,5100428107,737.77,Frontier NX,106478
WARRINGTON BOROUGH COUNCIL,http://opendatacommunities.org/id/unitary-authority/warrington,ET0,Transport Holding Account,41311,Vehicle Hire Charges,320000,03/06/2020,5100428124,637.5,Enterprise Flex E Rent,100597
WARRINGTON BOROUGH COUNCIL,http://opendatacommunities.org/id/unitary-authority/warrington,FWB,Training,31203,Subscriptions,470000,23/06/2020,5100428138,9056.88,The Dartington Hall Trust,100410
WARRINGTON BOROUGH COUNCIL,http://opendatacommunities.org/id/unitary-authority/warrington,FWB,Training,31203,Subscriptions,470000,23/06/2020,5100428138,1725.12,The Dartington Hall Trust,100410
WARRINGTON BOROUGH COUNCIL,http://opendatacommunities.org/id/unitary-authority/warrington,COR,Other Commercial Prop.,43560,Consult.& Prof. Serv,440000,05/05/2020,5100428213,724,Brabners LLP,117064
WARRINGTON BOROUGH COUNCIL,http://opendatacommunities.org/id/unitary-authority/warrington,DG0,86 Sankey Street,43115,Consult.& Prof. Serv,440000,05/05/2020,5100428214,726,Brabners LLP,117064
WARRINGTON BOROUGH COUNCIL,http://opendatacommunities.org/id/unitary-authority/warrington,COR,Other Commercial Prop.,43560,Consult.& Prof. Serv,440000,05/05/2020,5100428215,1000,Brabners LLP,117064
WARRINGTON BOROUGH COUNCIL,http://opendatacommunities.org/id/unitary-authority/warrington,ET0,Transport Holding Account,41311,Diesel,300100,05/05/2020,5100428218,16012.37,Standard Fuel Oils Ltd,117478
WARRINGTON BOROUGH COUNCIL,http://opendatacommunities.org/id/unitary-authority/warrington,ET0,Transport Holding Account,41311,Petrol,300050,05/05/2020,5100428219,1524.4,Standard Fuel Oils Ltd,117478
WARRINGTON BOROUGH COUNCIL,http://opendatacommunities.org/id/unitary-authority/warrington,ET0,Construction Stores Overhead Account,41320,Uniforms,420000,11/05/2020,5100428225,718.56,SMI INT Group Ltd,117262
WARRINGTON BOROUGH COUNCIL,http://opendatacommunities.org/id/unitary-authority/warrington,ENO,Highways Other,82005,Consult.& Prof. Serv,440000,05/05/2020,5100428227,661.25,Donald Insall Associates,109811
WARRINGTON BOROUGH COUNCIL,http://opendatacommunities.org/id/unitary-authority/warrington,ET0,Core Operational Business,41730,Grounds Maintenance - External,280000,05/05/2020,5100428229,975,Duttons Traffic Management Services,115913
WARRINGTON BOROUGH COUNCIL,http://opendatacommunities.org/id/unitary-authority/warrington,ET0,Core Operational Business,41730,Grounds Maintenance - External,280000,05/05/2020,5100428229,720,Duttons Traffic Management Services,115913
WARRINGTON BOROUGH COUNCIL,http://opendatacommunities.org/id/unitary-authority/warrington,ET0,Core Operational Business,41730,Grounds Maintenance - External,280000,05/05/2020,5100428229,675,Duttons Traffic Management Services,115913
WARRINGTON BOROUGH COUNCIL,http://opendatacommunities.org/id/unitary-authority/warrington,ET0,Core Operational Business,41730,Grounds Maintenance - External,280000,05/05/2020,5100428229,720,Duttons Traffic Management Services,115913
WARRINGTON BOROUGH COUNCIL,http://opendatacommunities.org/id/unitary-authority/warrington,ET0,Core Operational Business,41730,Grounds Maintenance - External,280000,05/05/2020,5100428229,720,Duttons Traffic Management Services,115913
WARRINGTON BOROUGH COUNCIL,http://opendatacommunities.org/id/unitary-authority/warrington,ET0,Core Operational Business,41730,Grounds Maintenance - External,280000,05/05/2020,5100428229,1350,Duttons Traffic Management Services,115913
WARRINGTON BOROUGH COUNCIL,http://opendatacommunities.org/id/unitary-authority/warrington,ET0,Core Operational Business,41730,Grounds Maintenance - External,280000,05/05/2020,5100428229,720,Duttons Traffic Management Services,115913
WARRINGTON BOROUGH COUNCIL,http://opendatacommunities.org/id/unitary-authority/warrington,ET0,Core Operational Business,41730,Grounds Maintenance - External,280000,05/05/2020,5100428229,675,Duttons Traffic Management Services,115913
WARRINGTON BOROUGH COUNCIL,http://opendatacommunities.org/id/unitary-authority/warrington,DG0,West Annexe,45161,Maintenance of Plant & Machinery,250050,11/05/2020,5100428231,500.07,Generator Power Ltd,117550
WARRINGTON BOROUGH COUNCIL,http://opendatacommunities.org/id/unitary-authority/warrington,FWB,DSG Independent School Fees,32011,Fees (Including Agents Fees),441450,06/05/2020,5100428340,4742.98,Seashell Trust,103082
WARRINGTON BOROUGH COUNCIL,http://opendatacommunities.org/id/unitary-authority/warrington,NEO,Neighbourhood & Community Other,83002,Consult.& Prof. Serv,440000,06/05/2020,5100428341,3570,Baker Mallett LLP,116160
WARRINGTON BOROUGH COUNCIL,http://opendatacommunities.org/id/unitary-authority/warrington,ENO,Environment & Regeneration Other,82002,Computer Hardware - Purchase,450700,10/06/2020,5100428342,3600,Bt Red Care,100411
WARRINGTON BOROUGH COUNCIL,http://opendatacommunities.org/id/unitary-authority/warrington,FWB,DSG Post-16 Special Educational Needs,32309,Fees (Including Agents Fees),441450,11/05/2020,5100428344,21208.28,Queen Alexandra College,116195
WARRINGTON BOROUGH COUNCIL,http://opendatacommunities.org/id/unitary-authority/warrington,ENO,Highways LTP,82004,Consult.& Prof. Serv,440000,21/05/2020,5100428372,940.75,Mott Macdonald Ltd,104950
WARRINGTON BOROUGH COUNCIL,http://opendatacommunities.org/id/unitary-authority/warrington,ENO,Highways LTP,82004,Consult.& Prof. Serv,440000,06/05/2020,5100428373,1885.64,Mott Macdonald Ltd,104950
WARRINGTON BOROUGH COUNCIL,http://opendatacommunities.org/id/unitary-authority/warrington,FWB,Fair Trading & Investigations,41500,Subscriptions,470000,06/05/2020,5100428376,990,Mallard Consultancy Ltd,116605
WARRINGTON BOROUGH COUNCIL,http://opendatacommunities.org/id/unitary-authority/warrington,FWB,BCF - Equipment Store,54930,Annual Maintenance,442100,05/06/2020,5100428382,3842.57,Prism Medical UK,108616
WARRINGTON BOROUGH COUNCIL,http://opendatacommunities.org/id/unitary-authority/warrington,ET0,Construction Stores Overhead Account,41320,Equipment Purchase & Contract,400000,16/06/2020,5100428385,3470,Smith Bros (Caer Conan) Wh'Sale Ltd,105136
WARRINGTON BOROUGH COUNCIL,http://opendatacommunities.org/id/unitary-authority/warrington,COR,Markets,43711,Hazardous Waste,530600,10/06/2020,5100428407,607.5,ReFood UK Limited,101024
WARRINGTON BOROUGH COUNCIL,http://opendatacommunities.org/id/unitary-authority/warrington,FWB,Housing Strategy,43620,Employees - Covid 19,199919,07/05/2020,5100428461,506.4,Ashberry Recruitment Limited,117639
WARRINGTON BOROUGH COUNCIL,http://opendatacommunities.org/id/unitary-authority/warrington,FWB,Taxi and Private Hire Licensing,44450,Consult.& Prof. Serv,440000,18/05/2020,5100428467,3270.8,G2V Recruitment Group,117396
WARRINGTON BOROUGH COUNCIL,http://opendatacommunities.org/id/unitary-authority/warrington,ET0,Urban Traffic Management Control,44370,Signal Equipment,531650,07/05/2020,5100428469,1915.73,Siemens PLC,101162
WARRINGTON BOROUGH COUNCIL,http://opendatacommunities.org/id/unitary-authority/warrington,ET0,Urban Traffic Management Control,44370,Signal Equipment,531650,07/05/2020,5100428470,1205.12,Siemens PLC,101162
WARRINGTON BOROUGH COUNCIL,http://opendatacommunities.org/id/unitary-authority/warrington,ET0,Urban Traffic Management Control,44370,Signal Equipment,531650,07/05/2020,5100428471,1304.75,Siemens PLC,101162
WARRINGTON BOROUGH COUNCIL,http://opendatacommunities.org/id/unitary-authority/warrington,ET0,Urban Traffic Management Control,44370,Signal Equipment,531650,07/05/2020,5100428472,1113.31,Siemens PLC,101162
WARRINGTON BOROUGH COUNCIL,http://opendatacommunities.org/id/unitary-authority/warrington,ET0,Urban Traffic Management Control,44370,Signal Equipment,531650,07/05/2020,5100428473,1696.35,Siemens PLC,101162
WARRINGTON BOROUGH COUNCIL,http://opendatacommunities.org/id/unitary-authority/warrington,ET0,Urban Traffic Management Control,44370,Signal Equipment,531650,07/05/2020,5100428474,5087.29,Siemens PLC,101162
WARRINGTON BOROUGH COUNCIL,http://opendatacommunities.org/id/unitary-authority/warrington,ET0,Urban Traffic Management Control,44370,Signal Equipment,531650,07/05/2020,5100428475,837.87,Siemens PLC,101162
WARRINGTON BOROUGH COUNCIL,http://opendatacommunities.org/id/unitary-authority/warrington,ET0,Transport Holding Account,41311,Maintenance Work - Sub Contractors,301150,11/05/2020,5100428554,1186.37,Johnston Sweepers Ltd,101251
WARRINGTON BOROUGH COUNCIL,http://opendatacommunities.org/id/unitary-authority/warrington,RSC,Translation Service,52202,Agency Supply ,180000,25/06/2020,5100428696,2814.15,DA Languages Ltd,115660
WARRINGTON BOROUGH COUNCIL,http://opendatacommunities.org/id/unitary-authority/warrington,ENO,Highways LTP,82004,Consult.& Prof. Serv,440000,11/05/2020,5100428697,7469.5,Jacobs Uk Ltd,101283
WARRINGTON BOROUGH COUNCIL,http://opendatacommunities.org/id/unitary-authority/warrington,NEO,IT Projects,83003,Supplies & Services - Covid 19,499919,12/05/2020,5100428707,15864,Dell,104659
WARRINGTON BOROUGH COUNCIL,http://opendatacommunities.org/id/unitary-authority/warrington,FWB,DSG - Medical Needs,32002,Eotas Pupil Funding,490350,12/05/2020,5100428708,2555,Integra People,116891
WARRINGTON BOROUGH COUNCIL,http://opendatacommunities.org/id/unitary-authority/warrington,FWB,Env. Health Public Protection,41530,Consult.& Prof. Serv,440000,12/05/2020,5100428745,2340,Cheshire East Council,410116
WARRINGTON BOROUGH COUNCIL,http://opendatacommunities.org/id/unitary-authority/warrington,FWB,Solar,63623,Equipment Purchase & Contract,400000,12/05/2020,5100428750,6984,Sig Systems Ltd,117430
WARRINGTON BOROUGH COUNCIL,http://opendatacommunities.org/id/unitary-authority/warrington,FWB,Homelessness,43650,Supplies & Services - Covid 19,499919,12/05/2020,5100428767,1085,DANL Limited,116459
WARRINGTON BOROUGH COUNCIL,http://opendatacommunities.org/id/unitary-authority/warrington,FWB,Homelessness,43650,Supplies & Services - Covid 19,499919,12/05/2020,5100428768,560,DANL Limited,116459
WARRINGTON BOROUGH COUNCIL,http://opendatacommunities.org/id/unitary-authority/warrington,FWB,Homelessness,43650,Supplies & Services - Covid 19,499919,12/05/2020,5100428769,660,DANL Limited,116459
WARRINGTON BOROUGH COUNCIL,http://opendatacommunities.org/id/unitary-authority/warrington,FWB,Homelessness,43650,Supplies & Services - Covid 19,499919,12/05/2020,5100428770,1015,DANL Limited,116459
WARRINGTON BOROUGH COUNCIL,http://opendatacommunities.org/id/unitary-authority/warrington,ET0,Walton Estate,41430,Oil - Gas,301250,12/05/2020,5100428772,641.23,Standard Fuel Oils Ltd,117478
WARRINGTON BOROUGH COUNCIL,http://opendatacommunities.org/id/unitary-authority/warrington,FWB,Homelessness,43650,Emergency Accommodation Allowance,550500,12/05/2020,5100428773,560,DANL Limited,116459
WARRINGTON BOROUGH COUNCIL,http://opendatacommunities.org/id/unitary-authority/warrington,FWB,Homelessness,43650,Emergency Accommodation Allowance,550500,12/05/2020,5100428774,770,DANL Limited,116459
WARRINGTON BOROUGH COUNCIL,http://opendatacommunities.org/id/unitary-authority/warrington,ET0,Transport Holding Account,41311,Vehicle Hire Charges,320000,03/06/2020,5100428804,7380.48,Enterprise Flex E Rent,100597
WARRINGTON BOROUGH COUNCIL,http://opendatacommunities.org/id/unitary-authority/warrington,DG0,West Annexe,45161,Maintenance of Plant & Machinery,250050,13/05/2020,5100428807,509.55,Generator Power Ltd,117550
WARRINGTON BOROUGH COUNCIL,http://opendatacommunities.org/id/unitary-authority/warrington,FWB,BCF - Telecare/Sensory,54560,Equipment Purchase & Contract,400000,13/05/2020,5100428852,559.88,Live Better With,116544
WARRINGTON BOROUGH COUNCIL,http://opendatacommunities.org/id/unitary-authority/warrington,ET0,Waste Disposal,41830,Residual Waste Disposal,530500,13/05/2020,5100428857,26919.76,VIRIDOR WASTE MANAGEMENT,117566
WARRINGTON BOROUGH COUNCIL,http://opendatacommunities.org/id/unitary-authority/warrington,NEO,IT Projects,83003,Computer Software - Purchase,450800,29/06/2020,5100428858,26962,Capita Business Services Ltd,105516
WARRINGTON BOROUGH COUNCIL,http://opendatacommunities.org/id/unitary-authority/warrington,ET0,Warrington East Ph 2 - 4,40020,Consult.& Prof. Serv,440000,13/05/2020,5100428867,4538,Mott Macdonald Ltd,104950
WARRINGTON BOROUGH COUNCIL,http://opendatacommunities.org/id/unitary-authority/warrington,ET0,Warrington East Ph 2 - 4,40020,Consult.& Prof. Serv,440000,13/05/2020,5100428868,1516.75,Mott Macdonald Ltd,104950
WARRINGTON BOROUGH COUNCIL,http://opendatacommunities.org/id/unitary-authority/warrington,ET0,Walton Estate,41430,Oil - Gas,301250,18/05/2020,5100428869,630.78,Standard Fuel Oils Ltd,117478
WARRINGTON BOROUGH COUNCIL,http://opendatacommunities.org/id/unitary-authority/warrington,ENO,Highways Other,82005,Environmental Works,531050,25/06/2020,5100428879,16695.04,Dowhigh Ltd,105350
WARRINGTON BOROUGH COUNCIL,http://opendatacommunities.org/id/unitary-authority/warrington,ET0,Transport Holding Account,41311,Veh Maint. Materials,300000,03/06/2020,5100428929,699.82,Turner Groundscare,105201
WARRINGTON BOROUGH COUNCIL,http://opendatacommunities.org/id/unitary-authority/warrington,ET0,Transport Holding Account,41311,Diesel,300100,14/05/2020,5100428932,16808,Standard Fuel Oils Ltd,117478
WARRINGTON BOROUGH COUNCIL,http://opendatacommunities.org/id/unitary-authority/warrington,ET0,Transport Holding Account,41311,Oil - Gas,301250,14/05/2020,5100428933,1155.9,Standard Fuel Oils Ltd,117478
WARRINGTON BOROUGH COUNCIL,http://opendatacommunities.org/id/unitary-authority/warrington,ENO,Priority Infrastructure,82009,Consult.& Prof. Serv,440000,26/06/2020,5100428958,4009.9,Lambert Smith Hampton,100591
WARRINGTON BOROUGH COUNCIL,http://opendatacommunities.org/id/unitary-authority/warrington,ENO,Priority Infrastructure,82009,Consult.& Prof. Serv,440000,26/06/2020,5100428958,1882.3,Lambert Smith Hampton,100591
WARRINGTON BOROUGH COUNCIL,http://opendatacommunities.org/id/unitary-authority/warrington,ET0,Transport Holding Account,41311,Vehicle Hire Charges,320000,03/06/2020,5100429036,820,Carroll Plant Ltd,101548
WARRINGTON BOROUGH COUNCIL,http://opendatacommunities.org/id/unitary-authority/warrington,DG0,Local Plan,43445,Consult.& Prof. Serv,440000,15/05/2020,5100429047,2135.7,Cushman & Wakefield Debenham Tie Le,116480
WARRINGTON BOROUGH COUNCIL,http://opendatacommunities.org/id/unitary-authority/warrington,ET0,Waste Recycling,41820,Waste Initiatives,443200,15/05/2020,5100429057,684,Euro Label Printers,115243
WARRINGTON BOROUGH COUNCIL,http://opendatacommunities.org/id/unitary-authority/warrington,ET0,Transport Planning Policy & Strategy,44530,Public Rights Of Way,531900,15/05/2020,5100429068,1680,David Webster & Sons Ltd,102202
WARRINGTON BOROUGH COUNCIL,http://opendatacommunities.org/id/unitary-authority/warrington,ET0,Domestic (Drivers & Collectors),41840,Bulky Waste Collections,442600,18/05/2020,5100429083,5126.85,Changing Lives in Cheshire,111607
WARRINGTON BOROUGH COUNCIL,http://opendatacommunities.org/id/unitary-authority/warrington,ET0,Waste Recycling,41820,CRC Contract,530450,18/05/2020,5100429084,4055.05,Environmental Waste Controls Ltd,102474
WARRINGTON BOROUGH COUNCIL,http://opendatacommunities.org/id/unitary-authority/warrington,FWB,CIN Team 4,31014,Fees (Including Agents Fees),441450,05/06/2020,5100429086,1130.1,Network Ventures Ltd,110554
WARRINGTON BOROUGH COUNCIL,http://opendatacommunities.org/id/unitary-authority/warrington,COR,Other Commercial Prop.,43560,Security Systems,250000,18/05/2020,5100429191,750,Sanderson Weatherall LLP,117413
WARRINGTON BOROUGH COUNCIL,http://opendatacommunities.org/id/unitary-authority/warrington,ENO,Priority Infrastructure,82009,Consult.& Prof. Serv,440000,19/05/2020,5100429261,837,Wsp Uk Ltd,103007
WARRINGTON BOROUGH COUNCIL,http://opendatacommunities.org/id/unitary-authority/warrington,ET0,Transport Holding Account,41311,Petrol,300050,19/05/2020,5100429273,1590.8,Standard Fuel Oils Ltd,117478
WARRINGTON BOROUGH COUNCIL,http://opendatacommunities.org/id/unitary-authority/warrington,RSC,Housing Benefit,10340,Computer Software - Maintenance,450850,19/05/2020,5100429277,2334.53,Capita Business Services Ltd,105516
WARRINGTON BOROUGH COUNCIL,http://opendatacommunities.org/id/unitary-authority/warrington,ET0,Transport Holding Account,41311,Diesel,300100,19/05/2020,5100429279,16195.79,Standard Fuel Oils Ltd,117478
WARRINGTON BOROUGH COUNCIL,http://opendatacommunities.org/id/unitary-authority/warrington,FWB,DSG - Medical Needs,32002,Eotas Pupil Funding,490350,19/05/2020,5100429287,2835,Integra People,116891
WARRINGTON BOROUGH COUNCIL,http://opendatacommunities.org/id/unitary-authority/warrington,ENP,Environment & Regeneration,82000,Computer Software - Purchase,450800,03/06/2020,5100429289,10032,Microform Imaging Ltd,117597
WARRINGTON BOROUGH COUNCIL,http://opendatacommunities.org/id/unitary-authority/warrington,ENP,Environment & Regeneration,82000,Consult.& Prof. Serv,440000,03/06/2020,5100429290,4000,Wsp Uk Ltd,103007
WARRINGTON BOROUGH COUNCIL,http://opendatacommunities.org/id/unitary-authority/warrington,ET0,Transport Holding Account,41311,Vehicle Hire Charges,320000,19/05/2020,5100429296,537.34,Enterprise Flex E Rent,100597
WARRINGTON BOROUGH COUNCIL,http://opendatacommunities.org/id/unitary-authority/warrington,FWB,Housing Strategy,43620,Employees - Covid 19,199919,20/05/2020,5100429329,506.4,Ashberry Recruitment Limited,117639
WARRINGTON BOROUGH COUNCIL,http://opendatacommunities.org/id/unitary-authority/warrington,DG0,Local Plan,43445,Consult.& Prof. Serv,440000,20/05/2020,5100429336,9027,Cushman & Wakefield Debenham Tie Le,116480
WARRINGTON BOROUGH COUNCIL,http://opendatacommunities.org/id/unitary-authority/warrington,ET0,Transport Holding Account,41311,Veh Maint. Materials,300000,03/06/2020,5100429358,883.32,Roanza Ltd,104700
WARRINGTON BOROUGH COUNCIL,http://opendatacommunities.org/id/unitary-authority/warrington,ENO,Priority Infrastructure,82009,Environmental Works,531050,29/05/2020,5100429396,900,Pm Surveys Ltd,100711
WARRINGTON BOROUGH COUNCIL,http://opendatacommunities.org/id/unitary-authority/warrington,ENO,Priority Infrastructure,82009,Consult.& Prof. Serv,440000,03/06/2020,5100429435,104334.24,Balfour Beatty Civil Engineering Li,114442
WARRINGTON BOROUGH COUNCIL,http://opendatacommunities.org/id/unitary-authority/warrington,ET0,School Brow Depot,41330,Hazardous Waste,530600,03/06/2020,5100429446,567.52,Oakwood Environmental Services,109265
WARRINGTON BOROUGH COUNCIL,http://opendatacommunities.org/id/unitary-authority/warrington,FWB,DSG Post-16 Special Educational Needs,32309,Fees (Including Agents Fees),441450,29/05/2020,5100429665,67532,Wargrave House School,400175
WARRINGTON BOROUGH COUNCIL,http://opendatacommunities.org/id/unitary-authority/warrington,FWB,DSG Post-16 Special Educational Needs,32309,Fees (Including Agents Fees),441450,29/05/2020,5100429666,50654.23,The David Lewis Centre,104879
WARRINGTON BOROUGH COUNCIL,http://opendatacommunities.org/id/unitary-authority/warrington,FWB,DSG Post-16 Special Educational Needs,32309,Fees (Including Agents Fees),441450,29/05/2020,5100429667,50818.24,The David Lewis Centre,104879
WARRINGTON BOROUGH COUNCIL,http://opendatacommunities.org/id/unitary-authority/warrington,ENP,Environment & Regeneration,82000,Stores Purchases,401300,29/05/2020,5100429668,1191.82,Jones Lighting Ltd,103483
WARRINGTON BOROUGH COUNCIL,http://opendatacommunities.org/id/unitary-authority/warrington,ET0,Transport Holding Account,41311,Tyres,300250,28/05/2020,5100429699,3942.42,Lodge Tyre Company,105203
WARRINGTON BOROUGH COUNCIL,http://opendatacommunities.org/id/unitary-authority/warrington,FWB,DSG - Medical Needs,32002,Eotas Pupil Funding,490350,28/05/2020,5100429710,1855,Integra People,116891
WARRINGTON BOROUGH COUNCIL,http://opendatacommunities.org/id/unitary-authority/warrington,ET0,Highways Drainage,44270,Materials,400500,28/05/2020,5100429717,11870,Empire Ground Care Ltd,115905
WARRINGTON BOROUGH COUNCIL,http://opendatacommunities.org/id/unitary-authority/warrington,ET0,Transport Holding Account,41311,Veh Maint. Materials,300000,03/06/2020,5100429718,1453.53,Turner Groundscare,105201
WARRINGTON BOROUGH COUNCIL,http://opendatacommunities.org/id/unitary-authority/warrington,FWB,30 Hours DS Fund,31401,Training,190150,28/05/2020,5100429719,600,Shine Therapy Services Ltd,116358
WARRINGTON BOROUGH COUNCIL,http://opendatacommunities.org/id/unitary-authority/warrington,NEO,IT Projects,83003,Supplies & Services - Covid 19,499919,28/05/2020,5100429721,11763.2,Dell,104659
WARRINGTON BOROUGH COUNCIL,http://opendatacommunities.org/id/unitary-authority/warrington,ET0,Waste Recycling,41820,CRC Contract,530450,28/05/2020,5100429726,3236.95,Environmental Waste Controls Ltd,102474
WARRINGTON BOROUGH COUNCIL,http://opendatacommunities.org/id/unitary-authority/warrington,ET0,Waste Recycling,41820,CRC Contract,530450,28/05/2020,5100429728,2035,Environmental Waste Controls Ltd,102474
WARRINGTON BOROUGH COUNCIL,http://opendatacommunities.org/id/unitary-authority/warrington,ET0,Waste Recycling,41820,CRC Contract,530450,28/05/2020,5100429733,8353.6,Environmental Waste Controls Ltd,102474
WARRINGTON BOROUGH COUNCIL,http://opendatacommunities.org/id/unitary-authority/warrington,ET0,Waste Recycling,41820,CRC Contract,530450,28/05/2020,5100429734,925.98,Environmental Waste Controls Ltd,102474
WARRINGTON BOROUGH COUNCIL,http://opendatacommunities.org/id/unitary-authority/warrington,ET0,Waste Recycling,41820,CRC Contract,530450,28/05/2020,5100429735,2350.4,Environmental Waste Controls Ltd,102474
WARRINGTON BOROUGH COUNCIL,http://opendatacommunities.org/id/unitary-authority/warrington,ET0,Waste Recycling,41820,CRC Contract,530450,28/05/2020,5100429736,3722.48,Environmental Waste Controls Ltd,102474
WARRINGTON BOROUGH COUNCIL,http://opendatacommunities.org/id/unitary-authority/warrington,ET0,Waste Recycling,41820,CRC Contract,530450,28/05/2020,5100429737,1282.32,Environmental Waste Controls Ltd,102474
WARRINGTON BOROUGH COUNCIL,http://opendatacommunities.org/id/unitary-authority/warrington,ENO,Priority Infrastructure,82009,Fct Repairs,532600,03/06/2020,5100429779,701.5,Marine Management Organisation,116608
WARRINGTON BOROUGH COUNCIL,http://opendatacommunities.org/id/unitary-authority/warrington,ET0,Construction Stores Overhead Account,41320,Uniforms,420000,03/06/2020,5100429785,598.8,SMI INT Group Ltd,117262
WARRINGTON BOROUGH COUNCIL,http://opendatacommunities.org/id/unitary-authority/warrington,COR,Markets,43711,Supplies & Services - Covid 19,499919,29/05/2020,5100429798,635,Hcc Promotions Ltd,103915
WARRINGTON BOROUGH COUNCIL,http://opendatacommunities.org/id/unitary-authority/warrington,ENO,Highways Other,82005,Environmental Works,531050,24/06/2020,5100429799,2877.45,Network Rail Commercial Property Sp,105053
WARRINGTON BOROUGH COUNCIL,http://opendatacommunities.org/id/unitary-authority/warrington,FWB,Care Call,54550,Equipment Purchase & Contract,400000,29/05/2020,5100429800,2440,Redacted for personal data,114604
WARRINGTON BOROUGH COUNCIL,http://opendatacommunities.org/id/unitary-authority/warrington,FWB,CIN Team 4,31014,Fees (Including Agents Fees),441450,05/06/2020,5100429801,1361.6,Network Ventures Ltd,110554
WARRINGTON BOROUGH COUNCIL,http://opendatacommunities.org/id/unitary-authority/warrington,ET0,Transport Holding Account,41311,Vehicle Hire Charges,320000,29/05/2020,5100429810,540,P S D Vehicle Rental,100551
WARRINGTON BOROUGH COUNCIL,http://opendatacommunities.org/id/unitary-authority/warrington,ET0,Transport Holding Account,41311,Vehicle Hire Charges,320000,29/05/2020,5100429811,540,P S D Vehicle Rental,100551
WARRINGTON BOROUGH COUNCIL,http://opendatacommunities.org/id/unitary-authority/warrington,FWB,BCF - Telecare/Sensory,54560,Equipment Purchase & Contract,400000,29/05/2020,5100429812,4740,Buddi Ltd,108559
WARRINGTON BOROUGH COUNCIL,http://opendatacommunities.org/id/unitary-authority/warrington,FWB,Fostering Team,31105,Fees (Including Agents Fees),441450,29/05/2020,5100429814,2633,Adcs,101956
WARRINGTON BOROUGH COUNCIL,http://opendatacommunities.org/id/unitary-authority/warrington,FWB,DSG Independent School Fees,32011,Fees (Including Agents Fees),441450,29/05/2020,5100429820,5921.42,Belmont School Limited,400047
WARRINGTON BOROUGH COUNCIL,http://opendatacommunities.org/id/unitary-authority/warrington,FWB,DSG Independent School Fees,32011,Fees (Including Agents Fees),441450,29/05/2020,5100429821,5887,Beech Hall School Limited,117355
WARRINGTON BOROUGH COUNCIL,http://opendatacommunities.org/id/unitary-authority/warrington,FWB,DSG Independent School Fees,32011,Fees (Including Agents Fees),441450,29/05/2020,5100429822,6907.5,Beech Hall School Limited,117355
WARRINGTON BOROUGH COUNCIL,http://opendatacommunities.org/id/unitary-authority/warrington,FWB,DSG Independent School Fees,32011,Fees (Including Agents Fees),441450,29/05/2020,5100429823,4238.82,Bright Futures Care Ltd,114579
WARRINGTON BOROUGH COUNCIL,http://opendatacommunities.org/id/unitary-authority/warrington,FWB,DSG Independent School Fees,32011,Fees (Including Agents Fees),441450,29/05/2020,5100429824,4105.26,Nugent Care,101082
WARRINGTON BOROUGH COUNCIL,http://opendatacommunities.org/id/unitary-authority/warrington,FWB,DSG Independent School Fees,32011,Fees (Including Agents Fees),441450,29/05/2020,5100429825,4144.74,Nugent Care,101082
WARRINGTON BOROUGH COUNCIL,http://opendatacommunities.org/id/unitary-authority/warrington,FWB,DSG Independent School Fees,32011,Fees (Including Agents Fees),441450,29/05/2020,5100429826,4144.74,Nugent Care,101082
WARRINGTON BOROUGH COUNCIL,http://opendatacommunities.org/id/unitary-authority/warrington,FWB,DSG Independent School Fees,32011,Fees (Including Agents Fees),441450,29/05/2020,5100429828,4649.5,Lakeside School Limited,103188
WARRINGTON BOROUGH COUNCIL,http://opendatacommunities.org/id/unitary-authority/warrington,DG0,Development Control,43430,Consult.& Prof. Serv,440000,06/06/2020,5100429829,525,Park Avenue Recruitment Limited,116840
WARRINGTON BOROUGH COUNCIL,http://opendatacommunities.org/id/unitary-authority/warrington,ET0,Transport Holding Account,41311,Oil - Gas,301250,29/05/2020,5100429831,1079.4,Standard Fuel Oils Ltd,117478
WARRINGTON BOROUGH COUNCIL,http://opendatacommunities.org/id/unitary-authority/warrington,ENO,Priority Infrastructure,82009,Consult.& Prof. Serv,440000,29/05/2020,5100429832,1481,Wsp Uk Ltd,103007
WARRINGTON BOROUGH COUNCIL,http://opendatacommunities.org/id/unitary-authority/warrington,FWB,DSG Independent School Fees,32011,Fees (Including Agents Fees),441450,29/05/2020,5100429833,5273.25,Lakeside School Limited,103188
WARRINGTON BOROUGH COUNCIL,http://opendatacommunities.org/id/unitary-authority/warrington,ENO,Priority Infrastructure,82009,Consult.& Prof. Serv,440000,29/05/2020,5100429835,3950,Axis Property Consultancy LLP,117316
WARRINGTON BOROUGH COUNCIL,http://opendatacommunities.org/id/unitary-authority/warrington,ENO,Highways LTP,82004,Stores Purchases,401300,29/05/2020,5100429840,1146.64,Jones Lighting Ltd,103483
WARRINGTON BOROUGH COUNCIL,http://opendatacommunities.org/id/unitary-authority/warrington,ET0,Transport Holding Account,41311,Oil - Gas,301250,29/05/2020,5100429841,1228,Standard Fuel Oils Ltd,117478
WARRINGTON BOROUGH COUNCIL,http://opendatacommunities.org/id/unitary-authority/warrington,ET0,Woolston Depot,41331,Oil - Gas,301250,29/05/2020,5100429842,1179,Standard Fuel Oils Ltd,117478
WARRINGTON BOROUGH COUNCIL,http://opendatacommunities.org/id/unitary-authority/warrington,FWB,BCF - Equipment Store,54930,Equipment Purchase & Contract,400000,29/05/2020,5100429851,648.6,Healthcare Matters,110751
WARRINGTON BOROUGH COUNCIL,http://opendatacommunities.org/id/unitary-authority/warrington,FWB,DSG Independent School Fees,32011,Fees (Including Agents Fees),441450,29/05/2020,5100429860,4742.98,Seashell Trust,103082
WARRINGTON BOROUGH COUNCIL,http://opendatacommunities.org/id/unitary-authority/warrington,FWB,DSG Independent School Fees,32011,Fees (Including Agents Fees),441450,29/05/2020,5100429861,3214.32,The Royal School For The Blind,400046
WARRINGTON BOROUGH COUNCIL,http://opendatacommunities.org/id/unitary-authority/warrington,FWB,DSG Independent School Fees,32011,Fees (Including Agents Fees),441450,29/05/2020,5100429862,2272.91,Chaigeley Educational Foundation,400123
WARRINGTON BOROUGH COUNCIL,http://opendatacommunities.org/id/unitary-authority/warrington,FWB,DSG Independent School Fees,32011,Fees (Including Agents Fees),441450,29/05/2020,5100429863,2272.91,Chaigeley Educational Foundation,400123
WARRINGTON BOROUGH COUNCIL,http://opendatacommunities.org/id/unitary-authority/warrington,FWB,DSG Independent School Fees,32011,Fees (Including Agents Fees),441450,29/05/2020,5100429864,2272.91,Chaigeley Educational Foundation,400123
WARRINGTON BOROUGH COUNCIL,http://opendatacommunities.org/id/unitary-authority/warrington,FWB,Supporting People Contracts,53260,Young People and/or Care Leavers,535150,31/05/2020,5100429867,17159.12,Arena Options,101746
WARRINGTON BOROUGH COUNCIL,http://opendatacommunities.org/id/unitary-authority/warrington,FWB,Supporting People Contracts,53260,Risk of Homelessness and Floating Suppor,535100,31/05/2020,5100429868,16666,Arena Options,101746
WARRINGTON BOROUGH COUNCIL,http://opendatacommunities.org/id/unitary-authority/warrington,FWB,Supporting People Contracts,53260,Risk of Homelessness and Floating Suppor,535100,31/05/2020,5100429869,24791.17,The Salvation Army,105105
WARRINGTON BOROUGH COUNCIL,http://opendatacommunities.org/id/unitary-authority/warrington,FWB,3rd Sector Contracts,53920,Payment of Grants,470050,31/05/2020,5100429930,17797.5,WIRED,109547
WARRINGTON BOROUGH COUNCIL,http://opendatacommunities.org/id/unitary-authority/warrington,FWB,Supporting People Contracts,53260,People with Mental Health Problems,535200,31/05/2020,5100429931,7010.64,Independent Living Alliance Ltd,111037
WARRINGTON BOROUGH COUNCIL,http://opendatacommunities.org/id/unitary-authority/warrington,FWB,Supporting People Contracts,53260,Risk of Homelessness and Floating Suppor,535100,31/05/2020,5100429933,10242,Warrington Womens Aid Ltd,440000
WARRINGTON BOROUGH COUNCIL,http://opendatacommunities.org/id/unitary-authority/warrington,FWB,Supporting People Contracts,53260,Risk of Homelessness and Floating Suppor,535100,31/05/2020,5100429934,21333.33,Room at the Inn and The Y Project,440065
WARRINGTON BOROUGH COUNCIL,http://opendatacommunities.org/id/unitary-authority/warrington,FWB,DSG Independent School Fees,32011,Fees (Including Agents Fees),441450,01/06/2020,5100429940,3328.91,Chaigeley Educational Foundation,400123
WARRINGTON BOROUGH COUNCIL,http://opendatacommunities.org/id/unitary-authority/warrington,FWB,DSG Independent School Fees,32011,Fees (Including Agents Fees),441450,01/06/2020,5100429941,4389.91,Chaigeley Educational Foundation,400123
WARRINGTON BOROUGH COUNCIL,http://opendatacommunities.org/id/unitary-authority/warrington,DG0,Building Maintenance,43220,Consult.& Prof. Serv,440000,01/06/2020,5100429942,1159.75,Redacted for personal data,102651
WARRINGTON BOROUGH COUNCIL,http://opendatacommunities.org/id/unitary-authority/warrington,FWB,DSG Independent School Fees,32011,Fees (Including Agents Fees),441450,01/06/2020,5100429943,3328.91,Chaigeley Educational Foundation,400123
WARRINGTON BOROUGH COUNCIL,http://opendatacommunities.org/id/unitary-authority/warrington,FWB,DSG Independent School Fees,32011,Fees (Including Agents Fees),441450,01/06/2020,5100429944,4389.91,Chaigeley Educational Foundation,400123
WARRINGTON BOROUGH COUNCIL,http://opendatacommunities.org/id/unitary-authority/warrington,ET0,Transport Holding Account,41311,Vehicle Hire Charges,320000,01/06/2020,5100429945,6324.36,Northgate Vehicle Hire (North West),104871
WARRINGTON BOROUGH COUNCIL,http://opendatacommunities.org/id/unitary-authority/warrington,FWB,DSG Independent School Fees,32011,Fees (Including Agents Fees),441450,01/06/2020,5100429948,541.09,Cransley School,107861
WARRINGTON BOROUGH COUNCIL,http://opendatacommunities.org/id/unitary-authority/warrington,FWB,DSG Independent School Fees,32011,Fees (Including Agents Fees),441450,01/06/2020,5100429949,833.33,Cransley School,107861
WARRINGTON BOROUGH COUNCIL,http://opendatacommunities.org/id/unitary-authority/warrington,FWB,DSG Independent School Fees,32011,Fees (Including Agents Fees),441450,01/06/2020,5100429954,33416,Wargrave House School,400175
WARRINGTON BOROUGH COUNCIL,http://opendatacommunities.org/id/unitary-authority/warrington,FWB,Fostering Collaboration,31115,Other Advertising & Publicity,450050,01/06/2020,5100429955,675,Future Design Consultants Ltd,101900
WARRINGTON BOROUGH COUNCIL,http://opendatacommunities.org/id/unitary-authority/warrington,ENO,Priority Infrastructure,82009,Environmental Works,531050,01/06/2020,5100429957,1275,Pm Surveys Ltd,100711
WARRINGTON BOROUGH COUNCIL,http://opendatacommunities.org/id/unitary-authority/warrington,ET0,Waste Recycling,41820,Waste Initiatives,443200,01/06/2020,5100429958,4875,Mgb Plastics Ltd,103465
WARRINGTON BOROUGH COUNCIL,http://opendatacommunities.org/id/unitary-authority/warrington,ET0,Waste Recycling,41820,Waste Initiatives,443200,01/06/2020,5100429959,4875,Mgb Plastics Ltd,103465
WARRINGTON BOROUGH COUNCIL,http://opendatacommunities.org/id/unitary-authority/warrington,ENP,Environment & Regeneration,82000,Computer Hardware - Purchase,450700,01/06/2020,5100429962,6284.22,TNP - The Networking People,110271
WARRINGTON BOROUGH COUNCIL,http://opendatacommunities.org/id/unitary-authority/warrington,FWB,Care Call,54550,Annual Maintenance,442100,01/06/2020,5100429963,6020.42,Tunstall Healthcare UK Ltd,105427
WARRINGTON BOROUGH COUNCIL,http://opendatacommunities.org/id/unitary-authority/warrington,FWB,BCF - Telecare/Sensory,54560,Equipment Purchase & Contract,400000,01/06/2020,5100429964,4740,Buddi Ltd,108559
WARRINGTON BOROUGH COUNCIL,http://opendatacommunities.org/id/unitary-authority/warrington,ET0,Walton Estate,41430,Security Systems,250000,01/06/2020,5100429966,950.53,Chubb Fire and Security Ltd,105335
WARRINGTON BOROUGH COUNCIL,http://opendatacommunities.org/id/unitary-authority/warrington,FWB,DSG Independent School Fees,32011,Fees (Including Agents Fees),441450,01/06/2020,5100429967,3434.76,Weston Point College,110596
WARRINGTON BOROUGH COUNCIL,http://opendatacommunities.org/id/unitary-authority/warrington,FWB,DSG Independent School Fees,32011,Fees (Including Agents Fees),441450,01/06/2020,5100429968,3434.76,Weston Point College,110596
WARRINGTON BOROUGH COUNCIL,http://opendatacommunities.org/id/unitary-authority/warrington,FWB,DSG Independent School Fees,32011,Fees (Including Agents Fees),441450,01/06/2020,5100429969,3434.76,Weston Point College,110596
WARRINGTON BOROUGH COUNCIL,http://opendatacommunities.org/id/unitary-authority/warrington,FWB,DSG Independent School Fees,32011,Fees (Including Agents Fees),441450,01/06/2020,5100429970,3434.76,Weston Point College,110596
WARRINGTON BOROUGH COUNCIL,http://opendatacommunities.org/id/unitary-authority/warrington,FWB,DSG Independent School Fees,32011,Fees (Including Agents Fees),441450,01/06/2020,5100429971,3434.76,Weston Point College,110596
WARRINGTON BOROUGH COUNCIL,http://opendatacommunities.org/id/unitary-authority/warrington,FWB,DSG Independent School Fees,32011,Fees (Including Agents Fees),441450,01/06/2020,5100429972,3434.76,Weston Point College,110596
WARRINGTON BOROUGH COUNCIL,http://opendatacommunities.org/id/unitary-authority/warrington,FWB,DSG Independent School Fees,32011,Fees (Including Agents Fees),441450,01/06/2020,5100429973,3434.76,Weston Point College,110596
WARRINGTON BOROUGH COUNCIL,http://opendatacommunities.org/id/unitary-authority/warrington,FWB,DSG Independent School Fees,32011,Fees (Including Agents Fees),441450,01/06/2020,5100429974,3434.76,Weston Point College,110596
WARRINGTON BOROUGH COUNCIL,http://opendatacommunities.org/id/unitary-authority/warrington,FWB,DSG Independent School Fees,32011,Fees (Including Agents Fees),441450,01/06/2020,5100429975,17173.89,Weston Point College,110596
WARRINGTON BOROUGH COUNCIL,http://opendatacommunities.org/id/unitary-authority/warrington,FWB,DSG Independent School Fees,32011,Fees (Including Agents Fees),441450,01/06/2020,5100429976,3434.76,Weston Point College,110596
WARRINGTON BOROUGH COUNCIL,http://opendatacommunities.org/id/unitary-authority/warrington,FWB,DSG Independent School Fees,32011,Fees (Including Agents Fees),441450,01/06/2020,5100429977,3434.76,Weston Point College,110596
WARRINGTON BOROUGH COUNCIL,http://opendatacommunities.org/id/unitary-authority/warrington,FWB,Housing Strategy,43620,Employees - Covid 19,199919,01/06/2020,5100429979,506.4,Ashberry Recruitment Limited,117639
WARRINGTON BOROUGH COUNCIL,http://opendatacommunities.org/id/unitary-authority/warrington,FWB,Domestic Abuse,31206,Supplies & Services - Covid 19,499919,01/06/2020,5100429980,1000,Weavers Close Limited,116929
WARRINGTON BOROUGH COUNCIL,http://opendatacommunities.org/id/unitary-authority/warrington,FWB,BCF - Equipment Store,54930,Equipment Purchase & Contract,400000,01/06/2020,5100429981,664.3,Harvest Healthcare Ltd,108555
WARRINGTON BOROUGH COUNCIL,http://opendatacommunities.org/id/unitary-authority/warrington,FWB,BCF - Equipment Store,54930,Equipment Purchase & Contract,400000,01/06/2020,5100429981,1277.5,Harvest Healthcare Ltd,108555
WARRINGTON BOROUGH COUNCIL,http://opendatacommunities.org/id/unitary-authority/warrington,FWB,Collaborative Training Group,33301,Training,190150,01/06/2020,5100429984,21218.73,Liverpool City Council,440037
WARRINGTON BOROUGH COUNCIL,http://opendatacommunities.org/id/unitary-authority/warrington,PIO,People & Improvement Other,85002,Lifts from Stock,400850,01/06/2020,5100429991,1969.36,Prism Medical UK,108616
WARRINGTON BOROUGH COUNCIL,http://opendatacommunities.org/id/unitary-authority/warrington,FWB,BCF - Equipment Store,54930,Equipment Purchase & Contract,400000,01/06/2020,5100429992,1084.21,Prism Medical UK,108616
WARRINGTON BOROUGH COUNCIL,http://opendatacommunities.org/id/unitary-authority/warrington,ET0,Urban Traffic Management Control,44370,Signal Equipment,531650,01/06/2020,5100430004,14128.74,Siemens PLC,101162
WARRINGTON BOROUGH COUNCIL,http://opendatacommunities.org/id/unitary-authority/warrington,FWB,Catalyst Choices,54495,CP ExternalOther Exp,440800,02/06/2020,5100430036,30000,Walton Lea Project,102953
WARRINGTON BOROUGH COUNCIL,http://opendatacommunities.org/id/unitary-authority/warrington,ET0,Construction Stores Overhead Account,41320,Uniforms,420000,02/06/2020,5100430051,624.24,Parker Merchanting Ltd,105007
WARRINGTON BOROUGH COUNCIL,http://opendatacommunities.org/id/unitary-authority/warrington,RSC,ICT Centralised Budget,23100,Computer Software - Maintenance,450850,02/06/2020,5100430054,6798,Tunstall Healthcare UK Ltd,105427
WARRINGTON BOROUGH COUNCIL,http://opendatacommunities.org/id/unitary-authority/warrington,FWB,DSG Independent School Fees,32011,Fees (Including Agents Fees),441450,02/06/2020,5100430058,2360,TSOM Mentoring,117565
WARRINGTON BOROUGH COUNCIL,http://opendatacommunities.org/id/unitary-authority/warrington,ET0,School Brow Depot,41330,Licences,492000,02/06/2020,5100430061,2731.25,Environment Agency,440120
WARRINGTON BOROUGH COUNCIL,http://opendatacommunities.org/id/unitary-authority/warrington,FWB,Trading Standards North West,41564,Consult.& Prof. Serv,440000,02/06/2020,5100430062,2490,Bury Metropolitan Borough Council,410019
WARRINGTON BOROUGH COUNCIL,http://opendatacommunities.org/id/unitary-authority/warrington,COR,Investment Property Acquisitions,62095,Fees (Including Agents Fees),441450,02/06/2020,5100430065,2174.65,Knight Frank Llp,102232
WARRINGTON BOROUGH COUNCIL,http://opendatacommunities.org/id/unitary-authority/warrington,COR,Investment Property Acquisitions,62095,Fees (Including Agents Fees),441450,02/06/2020,5100430066,1301.23,Knight Frank Llp,102232
WARRINGTON BOROUGH COUNCIL,http://opendatacommunities.org/id/unitary-authority/warrington,FWB,Homelessness,43650,Corporate Initiative,491000,02/06/2020,5100430069,1750,Locata Housing Services,114319
WARRINGTON BOROUGH COUNCIL,http://opendatacommunities.org/id/unitary-authority/warrington,ENO,Highways Other,82005,Carriageway-Resurfacing,532250,02/06/2020,5100430072,1109.2,Siemens PLC,101162
WARRINGTON BOROUGH COUNCIL,http://opendatacommunities.org/id/unitary-authority/warrington,ET0,Walton Estate,41430,Zoo Materials,401250,02/06/2020,5100430074,670,Countryscape,112482
WARRINGTON BOROUGH COUNCIL,http://opendatacommunities.org/id/unitary-authority/warrington,COR,Other Commercial Prop.,43560,Consult.& Prof. Serv,440000,02/06/2020,5100430075,1950,Fisher German,114957
WARRINGTON BOROUGH COUNCIL,http://opendatacommunities.org/id/unitary-authority/warrington,ET0,Waste Recycling,41820,Waste Initiatives,443200,02/06/2020,5100430077,4875,Mgb Plastics Ltd,103465
WARRINGTON BOROUGH COUNCIL,http://opendatacommunities.org/id/unitary-authority/warrington,ET0,Waste Recycling,41820,Waste Initiatives,443200,02/06/2020,5100430078,4725,Mgb Plastics Ltd,103465
WARRINGTON BOROUGH COUNCIL,http://opendatacommunities.org/id/unitary-authority/warrington,FWB,Special Schools Transport,33208,Statemented - Special Unit Pupil Transpo,300750,02/06/2020,5100430096,1365,Alan Delooze Premier Travel,100727
WARRINGTON BOROUGH COUNCIL,http://opendatacommunities.org/id/unitary-authority/warrington,FWB,Special Schools Transport,33208,Statemented - Special Unit Pupil Transpo,300750,02/06/2020,5100430097,1850,Wezs Travel,100842
WARRINGTON BOROUGH COUNCIL,http://opendatacommunities.org/id/unitary-authority/warrington,FWB,Children with Disabilities,31005,Transport SLA,300400,02/06/2020,5100430098,900,Tip Top Travel,113174
WARRINGTON BOROUGH COUNCIL,http://opendatacommunities.org/id/unitary-authority/warrington,FWB,Transport - Adult Social Care,54950,Transport-Snad Cot,300600,02/06/2020,5100430099,1680,Sure & Safe Minibus Service Ltd,100137
WARRINGTON BOROUGH COUNCIL,http://opendatacommunities.org/id/unitary-authority/warrington,FWB,Special Schools Transport,33208,Statemented - Special Unit Pupil Transpo,300750,02/06/2020,5100430101,1500,Direct Taxis,101873
WARRINGTON BOROUGH COUNCIL,http://opendatacommunities.org/id/unitary-authority/warrington,FWB,Special Schools Transport,33208,Statemented - Special Unit Pupil Transpo,300750,02/06/2020,5100430102,1320,Direct Taxis,101873
WARRINGTON BOROUGH COUNCIL,http://opendatacommunities.org/id/unitary-authority/warrington,FWB,Special Schools Transport,33208,Statemented - Special Unit Pupil Transpo,300750,02/06/2020,5100430103,1230,Direct Taxis,101873
WARRINGTON BOROUGH COUNCIL,http://opendatacommunities.org/id/unitary-authority/warrington,FWB,Transport - Adult Social Care,54950,Transport-Snad Cot,300600,02/06/2020,5100430104,1635,Direct Taxis,101873
WARRINGTON BOROUGH COUNCIL,http://opendatacommunities.org/id/unitary-authority/warrington,FWB,Special Schools Transport,33208,Statemented - Special Unit Pupil Transpo,300750,02/06/2020,5100430106,1862,Direct Taxis,101873
WARRINGTON BOROUGH COUNCIL,http://opendatacommunities.org/id/unitary-authority/warrington,FWB,Special Schools Transport,33208,Statemented - Special Unit Pupil Transpo,300750,02/06/2020,5100430107,900,Direct Taxis,101873
WARRINGTON BOROUGH COUNCIL,http://opendatacommunities.org/id/unitary-authority/warrington,FWB,Special Schools Transport,33208,Statemented - Special Unit Pupil Transpo,300750,02/06/2020,5100430109,1680,Direct Taxis,101873
WARRINGTON BOROUGH COUNCIL,http://opendatacommunities.org/id/unitary-authority/warrington,FWB,Special Schools Transport,33208,Statemented - Special Unit Pupil Transpo,300750,02/06/2020,5100430110,1170,Direct Taxis,101873
WARRINGTON BOROUGH COUNCIL,http://opendatacommunities.org/id/unitary-authority/warrington,FWB,Special Schools Transport,33208,Statemented - Special Unit Pupil Transpo,300750,02/06/2020,5100430111,1575,Direct Taxis,101873
WARRINGTON BOROUGH COUNCIL,http://opendatacommunities.org/id/unitary-authority/warrington,FWB,Special Schools Transport,33208,Statemented - Special Unit Pupil Transpo,300750,02/06/2020,5100430112,1170,Direct Taxis,101873
WARRINGTON BOROUGH COUNCIL,http://opendatacommunities.org/id/unitary-authority/warrington,FWB,Transport - Adult Social Care,54950,Transport-Snad Cot,300600,02/06/2020,5100430113,2432,Direct Taxis,101873
WARRINGTON BOROUGH COUNCIL,http://opendatacommunities.org/id/unitary-authority/warrington,FWB,Special Schools Transport,33208,Statemented - Special Unit Pupil Transpo,300750,02/06/2020,5100430114,1935,Direct Taxis,101873
WARRINGTON BOROUGH COUNCIL,http://opendatacommunities.org/id/unitary-authority/warrington,FWB,Special Schools Transport,33208,Statemented - Special Unit Pupil Transpo,300750,02/06/2020,5100430115,1320,Direct Taxis,101873
WARRINGTON BOROUGH COUNCIL,http://opendatacommunities.org/id/unitary-authority/warrington,FWB,Special Schools Transport,33208,Statemented - Special Unit Pupil Transpo,300750,02/06/2020,5100430116,1512,Direct Taxis,101873
WARRINGTON BOROUGH COUNCIL,http://opendatacommunities.org/id/unitary-authority/warrington,FWB,Special Schools Transport,33208,Statemented - Special Unit Pupil Transpo,300750,02/06/2020,5100430117,1905,Direct Taxis,101873
WARRINGTON BOROUGH COUNCIL,http://opendatacommunities.org/id/unitary-authority/warrington,FWB,Special Schools Transport,33208,Statemented - Special Unit Pupil Transpo,300750,02/06/2020,5100430119,1650,Direct Taxis,101873
WARRINGTON BOROUGH COUNCIL,http://opendatacommunities.org/id/unitary-authority/warrington,FWB,Special Schools Transport,33208,Statemented - Special Unit Pupil Transpo,300750,02/06/2020,5100430120,1488,Superior Travel,113595
WARRINGTON BOROUGH COUNCIL,http://opendatacommunities.org/id/unitary-authority/warrington,FWB,Permanence Team,31100,Transport SLA,300400,02/06/2020,5100430121,1710,Stephen Clarke Private Hire,117512
WARRINGTON BOROUGH COUNCIL,http://opendatacommunities.org/id/unitary-authority/warrington,FWB,Special Schools Transport,33208,Statemented - Special Unit Pupil Transpo,300750,02/06/2020,5100430122,1170,Silver Executive Travel,102638
WARRINGTON BOROUGH COUNCIL,http://opendatacommunities.org/id/unitary-authority/warrington,FWB,Special Schools Transport,33208,Statemented - Special Unit Pupil Transpo,300750,02/06/2020,5100430123,1840,Regal Travel,102002
WARRINGTON BOROUGH COUNCIL,http://opendatacommunities.org/id/unitary-authority/warrington,FWB,Special Schools Transport,33208,Statemented - Special Unit Pupil Transpo,300750,02/06/2020,5100430125,1680,Raza Taxis,105056
WARRINGTON BOROUGH COUNCIL,http://opendatacommunities.org/id/unitary-authority/warrington,FWB,Special Schools Transport,33208,Statemented - Special Unit Pupil Transpo,300750,02/06/2020,5100430126,975,Raza Taxis,105056
WARRINGTON BOROUGH COUNCIL,http://opendatacommunities.org/id/unitary-authority/warrington,FWB,Special Schools Transport,33208,Statemented - Special Unit Pupil Transpo,300750,02/06/2020,5100430127,892.5,Raza Taxis,105056
WARRINGTON BOROUGH COUNCIL,http://opendatacommunities.org/id/unitary-authority/warrington,FWB,Special Schools Transport,33208,Statemented - Special Unit Pupil Transpo,300750,02/06/2020,5100430128,792,Raza Taxis,105056
WARRINGTON BOROUGH COUNCIL,http://opendatacommunities.org/id/unitary-authority/warrington,FWB,Transport - Adult Social Care,54950,Transport-Snad Cot,300600,02/06/2020,5100430129,556,Raza Taxis,105056
WARRINGTON BOROUGH COUNCIL,http://opendatacommunities.org/id/unitary-authority/warrington,FWB,Special Schools Transport,33208,Statemented - Special Unit Pupil Transpo,300750,02/06/2020,5100430130,1125,Direct Taxis,101873
WARRINGTON BOROUGH COUNCIL,http://opendatacommunities.org/id/unitary-authority/warrington,FWB,Special Schools Transport,33208,Statemented - Special Unit Pupil Transpo,300750,02/06/2020,5100430131,1200,Direct Taxis,101873
WARRINGTON BOROUGH COUNCIL,http://opendatacommunities.org/id/unitary-authority/warrington,FWB,Special Schools Transport,33208,Statemented - Special Unit Pupil Transpo,300750,02/06/2020,5100430132,2235,Direct Taxis,101873
WARRINGTON BOROUGH COUNCIL,http://opendatacommunities.org/id/unitary-authority/warrington,FWB,Special Schools Transport,33208,Statemented - Special Unit Pupil Transpo,300750,02/06/2020,5100430133,813,Gary's Airport Transfers,116159
WARRINGTON BOROUGH COUNCIL,http://opendatacommunities.org/id/unitary-authority/warrington,FWB,Special Schools Transport,33208,Statemented - Special Unit Pupil Transpo,300750,02/06/2020,5100430134,684,Redacted for personal data,115134
WARRINGTON BOROUGH COUNCIL,http://opendatacommunities.org/id/unitary-authority/warrington,FWB,Transport - Adult Social Care,54950,Transport-Snad Cot,300600,02/06/2020,5100430135,720,Horn'S Private Hire,101991
WARRINGTON BOROUGH COUNCIL,http://opendatacommunities.org/id/unitary-authority/warrington,ET0,Local Bus Contracts,44430,Payments To Operator,530150,02/06/2020,5100430136,2524.07,J J Travel & Transport Ltd,104838
WARRINGTON BOROUGH COUNCIL,http://opendatacommunities.org/id/unitary-authority/warrington,FWB,Transport - Adult Social Care,54950,Transport-Snad Cot,300600,02/06/2020,5100430138,528,Redacted for personal data,104639
WARRINGTON BOROUGH COUNCIL,http://opendatacommunities.org/id/unitary-authority/warrington,FWB,Transport - Adult Social Care,54950,Transport-Snad Cot,300600,02/06/2020,5100430139,3990,Redacted for personal data,104639
WARRINGTON BOROUGH COUNCIL,http://opendatacommunities.org/id/unitary-authority/warrington,FWB,Special Schools Transport,33208,Statemented - Special Unit Pupil Transpo,300750,02/06/2020,5100430140,1500,Rainbow Travel,101270
WARRINGTON BOROUGH COUNCIL,http://opendatacommunities.org/id/unitary-authority/warrington,FWB,Special Schools Transport,33208,Statemented - Special Unit Pupil Transpo,300750,02/06/2020,5100430141,1800,Pete's Minibus,113937
WARRINGTON BOROUGH COUNCIL,http://opendatacommunities.org/id/unitary-authority/warrington,FWB,Special Schools Transport,33208,Statemented - Special Unit Pupil Transpo,300750,02/06/2020,5100430142,1120,Redacted for personal data,101977
WARRINGTON BOROUGH COUNCIL,http://opendatacommunities.org/id/unitary-authority/warrington,FWB,Special Schools Transport,33208,Statemented - Special Unit Pupil Transpo,300750,02/06/2020,5100430143,1350,Williams Travel,116664
WARRINGTON BOROUGH COUNCIL,http://opendatacommunities.org/id/unitary-authority/warrington,FWB,Transport - Adult Social Care,54950,Transport-Snad Cot,300600,02/06/2020,5100430144,770,Williams Travel,116664
WARRINGTON BOROUGH COUNCIL,http://opendatacommunities.org/id/unitary-authority/warrington,FWB,Special Schools Transport,33208,Statemented - Special Unit Pupil Transpo,300750,02/06/2020,5100430145,1216,Will's Cabs,116729
WARRINGTON BOROUGH COUNCIL,http://opendatacommunities.org/id/unitary-authority/warrington,FWB,BCF - Equipment Store,54930,Equipment Purchase & Contract,400000,02/06/2020,5100430146,941.1,Drive DeVilbiss Healthcare Ltd,101899
WARRINGTON BOROUGH COUNCIL,http://opendatacommunities.org/id/unitary-authority/warrington,ET0,Transport Holding Account,41311,Veh Maint. Materials,300000,02/06/2020,5100430149,853.4,F R Sharrock Ltd,105122
WARRINGTON BOROUGH COUNCIL,http://opendatacommunities.org/id/unitary-authority/warrington,FWB,Special Schools Transport,33208,Statemented - Special Unit Pupil Transpo,300750,02/06/2020,5100430153,1500,Kings Travel,116965
WARRINGTON BOROUGH COUNCIL,http://opendatacommunities.org/id/unitary-authority/warrington,FWB,Special Schools Transport,33208,Statemented - Special Unit Pupil Transpo,300750,02/06/2020,5100430154,2000,LM Travel,113868
WARRINGTON BOROUGH COUNCIL,http://opendatacommunities.org/id/unitary-authority/warrington,FWB,Special Schools Transport,33208,Statemented - Special Unit Pupil Transpo,300750,02/06/2020,5100430155,1455,Manhatton Transfers,101264
WARRINGTON BOROUGH COUNCIL,http://opendatacommunities.org/id/unitary-authority/warrington,FWB,DSG Independent School Fees,32011,Fees (Including Agents Fees),441450,02/06/2020,5100430156,2876.7,Belmont School Limited,400047
WARRINGTON BOROUGH COUNCIL,http://opendatacommunities.org/id/unitary-authority/warrington,FWB,DSG Independent School Fees,32011,Fees (Including Agents Fees),441450,02/06/2020,5100430157,2934.4,Belmont School Limited,400047
WARRINGTON BOROUGH COUNCIL,http://opendatacommunities.org/id/unitary-authority/warrington,FWB,DSG Independent School Fees,32011,Fees (Including Agents Fees),441450,02/06/2020,5100430158,2895.37,Belmont School Limited,400047
WARRINGTON BOROUGH COUNCIL,http://opendatacommunities.org/id/unitary-authority/warrington,FWB,DSG Independent School Fees,32011,Fees (Including Agents Fees),441450,02/06/2020,5100430159,2872.46,Belmont School Limited,400047
WARRINGTON BOROUGH COUNCIL,http://opendatacommunities.org/id/unitary-authority/warrington,FWB,DSG Independent School Fees,32011,Fees (Including Agents Fees),441450,02/06/2020,5100430160,2876.7,Belmont School Limited,400047
WARRINGTON BOROUGH COUNCIL,http://opendatacommunities.org/id/unitary-authority/warrington,FWB,DSG Independent School Fees,32011,Fees (Including Agents Fees),441450,02/06/2020,5100430161,2970,Belmont School Limited,400047
WARRINGTON BOROUGH COUNCIL,http://opendatacommunities.org/id/unitary-authority/warrington,FWB,Temporary Accomodation,43652,Maintenance Work - Sub Contractors,301150,02/06/2020,5100430164,1019,DANL Limited,116459
WARRINGTON BOROUGH COUNCIL,http://opendatacommunities.org/id/unitary-authority/warrington,FWB,BCF - Equipment Store,54930,Equipment Purchase & Contract,400000,02/06/2020,5100430171,2250,Newlyn Healthcare Ltd,101429
WARRINGTON BOROUGH COUNCIL,http://opendatacommunities.org/id/unitary-authority/warrington,FWB,BCF - Equipment Store,54930,Equipment Purchase & Contract,400000,02/06/2020,5100430173,2120,Newlyn Healthcare Ltd,101429
WARRINGTON BOROUGH COUNCIL,http://opendatacommunities.org/id/unitary-authority/warrington,FWB,BCF - Telecare/Sensory,54560,Equipment Purchase & Contract,400000,02/06/2020,5100430174,750,Tunstall Healthcare UK Ltd,105427
WARRINGTON BOROUGH COUNCIL,http://opendatacommunities.org/id/unitary-authority/warrington,FWB,DSG Post-16 Special Educational Needs,32309,Fees (Including Agents Fees),441450,02/06/2020,5100430176,86301.67,South Cheshire College,112787
WARRINGTON BOROUGH COUNCIL,http://opendatacommunities.org/id/unitary-authority/warrington,FWB,DSG Independent School Fees,32011,Fees (Including Agents Fees),441450,03/06/2020,5100430193,2934.4,Belmont School Limited,400047
WARRINGTON BOROUGH COUNCIL,http://opendatacommunities.org/id/unitary-authority/warrington,FWB,DSG Independent School Fees,32011,Fees (Including Agents Fees),441450,03/06/2020,5100430194,2872.46,Belmont School Limited,400047
WARRINGTON BOROUGH COUNCIL,http://opendatacommunities.org/id/unitary-authority/warrington,FWB,DSG Post-16 Special Educational Needs,32309,Fees (Including Agents Fees),441450,03/06/2020,5100430195,6886.8,Chatsworth Futures Limited,116803
WARRINGTON BOROUGH COUNCIL,http://opendatacommunities.org/id/unitary-authority/warrington,FWB,DSG Inter Authority Recoupment,32009,Fees (Including Agents Fees),441450,03/06/2020,5100430196,1188.5,Alt Bridge Secondary Support Centre,116942
WARRINGTON BOROUGH COUNCIL,http://opendatacommunities.org/id/unitary-authority/warrington,FWB,DSG Independent School Fees,32011,Fees (Including Agents Fees),441450,03/06/2020,5100430197,3434.76,Weston Point College,110596
WARRINGTON BOROUGH COUNCIL,http://opendatacommunities.org/id/unitary-authority/warrington,FWB,Special Schools Transport,33208,Statemented - Special Unit Pupil Transpo,300750,03/06/2020,5100430198,1500,Warrington Cars,113774
WARRINGTON BOROUGH COUNCIL,http://opendatacommunities.org/id/unitary-authority/warrington,ENP,Environment & Regeneration,82000,Computer Hardware - Purchase,450700,03/06/2020,5100430231,592,Kenable Ltd,117534
WARRINGTON BOROUGH COUNCIL,http://opendatacommunities.org/id/unitary-authority/warrington,DG0,Contingency,45227,Maintenance of Plant & Machinery,250050,03/06/2020,5100430232,11332.84,Mears Limited,114197
WARRINGTON BOROUGH COUNCIL,http://opendatacommunities.org/id/unitary-authority/warrington,ENO,Highways LTP,82004,Consult.& Prof. Serv,440000,03/06/2020,5100430234,4500,Mott Macdonald Ltd,104950
WARRINGTON BOROUGH COUNCIL,http://opendatacommunities.org/id/unitary-authority/warrington,FWB,Transport - Adult Social Care,54950,Transport-Snad Cot,300600,03/06/2020,5100430235,1425,Redacted for personal data,103064
WARRINGTON BOROUGH COUNCIL,http://opendatacommunities.org/id/unitary-authority/warrington,NEO,Neighbourhood & Community Other,83002,Consult.& Prof. Serv,440000,03/06/2020,5100430236,222426.5,Whitfield & Brown Developments Ltd,105435
WARRINGTON BOROUGH COUNCIL,http://opendatacommunities.org/id/unitary-authority/warrington,FWB,Transport - Adult Social Care,54950,Transport-Snad Cot,300600,03/06/2020,5100430237,2220,Redacted for personal data,103064
WARRINGTON BOROUGH COUNCIL,http://opendatacommunities.org/id/unitary-authority/warrington,ET0,Woolston Depot,41331,Hazardous Waste,530600,03/06/2020,5100430238,929.6,Wsr Recycling Ltd,101196
WARRINGTON BOROUGH COUNCIL,http://opendatacommunities.org/id/unitary-authority/warrington,ENO,Priority Infrastructure,82009,Consult.& Prof. Serv,440000,06/06/2020,5100430240,981,TLT Solicitors,115669
WARRINGTON BOROUGH COUNCIL,http://opendatacommunities.org/id/unitary-authority/warrington,DG0,Parr Hall - 29 Palmyra Square South,45124,Maintenance of Plant & Machinery,250050,03/06/2020,5100430241,1600,Bradshaw Gass & Hope,115103
WARRINGTON BOROUGH COUNCIL,http://opendatacommunities.org/id/unitary-authority/warrington,FWB,Special Schools Transport,33208,Statemented - Special Unit Pupil Transpo,300750,03/06/2020,5100430242,1350,Hampton Coaches,104768
WARRINGTON BOROUGH COUNCIL,http://opendatacommunities.org/id/unitary-authority/warrington,FWB,BCF - Equipment Store,54930,Materials,400500,03/06/2020,5100430243,5089,Neater Solutions,101908
WARRINGTON BOROUGH COUNCIL,http://opendatacommunities.org/id/unitary-authority/warrington,DG0,Fiddlers Ferry Marina,51001,Specific Work,200200,03/06/2020,5100430244,1995,B & K Landscapes,105448
WARRINGTON BOROUGH COUNCIL,http://opendatacommunities.org/id/unitary-authority/warrington,FWB,Special Schools Transport,33208,Statemented - Special Unit Pupil Transpo,300750,03/06/2020,5100430246,1800,Hampton Coaches,104768
WARRINGTON BOROUGH COUNCIL,http://opendatacommunities.org/id/unitary-authority/warrington,ET0,Walton Estate,41430,Oil - Gas,301250,06/06/2020,5100430248,562.38,Standard Fuel Oils Ltd,117478
WARRINGTON BOROUGH COUNCIL,http://opendatacommunities.org/id/unitary-authority/warrington,FWB,Special Schools Transport,33208,Statemented - Special Unit Pupil Transpo,300750,03/06/2020,5100430249,1650,Hampton Coaches,104768
WARRINGTON BOROUGH COUNCIL,http://opendatacommunities.org/id/unitary-authority/warrington,ENO,Highways Other,82005,Consult.& Prof. Serv,440000,06/06/2020,5100430250,8900,Aecom Limited,101037
WARRINGTON BOROUGH COUNCIL,http://opendatacommunities.org/id/unitary-authority/warrington,FWB,Special Schools Transport,33208,Statemented - Special Unit Pupil Transpo,300750,03/06/2020,5100430252,1230,Redacted for personal data,102978
WARRINGTON BOROUGH COUNCIL,http://opendatacommunities.org/id/unitary-authority/warrington,FWB,Transport - Adult Social Care,54950,Transport-Snad Cot,300600,03/06/2020,5100430253,2326,Redacted for personal data,104639
WARRINGTON BOROUGH COUNCIL,http://opendatacommunities.org/id/unitary-authority/warrington,DG0,Site Management,43530,Security Systems,250000,03/06/2020,5100430256,540,Sentry Security Ltd,103829
WARRINGTON BOROUGH COUNCIL,http://opendatacommunities.org/id/unitary-authority/warrington,PIO,People & Improvement Other,85002,Lifts from Stock,400850,03/06/2020,5100430258,2795,ThyssenKrupp Encasa Ltd,105382
WARRINGTON BOROUGH COUNCIL,http://opendatacommunities.org/id/unitary-authority/warrington,ET0,Bus Interchange,44460,Security Systems,250000,03/06/2020,5100430259,4410,Step up Security Ltd,116851
WARRINGTON BOROUGH COUNCIL,http://opendatacommunities.org/id/unitary-authority/warrington,PIO,People & Improvement Other,85002,Lifts from Stock,400850,03/06/2020,5100430260,805,ThyssenKrupp Encasa Ltd,105382
WARRINGTON BOROUGH COUNCIL,http://opendatacommunities.org/id/unitary-authority/warrington,ENO,Highways LTP,82004,Materials,400500,22/06/2020,5100430262,1200,Smith Bros (Caer Conan) Wh'Sale Ltd,105136
WARRINGTON BOROUGH COUNCIL,http://opendatacommunities.org/id/unitary-authority/warrington,RSC,Civic,11440,"Campaigns,  Projects and Events",491950,03/06/2020,5100430266,1216.95,Thomas Fattorini Ltd,104710
WARRINGTON BOROUGH COUNCIL,http://opendatacommunities.org/id/unitary-authority/warrington,FWB,DSG Independent School Fees,32011,Fees (Including Agents Fees),441450,03/06/2020,5100430268,2970,Belmont School Limited,400047
WARRINGTON BOROUGH COUNCIL,http://opendatacommunities.org/id/unitary-authority/warrington,NEO,Neighbourhood & Community Other,83002,Consult.& Prof. Serv,440000,03/06/2020,5100430270,8000,Baker Mallett LLP,116160
WARRINGTON BOROUGH COUNCIL,http://opendatacommunities.org/id/unitary-authority/warrington,ENO,Highways LTP,82004,Consult.& Prof. Serv,440000,03/06/2020,5100430271,4265,FourPoint Mapping,108173
WARRINGTON BOROUGH COUNCIL,http://opendatacommunities.org/id/unitary-authority/warrington,ET0,Transport Holding Account,41311,Veh Maint. Materials,300000,10/06/2020,5100430272,3706.53,Turner Groundscare,105201
WARRINGTON BOROUGH COUNCIL,http://opendatacommunities.org/id/unitary-authority/warrington,FWB,DSG Independent School Fees,32011,Fees (Including Agents Fees),441450,03/06/2020,5100430276,2970,Belmont School Limited,400047
WARRINGTON BOROUGH COUNCIL,http://opendatacommunities.org/id/unitary-authority/warrington,FWB,DSG Independent School Fees,32011,Fees (Including Agents Fees),441450,03/06/2020,5100430281,2935.23,Belmont School Limited,400047
WARRINGTON BOROUGH COUNCIL,http://opendatacommunities.org/id/unitary-authority/warrington,ENP,Environment & Regeneration,82000,Building Work,200850,06/06/2020,5100430282,595.5,Chris Bowker Limited,117572
WARRINGTON BOROUGH COUNCIL,http://opendatacommunities.org/id/unitary-authority/warrington,FWB,DSG Independent School Fees,32011,Fees (Including Agents Fees),441450,03/06/2020,5100430284,2895.37,Belmont School Limited,400047
WARRINGTON BOROUGH COUNCIL,http://opendatacommunities.org/id/unitary-authority/warrington,DG0,West Annexe,45161,Maintenance of Plant & Machinery,250050,06/06/2020,5100430286,553.79,Generator Power Ltd,117550
WARRINGTON BOROUGH COUNCIL,http://opendatacommunities.org/id/unitary-authority/warrington,FWB,DSG Independent School Fees,32011,Fees (Including Agents Fees),441450,03/06/2020,5100430287,2895.37,Belmont School Limited,400047
WARRINGTON BOROUGH COUNCIL,http://opendatacommunities.org/id/unitary-authority/warrington,FWB,BCF - Padgate House,54760,Supplies & Services - Covid 19,499919,03/06/2020,5100430288,2100,Easy Clean Limited,117665
WARRINGTON BOROUGH COUNCIL,http://opendatacommunities.org/id/unitary-authority/warrington,FWB,DSG Independent School Fees,32011,Fees (Including Agents Fees),441450,03/06/2020,5100430289,2935.23,Belmont School Limited,400047
WARRINGTON BOROUGH COUNCIL,http://opendatacommunities.org/id/unitary-authority/warrington,FWB,DSG Independent School Fees,32011,Fees (Including Agents Fees),441450,03/06/2020,5100430290,2970,Belmont School Limited,400047
WARRINGTON BOROUGH COUNCIL,http://opendatacommunities.org/id/unitary-authority/warrington,FWB,DSG Independent School Fees,32011,Fees (Including Agents Fees),441450,03/06/2020,5100430291,2935.23,Belmont School Limited,400047
WARRINGTON BOROUGH COUNCIL,http://opendatacommunities.org/id/unitary-authority/warrington,FWB,DSG Independent School Fees,32011,Fees (Including Agents Fees),441450,03/06/2020,5100430292,2895.37,Belmont School Limited,400047
WARRINGTON BOROUGH COUNCIL,http://opendatacommunities.org/id/unitary-authority/warrington,FWB,DSG Independent School Fees,32011,Fees (Including Agents Fees),441450,03/06/2020,5100430293,2935.23,Belmont School Limited,400047
WARRINGTON BOROUGH COUNCIL,http://opendatacommunities.org/id/unitary-authority/warrington,DG0,Project Delivery & Communications,43830,Supplies & Services - Covid 19,499919,03/06/2020,5100430294,53250,Bubble Customised Clothing,116019
WARRINGTON BOROUGH COUNCIL,http://opendatacommunities.org/id/unitary-authority/warrington,ET0,Transport Holding Account,41311,Vehicle Hire Charges,320000,03/06/2020,5100430296,1534,F G Rowland Ltd,102555
WARRINGTON BOROUGH COUNCIL,http://opendatacommunities.org/id/unitary-authority/warrington,ET0,Transport Holding Account,41311,Vehicle Hire Charges,320000,03/06/2020,5100430298,1534,F G Rowland Ltd,102555
WARRINGTON BOROUGH COUNCIL,http://opendatacommunities.org/id/unitary-authority/warrington,ET0,Transport Holding Account,41311,Vehicle Hire Charges,320000,06/06/2020,5100430299,770,B & T Skip Hire,100921
WARRINGTON BOROUGH COUNCIL,http://opendatacommunities.org/id/unitary-authority/warrington,FWB,DSG Independent School Fees,32011,Fees (Including Agents Fees),441450,03/06/2020,5100430300,4798.58,Pontville School,109772
WARRINGTON BOROUGH COUNCIL,http://opendatacommunities.org/id/unitary-authority/warrington,FWB,DSG Independent School Fees,32011,Fees (Including Agents Fees),441450,03/06/2020,5100430301,6007.17,Pontville School,109772
WARRINGTON BOROUGH COUNCIL,http://opendatacommunities.org/id/unitary-authority/warrington,FWB,DSG Independent School Fees,32011,Fees (Including Agents Fees),441450,03/06/2020,5100430302,6007.17,Pontville School,109772
WARRINGTON BOROUGH COUNCIL,http://opendatacommunities.org/id/unitary-authority/warrington,FWB,DSG Post-16 Special Educational Needs,32309,Fees (Including Agents Fees),441450,03/06/2020,5100430303,4561.92,Pontville School,109772
WARRINGTON BOROUGH COUNCIL,http://opendatacommunities.org/id/unitary-authority/warrington,FWB,DSG Independent School Fees,32011,Fees (Including Agents Fees),441450,03/06/2020,5100430304,5477.75,Cedar House School,111289
WARRINGTON BOROUGH COUNCIL,http://opendatacommunities.org/id/unitary-authority/warrington,FWB,Special Schools Transport,33208,Statemented - Special Unit Pupil Transpo,300750,03/06/2020,5100430305,1425,Warrington Cars,113774
WARRINGTON BOROUGH COUNCIL,http://opendatacommunities.org/id/unitary-authority/warrington,FWB,Special Schools Transport,33208,Statemented - Special Unit Pupil Transpo,300750,03/06/2020,5100430306,1725,Warrington Cars,113774
WARRINGTON BOROUGH COUNCIL,http://opendatacommunities.org/id/unitary-authority/warrington,DG0,Business Exchange,22260,Computer Software - Maintenance,450850,03/06/2020,5100430309,1365,Carpe Diem Incorporated Limited,109442
WARRINGTON BOROUGH COUNCIL,http://opendatacommunities.org/id/unitary-authority/warrington,ET0,Waste Recycling,41820,Supplies & Services - Covid 19,499919,03/06/2020,5100430311,3995,Blue Arrow Traffic Management Ltd,109292
WARRINGTON BOROUGH COUNCIL,http://opendatacommunities.org/id/unitary-authority/warrington,ET0,Waste Recycling,41820,Supplies & Services - Covid 19,499919,03/06/2020,5100430312,8050,Blue Arrow Traffic Management Ltd,109292
WARRINGTON BOROUGH COUNCIL,http://opendatacommunities.org/id/unitary-authority/warrington,ET0,Waste Recycling,41820,Green Waste Treatment,530800,03/06/2020,5100430313,27488.44,White Moss Horticulture Ltd,104283
WARRINGTON BOROUGH COUNCIL,http://opendatacommunities.org/id/unitary-authority/warrington,ET0,Waste Recycling,41820,Green Waste Treatment,530800,03/06/2020,5100430315,3608.86,White Moss Horticulture Ltd,104283
WARRINGTON BOROUGH COUNCIL,http://opendatacommunities.org/id/unitary-authority/warrington,PIO,People & Improvement Other,85002,Minor Adaptations<750,400700,03/06/2020,5100430318,1585,The Excellent Ramp System,100407
WARRINGTON BOROUGH COUNCIL,http://opendatacommunities.org/id/unitary-authority/warrington,ET0,Transport Holding Account,41311,Maintenance Work - Sub Contractors,301150,10/06/2020,5100430319,2048.34,Terberg Matec Uk Ltd,105173
WARRINGTON BOROUGH COUNCIL,http://opendatacommunities.org/id/unitary-authority/warrington,PIO,People & Improvement Other,85002,Lifts from Stock,400850,03/06/2020,5100430321,1380,AMW Lift & Mobility Services Ltd,112766
WARRINGTON BOROUGH COUNCIL,http://opendatacommunities.org/id/unitary-authority/warrington,PIO,People & Improvement Other,85002,Lifts from Stock,400850,03/06/2020,5100430324,2560,AMW Lift & Mobility Services Ltd,112766
WARRINGTON BOROUGH COUNCIL,http://opendatacommunities.org/id/unitary-authority/warrington,PIO,People & Improvement Other,85002,Lifts from Stock,400850,03/06/2020,5100430326,847.5,AMW Lift & Mobility Services Ltd,112766
WARRINGTON BOROUGH COUNCIL,http://opendatacommunities.org/id/unitary-authority/warrington,PIO,People & Improvement Other,85002,Lifts from Stock,400850,03/06/2020,5100430327,1993,AMW Lift & Mobility Services Ltd,112766
WARRINGTON BOROUGH COUNCIL,http://opendatacommunities.org/id/unitary-authority/warrington,FWB,BCF - Equipment Store,54930,Annual Maintenance,442100,03/06/2020,5100430328,1700,AMW Lift & Mobility Services Ltd,112766
WARRINGTON BOROUGH COUNCIL,http://opendatacommunities.org/id/unitary-authority/warrington,PIO,People & Improvement Other,85002,Lifts from Stock,400850,03/06/2020,5100430329,960,AMW Lift & Mobility Services Ltd,112766
WARRINGTON BOROUGH COUNCIL,http://opendatacommunities.org/id/unitary-authority/warrington,DG0,Employment Skills,22210,"Campaigns,  Projects and Events",491950,03/06/2020,5100430336,541.67,Dine Ltd,102091
WARRINGTON BOROUGH COUNCIL,http://opendatacommunities.org/id/unitary-authority/warrington,ENO,Priority Infrastructure,82009,Consult.& Prof. Serv,440000,03/06/2020,5100430340,788,Geldards,116986
WARRINGTON BOROUGH COUNCIL,http://opendatacommunities.org/id/unitary-authority/warrington,DG0,West Annexe,45161,Maintenance of Plant & Machinery,250050,06/06/2020,5100430341,1149.45,Generator Power Ltd,117550
WARRINGTON BOROUGH COUNCIL,http://opendatacommunities.org/id/unitary-authority/warrington,DG0,West Annexe,45161,Maintenance of Plant & Machinery,250050,06/06/2020,5100430342,529.3,Generator Power Ltd,117550
WARRINGTON BOROUGH COUNCIL,http://opendatacommunities.org/id/unitary-authority/warrington,DG0,West Annexe,45161,Maintenance of Plant & Machinery,250050,06/06/2020,5100430343,1112.38,Generator Power Ltd,117550
WARRINGTON BOROUGH COUNCIL,http://opendatacommunities.org/id/unitary-authority/warrington,ET0,Construction Stores Overhead Account,41320,Uniforms,420000,16/06/2020,5100430347,598.8,SMI INT Group Ltd,117262
WARRINGTON BOROUGH COUNCIL,http://opendatacommunities.org/id/unitary-authority/warrington,ENO,Priority Infrastructure,82009,Environmental Works,531050,03/06/2020,5100430370,18720.42,Dowhigh Ltd,105350
WARRINGTON BOROUGH COUNCIL,http://opendatacommunities.org/id/unitary-authority/warrington,ET0,Waste Disposal,41830,Residual Waste Disposal,530500,04/06/2020,5100430373,77410.21,VIRIDOR WASTE MANAGEMENT,117566
WARRINGTON BOROUGH COUNCIL,http://opendatacommunities.org/id/unitary-authority/warrington,ENO,Highways Other,82005,Patching Cat2,532300,04/06/2020,5100430374,3073.96,Tarmac,100489
WARRINGTON BOROUGH COUNCIL,http://opendatacommunities.org/id/unitary-authority/warrington,ET0,Or Rm C'way & F'way,44260,M.C.R.Flexible Cat1,530850,04/06/2020,5100430374,21729.05,Tarmac,100489
WARRINGTON BOROUGH COUNCIL,http://opendatacommunities.org/id/unitary-authority/warrington,ET0,Or Rm C'way & F'way,44260,Fct Cat1,530950,04/06/2020,5100430374,23584.67,Tarmac,100489
WARRINGTON BOROUGH COUNCIL,http://opendatacommunities.org/id/unitary-authority/warrington,ET0,Or Rm C'way & F'way,44260,Sign Maint Cat1,531300,04/06/2020,5100430374,661.84,Tarmac,100489
WARRINGTON BOROUGH COUNCIL,http://opendatacommunities.org/id/unitary-authority/warrington,ET0,Or Rm C'way & F'way,44260,Rep.Cty Rds Drainage,532150,04/06/2020,5100430374,1624,Tarmac,100489
WARRINGTON BOROUGH COUNCIL,http://opendatacommunities.org/id/unitary-authority/warrington,FWB,DSG Post-16 Special Educational Needs,32309,Fees (Including Agents Fees),441450,16/06/2020,5100430375,65485.63,Priestley College,400151
WARRINGTON BOROUGH COUNCIL,http://opendatacommunities.org/id/unitary-authority/warrington,FWB,Effective Practice,33300,Agency Supply ,180000,04/06/2020,5100430376,218930.58,Cheshire West And Chester,103357
WARRINGTON BOROUGH COUNCIL,http://opendatacommunities.org/id/unitary-authority/warrington,ET0,Waste Disposal,41830,Residual Waste Disposal,530500,04/06/2020,5100430377,90437.63,VIRIDOR WASTE MANAGEMENT,117566
WARRINGTON BOROUGH COUNCIL,http://opendatacommunities.org/id/unitary-authority/warrington,ET0,Waste Disposal,41830,Residual Waste Disposal,530500,04/06/2020,5100430378,66159.56,VIRIDOR WASTE MANAGEMENT,117566
WARRINGTON BOROUGH COUNCIL,http://opendatacommunities.org/id/unitary-authority/warrington,ET0,Waste Disposal,41830,Residual Waste Disposal,530500,04/06/2020,5100430379,83846.14,VIRIDOR WASTE MANAGEMENT,117566
WARRINGTON BOROUGH COUNCIL,http://opendatacommunities.org/id/unitary-authority/warrington,FWB,Special Schools Transport,33208,Statemented - Special Unit Pupil Transpo,300750,04/06/2020,5100430409,1425,Direct Taxis,101873
WARRINGTON BOROUGH COUNCIL,http://opendatacommunities.org/id/unitary-authority/warrington,ET0,Waste Disposal,41830,Residual Waste Disposal,530500,04/06/2020,5100430410,108171.08,VIRIDOR WASTE MANAGEMENT,117566
WARRINGTON BOROUGH COUNCIL,http://opendatacommunities.org/id/unitary-authority/warrington,RSC,ICT Centralised Budget,23100,Computer Software - Maintenance,450850,04/06/2020,5100430411,14968,Capita Business Services Ltd,105516
WARRINGTON BOROUGH COUNCIL,http://opendatacommunities.org/id/unitary-authority/warrington,RSC,ICT Centralised Budget,23100,Computer Software - Maintenance,450850,04/06/2020,5100430411,57510.72,Capita Business Services Ltd,105516
WARRINGTON BOROUGH COUNCIL,http://opendatacommunities.org/id/unitary-authority/warrington,DG0,Planning Policy,43440,Consult.& Prof. Serv,440000,04/06/2020,5100430412,60234,Cheshire West And Chester,103357
WARRINGTON BOROUGH COUNCIL,http://opendatacommunities.org/id/unitary-authority/warrington,NEO,Neighbourhood & Community Other,83002,Equipment Purchase & Contract,400000,04/06/2020,5100430413,56711.41,Livewire,110692
WARRINGTON BOROUGH COUNCIL,http://opendatacommunities.org/id/unitary-authority/warrington,NEO,IT Projects,83003,Computer Software - Purchase,450800,04/06/2020,5100430417,3493,Insight Direct Uk Ltd,101883
WARRINGTON BOROUGH COUNCIL,http://opendatacommunities.org/id/unitary-authority/warrington,ET0,Golf Course Client,41432,Supplies & Services - Covid 19,499919,06/06/2020,5100430418,831.71,Container Cabins Limited,113475
WARRINGTON BOROUGH COUNCIL,http://opendatacommunities.org/id/unitary-authority/warrington,FWB,Homelessness,43650,Emergency Accommodation Allowance,550500,04/06/2020,5100430423,1120,DANL Limited,116459
WARRINGTON BOROUGH COUNCIL,http://opendatacommunities.org/id/unitary-authority/warrington,ET0,Transport Holding Account,41311,Veh Maint. Materials,300000,04/06/2020,5100430425,1256.29,Man Truck & Bus Uk Ltd.,102737
WARRINGTON BOROUGH COUNCIL,http://opendatacommunities.org/id/unitary-authority/warrington,DG0,Site Management,43530,Sewer Survey,440050,04/06/2020,5100430426,1645,General Utilities Services Ltd,101975
WARRINGTON BOROUGH COUNCIL,http://opendatacommunities.org/id/unitary-authority/warrington,DG0,Fiddlers Ferry Marina,51001,Specific Work,200200,04/06/2020,5100430436,1995,B & K Landscapes,105448
WARRINGTON BOROUGH COUNCIL,http://opendatacommunities.org/id/unitary-authority/warrington,ET0,Street Lighting Client,44241,Lighting Energy Char,531550,04/06/2020,5100430437,66123.77,Npower Electricity,101884
WARRINGTON BOROUGH COUNCIL,http://opendatacommunities.org/id/unitary-authority/warrington,ET0,Street Lighting Client,44241,Lighting Energy Char,531550,04/06/2020,5100430438,95000,Npower Electricity,101884
WARRINGTON BOROUGH COUNCIL,http://opendatacommunities.org/id/unitary-authority/warrington,ET0,Street Lighting Client,44241,Lighting Energy Char,531550,04/06/2020,5100430438,3409.42,Npower Electricity,101884
WARRINGTON BOROUGH COUNCIL,http://opendatacommunities.org/id/unitary-authority/warrington,ET0,Street Lighting Client,44241,Lighting Energy Char,531550,04/06/2020,5100430439,51229.38,Npower Electricity,101884
WARRINGTON BOROUGH COUNCIL,http://opendatacommunities.org/id/unitary-authority/warrington,FWB,Children with Disabilities,31005,Transport SLA,300400,04/06/2020,5100430441,2400,Warrington Cars,113774
WARRINGTON BOROUGH COUNCIL,http://opendatacommunities.org/id/unitary-authority/warrington,FWB,Special Schools Transport,33208,Statemented - Special Unit Pupil Transpo,300750,04/06/2020,5100430442,2100,Warrington Cars,113774
WARRINGTON BOROUGH COUNCIL,http://opendatacommunities.org/id/unitary-authority/warrington,FWB,Transport - Adult Social Care,54950,Transport-Snad Cot,300600,04/06/2020,5100430443,1760,Warrington Cars,113774
WARRINGTON BOROUGH COUNCIL,http://opendatacommunities.org/id/unitary-authority/warrington,FWB,Transport - Adult Social Care,54950,Transport-Snad Cot,300600,04/06/2020,5100430444,1540,Warrington Cars,113774
WARRINGTON BOROUGH COUNCIL,http://opendatacommunities.org/id/unitary-authority/warrington,FWB,Special Schools Transport,33208,Statemented - Special Unit Pupil Transpo,300750,04/06/2020,5100430446,1170,Warrington Cars,113774
WARRINGTON BOROUGH COUNCIL,http://opendatacommunities.org/id/unitary-authority/warrington,FWB,Special Schools Transport,33208,Statemented - Special Unit Pupil Transpo,300750,04/06/2020,5100430447,1185,Warrington Cars,113774
WARRINGTON BOROUGH COUNCIL,http://opendatacommunities.org/id/unitary-authority/warrington,FWB,Special Schools Transport,33208,Statemented - Special Unit Pupil Transpo,300750,04/06/2020,5100430448,2400,Warrington Cars,113774
WARRINGTON BOROUGH COUNCIL,http://opendatacommunities.org/id/unitary-authority/warrington,FWB,DSG Post-16 Special Educational Needs,32309,Fees (Including Agents Fees),441450,05/06/2020,5100430449,202717.57,Seashell Trust,103082
WARRINGTON BOROUGH COUNCIL,http://opendatacommunities.org/id/unitary-authority/warrington,FWB,Transport - Adult Social Care,54950,Transport-Snad Cot,300600,04/06/2020,5100430450,2175,Direct Taxis,101873
WARRINGTON BOROUGH COUNCIL,http://opendatacommunities.org/id/unitary-authority/warrington,FWB,Transport - Adult Social Care,54950,Transport-Snad Cot,300600,04/06/2020,5100430451,1216,Direct Taxis,101873
WARRINGTON BOROUGH COUNCIL,http://opendatacommunities.org/id/unitary-authority/warrington,FWB,Special Schools Transport,33208,Statemented - Special Unit Pupil Transpo,300750,04/06/2020,5100430452,990,Direct Taxis,101873
WARRINGTON BOROUGH COUNCIL,http://opendatacommunities.org/id/unitary-authority/warrington,FWB,Special Schools Transport,33208,Statemented - Special Unit Pupil Transpo,300750,04/06/2020,5100430453,1800,Direct Taxis,101873
WARRINGTON BOROUGH COUNCIL,http://opendatacommunities.org/id/unitary-authority/warrington,FWB,Special Schools Transport,33208,Statemented - Special Unit Pupil Transpo,300750,04/06/2020,5100430454,2265,Direct Taxis,101873
WARRINGTON BOROUGH COUNCIL,http://opendatacommunities.org/id/unitary-authority/warrington,FWB,Special Schools Transport,33208,Statemented - Special Unit Pupil Transpo,300750,04/06/2020,5100430455,1950,Direct Taxis,101873
WARRINGTON BOROUGH COUNCIL,http://opendatacommunities.org/id/unitary-authority/warrington,FWB,Special Schools Transport,33208,Statemented - Special Unit Pupil Transpo,300750,04/06/2020,5100430456,1408,Direct Taxis,101873
WARRINGTON BOROUGH COUNCIL,http://opendatacommunities.org/id/unitary-authority/warrington,FWB,Special Schools Transport,33208,Statemented - Special Unit Pupil Transpo,300750,04/06/2020,5100430457,1530,Direct Taxis,101873
WARRINGTON BOROUGH COUNCIL,http://opendatacommunities.org/id/unitary-authority/warrington,FWB,Transport - Adult Social Care,54950,Transport-Snad Cot,300600,04/06/2020,5100430458,1330,Direct Taxis,101873
WARRINGTON BOROUGH COUNCIL,http://opendatacommunities.org/id/unitary-authority/warrington,FWB,Special Schools Transport,33208,Statemented - Special Unit Pupil Transpo,300750,04/06/2020,5100430459,1500,Maguires Executive Transport,111135
WARRINGTON BOROUGH COUNCIL,http://opendatacommunities.org/id/unitary-authority/warrington,FWB,Transport - Adult Social Care,54950,Transport-Snad Cot,300600,04/06/2020,5100430460,1036,Redacted for personal data,112712
WARRINGTON BOROUGH COUNCIL,http://opendatacommunities.org/id/unitary-authority/warrington,RSC,HR Advisory,20005,Legal Costs Incurred,440200,05/06/2020,5100430495,769,Weightmans Office AC,101452
WARRINGTON BOROUGH COUNCIL,http://opendatacommunities.org/id/unitary-authority/warrington,FWB,DSG - Medical Needs,32002,Eotas Pupil Funding,490350,05/06/2020,5100430497,770,Integra People,116891
WARRINGTON BOROUGH COUNCIL,http://opendatacommunities.org/id/unitary-authority/warrington,FWB,DSG - Medical Needs,32002,Eotas Pupil Funding,490350,05/06/2020,5100430498,2100,Integra People,116891
WARRINGTON BOROUGH COUNCIL,http://opendatacommunities.org/id/unitary-authority/warrington,ENO,Highways LTP,82004,Consult.& Prof. Serv,440000,05/06/2020,5100430499,19446.9,Mott Macdonald Ltd,104950
WARRINGTON BOROUGH COUNCIL,http://opendatacommunities.org/id/unitary-authority/warrington,ET0,Waste Disposal,41830,Residual Waste Disposal,530500,05/06/2020,5100430500,13006.09,VIRIDOR WASTE MANAGEMENT,117566
WARRINGTON BOROUGH COUNCIL,http://opendatacommunities.org/id/unitary-authority/warrington,FWB,CIN Team 4,31014,Fees (Including Agents Fees),441450,05/06/2020,5100430501,1381.4,Network Ventures Ltd,110554
WARRINGTON BOROUGH COUNCIL,http://opendatacommunities.org/id/unitary-authority/warrington,RSC,ICT Centralised Budget,23100,Computer Software - Maintenance,450850,05/06/2020,5100430502,2602,SocialSignin,115971
WARRINGTON BOROUGH COUNCIL,http://opendatacommunities.org/id/unitary-authority/warrington,RSC,HR Advisory,20005,Consult.& Prof. Serv,440000,05/06/2020,5100430504,8426.83,People Asset Management Ltd,105943
WARRINGTON BOROUGH COUNCIL,http://opendatacommunities.org/id/unitary-authority/warrington,FWB,BCF - Equipment Store,54930,Annual Maintenance,442100,05/06/2020,5100430511,2272.01,Prism Medical UK,108616
WARRINGTON BOROUGH COUNCIL,http://opendatacommunities.org/id/unitary-authority/warrington,FWB,BCF - Equipment Store,54930,Annual Maintenance,442100,05/06/2020,5100430512,900,Prism Medical UK,108616
WARRINGTON BOROUGH COUNCIL,http://opendatacommunities.org/id/unitary-authority/warrington,FWB,Children's Contracts,31116,Payment of Grants,470050,06/06/2020,5100430513,12340.2,National Youth Advocacy Service,440082
WARRINGTON BOROUGH COUNCIL,http://opendatacommunities.org/id/unitary-authority/warrington,RSC,ICT Centralised Budget,23100,Computer Software - Maintenance,450850,06/06/2020,5100430515,6798,Tunstall Healthcare UK Ltd,105427
WARRINGTON BOROUGH COUNCIL,http://opendatacommunities.org/id/unitary-authority/warrington,FWB,BCF - Padgate House,54760,Equipment Purchase & Contract,400000,05/06/2020,5100430516,1589.08,Rentokil Initial PLC,117677
WARRINGTON BOROUGH COUNCIL,http://opendatacommunities.org/id/unitary-authority/warrington,ET0,Land Drainage,44120,Consult.& Prof. Serv,440000,10/06/2020,5100430518,612.75,Environment Agency,440120
WARRINGTON BOROUGH COUNCIL,http://opendatacommunities.org/id/unitary-authority/warrington,NEO,Neighbourhood & Community Other,83002,Consult.& Prof. Serv,440000,05/06/2020,5100430519,3867.5,Baker Mallett LLP,116160
WARRINGTON BOROUGH COUNCIL,http://opendatacommunities.org/id/unitary-authority/warrington,DG0,Business Exchange,22260,Computer Software - Maintenance,450850,05/06/2020,5100430522,1500,Carpe Diem Incorporated Limited,109442
WARRINGTON BOROUGH COUNCIL,http://opendatacommunities.org/id/unitary-authority/warrington,ENO,Priority Infrastructure,82009,Consult.& Prof. Serv,440000,05/06/2020,5100430529,12599.62,Mott Macdonald Ltd,104950
WARRINGTON BOROUGH COUNCIL,http://opendatacommunities.org/id/unitary-authority/warrington,ENO,Priority Infrastructure,82009,Consult.& Prof. Serv,440000,05/06/2020,5100430530,1197,Mott Macdonald Ltd,104950
WARRINGTON BOROUGH COUNCIL,http://opendatacommunities.org/id/unitary-authority/warrington,NEO,IT Projects,83003,Computer Software - Purchase,450800,16/06/2020,5100430532,67405,Capita Business Services Ltd,105516
WARRINGTON BOROUGH COUNCIL,http://opendatacommunities.org/id/unitary-authority/warrington,ENO,Environment & Regeneration Other,82002,Annual Maintenance,442100,05/06/2020,5100430533,1300,David Webster & Sons Ltd,102202
WARRINGTON BOROUGH COUNCIL,http://opendatacommunities.org/id/unitary-authority/warrington,ENO,Environment & Regeneration Other,82002,Annual Maintenance,442100,05/06/2020,5100430533,1300,David Webster & Sons Ltd,102202
WARRINGTON BOROUGH COUNCIL,http://opendatacommunities.org/id/unitary-authority/warrington,RSC,Printing & Graphics,23040,External Printing,430100,05/06/2020,5100430538,1100,Hcc Promotions Ltd,103915
WARRINGTON BOROUGH COUNCIL,http://opendatacommunities.org/id/unitary-authority/warrington,ET0,Street Lighting Client,44241,Lighting Energy Char,531550,05/06/2020,5100430541,6726.87,Npower Electricity,101884
WARRINGTON BOROUGH COUNCIL,http://opendatacommunities.org/id/unitary-authority/warrington,ET0,Street Lighting Client,44241,Lighting Energy Char,531550,06/06/2020,5100430542,646.98,Npower Electricity,101884
WARRINGTON BOROUGH COUNCIL,http://opendatacommunities.org/id/unitary-authority/warrington,FWB,BCF - Equipment Store,54930,Equipment Purchase & Contract,400000,06/06/2020,5100430548,1047.45,Lisclare Ltd,100553
WARRINGTON BOROUGH COUNCIL,http://opendatacommunities.org/id/unitary-authority/warrington,ET0,Waste Recycling,41820,CRC Contract,530450,05/06/2020,5100430549,4055.05,Environmental Waste Controls Ltd,102474
WARRINGTON BOROUGH COUNCIL,http://opendatacommunities.org/id/unitary-authority/warrington,DG0,Building Maintenance,43220,Consult.& Prof. Serv,440000,05/06/2020,5100430553,1105.65,Redacted for personal data,102651
WARRINGTON BOROUGH COUNCIL,http://opendatacommunities.org/id/unitary-authority/warrington,ET0,Transport Holding Account,41311,Vehicle Hire Charges,320000,16/06/2020,5100430556,1171.76,Enterprise Flex E Rent,100597
WARRINGTON BOROUGH COUNCIL,http://opendatacommunities.org/id/unitary-authority/warrington,ET0,Transport Holding Account,41311,Vehicle Hire Charges,320000,16/06/2020,5100430557,7711.1,Enterprise Flex E Rent,100597
WARRINGTON BOROUGH COUNCIL,http://opendatacommunities.org/id/unitary-authority/warrington,RSC,Welfare Support,10360,"Campaigns,  Projects and Events",491950,10/06/2020,5100430567,2265,Changing Lives in Cheshire,111607
WARRINGTON BOROUGH COUNCIL,http://opendatacommunities.org/id/unitary-authority/warrington,FWB,Housing Strategy,43620,Equipment Purchase & Contract,400000,05/06/2020,5100430568,2100,Complete Home Energy Systems,111861
WARRINGTON BOROUGH COUNCIL,http://opendatacommunities.org/id/unitary-authority/warrington,ET0,Crematorium,41411,Grounds Maintenance - External,280000,05/06/2020,5100430569,950,Iccm,101066
WARRINGTON BOROUGH COUNCIL,http://opendatacommunities.org/id/unitary-authority/warrington,ET0,Waste Recycling,41820,Waste Initiatives,443200,05/06/2020,5100430570,6560.4,Mgb Plastics Ltd,103465
WARRINGTON BOROUGH COUNCIL,http://opendatacommunities.org/id/unitary-authority/warrington,ENP,Environment & Regeneration,82000,Materials,400500,10/06/2020,5100430572,11617.5,Smith Bros (Caer Conan) Wh'Sale Ltd,105136
WARRINGTON BOROUGH COUNCIL,http://opendatacommunities.org/id/unitary-authority/warrington,ET0,Transport Holding Account,41311,Vehicle Hire Charges,320000,05/06/2020,5100430574,1651.68,West Wallasey Car Hire Ltd,103584
WARRINGTON BOROUGH COUNCIL,http://opendatacommunities.org/id/unitary-authority/warrington,COR,Other Commercial Prop.,43560,Consult.& Prof. Serv,440000,05/06/2020,5100430578,542,Brabners LLP,117064
WARRINGTON BOROUGH COUNCIL,http://opendatacommunities.org/id/unitary-authority/warrington,DG0,Contingency,45227,Maintenance of Plant & Machinery,250050,05/06/2020,5100430586,4462.75,Mears Limited,114197
WARRINGTON BOROUGH COUNCIL,http://opendatacommunities.org/id/unitary-authority/warrington,DG0,Contingency,45227,Maintenance of Plant & Machinery,250050,05/06/2020,5100430586,910.54,Mears Limited,114197
WARRINGTON BOROUGH COUNCIL,http://opendatacommunities.org/id/unitary-authority/warrington,DG0,Contingency,45227,Maintenance of Plant & Machinery,250050,05/06/2020,5100430587,32413.38,Mears Limited,114197
WARRINGTON BOROUGH COUNCIL,http://opendatacommunities.org/id/unitary-authority/warrington,DG0,Contingency,45227,Maintenance of Plant & Machinery,250050,05/06/2020,5100430589,13867.42,Mears Limited,114197
WARRINGTON BOROUGH COUNCIL,http://opendatacommunities.org/id/unitary-authority/warrington,DG0,Contingency,45227,Maintenance of Plant & Machinery,250050,05/06/2020,5100430590,12687.19,Mears Limited,114197
WARRINGTON BOROUGH COUNCIL,http://opendatacommunities.org/id/unitary-authority/warrington,FWB,Special Schools Transport,33208,Statemented - Special Unit Pupil Transpo,300750,07/06/2020,5100430601,1026,Abba Cars,105302
WARRINGTON BOROUGH COUNCIL,http://opendatacommunities.org/id/unitary-authority/warrington,FWB,CIN Team 6,31016,Transport SLA,300400,07/06/2020,5100430602,1390.8,Abba Cars,105302
WARRINGTON BOROUGH COUNCIL,http://opendatacommunities.org/id/unitary-authority/warrington,FWB,Special Schools Transport,33208,Statemented - Special Unit Pupil Transpo,300750,07/06/2020,5100430603,1326.2,Abba Cars,105302
WARRINGTON BOROUGH COUNCIL,http://opendatacommunities.org/id/unitary-authority/warrington,FWB,Special Schools Transport,33208,Statemented - Special Unit Pupil Transpo,300750,07/06/2020,5100430604,1717.6,Abba Cars,105302
WARRINGTON BOROUGH COUNCIL,http://opendatacommunities.org/id/unitary-authority/warrington,FWB,Special Schools Transport,33208,Statemented - Special Unit Pupil Transpo,300750,07/06/2020,5100430605,946.2,Abba Cars,105302
WARRINGTON BOROUGH COUNCIL,http://opendatacommunities.org/id/unitary-authority/warrington,FWB,Special Schools Transport,33208,Statemented - Special Unit Pupil Transpo,300750,07/06/2020,5100430606,714.4,Abba Cars,105302
WARRINGTON BOROUGH COUNCIL,http://opendatacommunities.org/id/unitary-authority/warrington,FWB,Transport - Adult Social Care,54950,Transport-Snad Cot,300600,07/06/2020,5100430607,1364,Andys Bus Company,100654
WARRINGTON BOROUGH COUNCIL,http://opendatacommunities.org/id/unitary-authority/warrington,FWB,Special Schools Transport,33208,Statemented - Special Unit Pupil Transpo,300750,07/06/2020,5100430608,3415,Andys Bus Company,100654
WARRINGTON BOROUGH COUNCIL,http://opendatacommunities.org/id/unitary-authority/warrington,FWB,Supporting People Contracts,53260,Sheltd/Xtra Care Hsing and Comm Alarms,535050,07/06/2020,5100430675,636.12,Anchor Ha,100886
WARRINGTON BOROUGH COUNCIL,http://opendatacommunities.org/id/unitary-authority/warrington,FWB,Supporting People Contracts,53260,Sheltd/Xtra Care Hsing and Comm Alarms,535050,07/06/2020,5100430682,1998.44,Warrington Housing Rent,103168
WARRINGTON BOROUGH COUNCIL,http://opendatacommunities.org/id/unitary-authority/warrington,FWB,Supporting People Contracts,53260,Sheltd/Xtra Care Hsing and Comm Alarms,535050,07/06/2020,5100430683,966.96,Warrington Housing Rent,103168
WARRINGTON BOROUGH COUNCIL,http://opendatacommunities.org/id/unitary-authority/warrington,FWB,Supporting People Contracts,53260,People with Mental Health Problems,535200,07/06/2020,5100430685,4461.53,Warrington Community Living,105229
WARRINGTON BOROUGH COUNCIL,http://opendatacommunities.org/id/unitary-authority/warrington,FWB,Supporting People Contracts,53260,Sheltd/Xtra Care Hsing and Comm Alarms,535050,07/06/2020,5100430686,10624.32,Warrington Community Living,105229
WARRINGTON BOROUGH COUNCIL,http://opendatacommunities.org/id/unitary-authority/warrington,FWB,Supporting People Contracts,53260,People with Mental Health Problems,535200,07/06/2020,5100430687,2977.54,Carr Gomm,106573
WARRINGTON BOROUGH COUNCIL,http://opendatacommunities.org/id/unitary-authority/warrington,FWB,Special Schools Transport,33208,Statemented - Special Unit Pupil Transpo,300750,08/06/2020,5100430726,1260,Arrivals Star,101879
WARRINGTON BOROUGH COUNCIL,http://opendatacommunities.org/id/unitary-authority/warrington,FWB,Special Schools Transport,33208,Statemented - Special Unit Pupil Transpo,300750,08/06/2020,5100430727,768,Arrivals Star,101879
WARRINGTON BOROUGH COUNCIL,http://opendatacommunities.org/id/unitary-authority/warrington,FWB,Transport - Adult Social Care,54950,Transport-Snad Cot,300600,08/06/2020,5100430728,640,Arrivals Star,101879
WARRINGTON BOROUGH COUNCIL,http://opendatacommunities.org/id/unitary-authority/warrington,FWB,Special Schools Transport,33208,Statemented - Special Unit Pupil Transpo,300750,08/06/2020,5100430729,1150,Arrivals Star,101879
WARRINGTON BOROUGH COUNCIL,http://opendatacommunities.org/id/unitary-authority/warrington,ET0,Transport Holding Account,41311,Diesel,300100,08/06/2020,5100430730,17044.07,Standard Fuel Oils Ltd,117478
WARRINGTON BOROUGH COUNCIL,http://opendatacommunities.org/id/unitary-authority/warrington,ET0,Transport Holding Account,41311,Oil - Gas,301250,08/06/2020,5100430731,1182.24,Standard Fuel Oils Ltd,117478
WARRINGTON BOROUGH COUNCIL,http://opendatacommunities.org/id/unitary-authority/warrington,FWB,Effective Practice,33300,Postages,450000,08/06/2020,5100430734,1861.38,Halton Borough Council,410008
WARRINGTON BOROUGH COUNCIL,http://opendatacommunities.org/id/unitary-authority/warrington,ET0,Transport Holding Account,41311,Vehicle Hire Charges,320000,08/06/2020,5100430738,1188,Peter Douglass Platforms,104676
WARRINGTON BOROUGH COUNCIL,http://opendatacommunities.org/id/unitary-authority/warrington,ET0,Transport Holding Account,41311,Vehicle Hire Charges,320000,08/06/2020,5100430739,1188,Peter Douglass Platforms,104676
WARRINGTON BOROUGH COUNCIL,http://opendatacommunities.org/id/unitary-authority/warrington,ET0,Transport Holding Account,41311,Vehicle Hire Charges,320000,08/06/2020,5100430740,1188,Peter Douglass Platforms,104676
WARRINGTON BOROUGH COUNCIL,http://opendatacommunities.org/id/unitary-authority/warrington,FWB,DSG - Medical Needs,32002,Eotas Pupil Funding,490350,08/06/2020,5100430744,805,Integra People,116891
WARRINGTON BOROUGH COUNCIL,http://opendatacommunities.org/id/unitary-authority/warrington,FWB,DSG - Medical Needs,32002,Eotas Pupil Funding,490350,08/06/2020,5100430745,2240,Integra People,116891
WARRINGTON BOROUGH COUNCIL,http://opendatacommunities.org/id/unitary-authority/warrington,ET0,Paper Recycling (Drivers & Collectors),41842,Waste Initiatives,443200,08/06/2020,5100430746,780,Halton Container Services Limited,101003
WARRINGTON BOROUGH COUNCIL,http://opendatacommunities.org/id/unitary-authority/warrington,ET0,Paper Recycling (Drivers & Collectors),41842,Waste Initiatives,443200,08/06/2020,5100430746,636,Halton Container Services Limited,101003
WARRINGTON BOROUGH COUNCIL,http://opendatacommunities.org/id/unitary-authority/warrington,ET0,Waste Recycling,41820,Waste Initiatives,443200,08/06/2020,5100430747,954,Halton Container Services Limited,101003
WARRINGTON BOROUGH COUNCIL,http://opendatacommunities.org/id/unitary-authority/warrington,ET0,Construction Stores Overhead Account,41320,Materials,400500,08/06/2020,5100430757,1460.2,Cromwell Polythene Ltd,112559
WARRINGTON BOROUGH COUNCIL,http://opendatacommunities.org/id/unitary-authority/warrington,ET0,Construction Stores Overhead Account,41320,Materials,400500,08/06/2020,5100430757,1262.4,Cromwell Polythene Ltd,112559
WARRINGTON BOROUGH COUNCIL,http://opendatacommunities.org/id/unitary-authority/warrington,ET0,Surface Car Parks,44322,Equipment Purchase & Contract,400000,08/06/2020,5100430758,1801.14,Flowbird Smart City UK Ltd,100854
WARRINGTON BOROUGH COUNCIL,http://opendatacommunities.org/id/unitary-authority/warrington,ET0,Construction Stores Overhead Account,41320,Materials,400500,08/06/2020,5100430760,555,Warrington Electrical Supplies,103041
WARRINGTON BOROUGH COUNCIL,http://opendatacommunities.org/id/unitary-authority/warrington,ENO,Environmental Projects,82007,Equipment Purchase & Contract,400000,10/06/2020,5100430767,22198,MSG Automotive Solutions Ltd,117112
WARRINGTON BOROUGH COUNCIL,http://opendatacommunities.org/id/unitary-authority/warrington,FWB,Domestic Abuse,31206,Supplies & Services - Covid 19,499919,10/06/2020,5100430770,950,Weavers Close Limited,116929
WARRINGTON BOROUGH COUNCIL,http://opendatacommunities.org/id/unitary-authority/warrington,FWB,BCF - Telecare/Sensory,54560,Equipment Purchase & Contract,400000,08/06/2020,5100430771,2580,Redacted for personal data,114604
WARRINGTON BOROUGH COUNCIL,http://opendatacommunities.org/id/unitary-authority/warrington,ET0,Walton Estate,41430,Medical & Hygiene Supplies,401050,08/06/2020,5100430773,960.84,Phs Group Ltd,105024
WARRINGTON BOROUGH COUNCIL,http://opendatacommunities.org/id/unitary-authority/warrington,FWB,Trading Standards North West,41564,Consult.& Prof. Serv,440000,08/06/2020,5100430776,1018,Treble 5 Treble 1 Limited,111335
WARRINGTON BOROUGH COUNCIL,http://opendatacommunities.org/id/unitary-authority/warrington,COR,Markets,43711,Hazardous Waste,530600,10/06/2020,5100430777,607.5,ReFood UK Limited,101024
WARRINGTON BOROUGH COUNCIL,http://opendatacommunities.org/id/unitary-authority/warrington,DG0,Local Plan,43445,Consult.& Prof. Serv,440000,08/06/2020,5100430780,6845,Ove Arup & Partners Ltd,110944
WARRINGTON BOROUGH COUNCIL,http://opendatacommunities.org/id/unitary-authority/warrington,ET0,Construction Stores Overhead Account,41320,Uniforms,420000,16/06/2020,5100430781,599.35,SMI INT Group Ltd,117262
WARRINGTON BOROUGH COUNCIL,http://opendatacommunities.org/id/unitary-authority/warrington,FWB,Private Sector Hsg.,43660,Subscriptions,470000,08/06/2020,5100430782,1400,RH Environmental Ltd,110536
WARRINGTON BOROUGH COUNCIL,http://opendatacommunities.org/id/unitary-authority/warrington,FWB,Special Schools Transport,33208,Statemented - Special Unit Pupil Transpo,300750,08/06/2020,5100430790,1736,Diamond Travel,104665
WARRINGTON BOROUGH COUNCIL,http://opendatacommunities.org/id/unitary-authority/warrington,FWB,Special Schools Transport,33208,Statemented - Special Unit Pupil Transpo,300750,08/06/2020,5100430791,2016,Diamond Travel,104665
WARRINGTON BOROUGH COUNCIL,http://opendatacommunities.org/id/unitary-authority/warrington,FWB,Special Schools Transport,33208,Statemented - Special Unit Pupil Transpo,300750,08/06/2020,5100430792,1226,Direct Taxis,101873
WARRINGTON BOROUGH COUNCIL,http://opendatacommunities.org/id/unitary-authority/warrington,CYP,Childrens & Young People,81000,Specific Work,200200,08/06/2020,5100430793,1966.71,Proline Group Ltd IN ADMINISTRATION,116739
WARRINGTON BOROUGH COUNCIL,http://opendatacommunities.org/id/unitary-authority/warrington,CYP,Childrens & Young People,81000,Specific Work,200200,08/06/2020,5100430794,1995.19,Proline Group Ltd IN ADMINISTRATION,116739
WARRINGTON BOROUGH COUNCIL,http://opendatacommunities.org/id/unitary-authority/warrington,ET0,Construction Stores Overhead Account,41320,Uniforms,420000,08/06/2020,5100430816,561.78,Parker Merchanting Ltd,105007
WARRINGTON BOROUGH COUNCIL,http://opendatacommunities.org/id/unitary-authority/warrington,FWB,Special Schools Transport,33208,Statemented - Special Unit Pupil Transpo,300750,08/06/2020,5100430830,2325,Andys Bus Company,100654
WARRINGTON BOROUGH COUNCIL,http://opendatacommunities.org/id/unitary-authority/warrington,FWB,Special Schools Transport,33208,Statemented - Special Unit Pupil Transpo,300750,08/06/2020,5100430831,1063.5,Farrington Taxi Service,100067
WARRINGTON BOROUGH COUNCIL,http://opendatacommunities.org/id/unitary-authority/warrington,FWB,Special Schools Transport,33208,Statemented - Special Unit Pupil Transpo,300750,08/06/2020,5100430833,2280,Mackies Travel,116390
WARRINGTON BOROUGH COUNCIL,http://opendatacommunities.org/id/unitary-authority/warrington,DG0,Employment Skills,22210,Supplies & Services - Covid 19,499919,09/06/2020,5100430836,15843.75,Bubble Customised Clothing,116019
WARRINGTON BOROUGH COUNCIL,http://opendatacommunities.org/id/unitary-authority/warrington,FWB,Special Schools Transport,33208,Statemented - Special Unit Pupil Transpo,300750,09/06/2020,5100430838,2016,Diamond Travel,104665
WARRINGTON BOROUGH COUNCIL,http://opendatacommunities.org/id/unitary-authority/warrington,FWB,DSG Independent School Fees,32011,Fees (Including Agents Fees),441450,09/06/2020,5100430874,71400.29,Bright Futures Care Ltd,114579
WARRINGTON BOROUGH COUNCIL,http://opendatacommunities.org/id/unitary-authority/warrington,FWB,Contracts - SM Commissioning Team 1,55910,Drug Action,443600,16/06/2020,5100430875,129229.58,CGL,440139
WARRINGTON BOROUGH COUNCIL,http://opendatacommunities.org/id/unitary-authority/warrington,FWB,Prison Substance Misuse Services,53840,Drug Action,443600,16/06/2020,5100430876,94806.67,CGL,440139
WARRINGTON BOROUGH COUNCIL,http://opendatacommunities.org/id/unitary-authority/warrington,FWB,Prison Substance Misuse Services,53840,Drug Action,443600,16/06/2020,5100430877,94806.67,CGL,440139
WARRINGTON BOROUGH COUNCIL,http://opendatacommunities.org/id/unitary-authority/warrington,FWB,Effective Practice,33300,Agency Supply ,180000,09/06/2020,5100430878,176292.21,Cheshire East Council,410116
WARRINGTON BOROUGH COUNCIL,http://opendatacommunities.org/id/unitary-authority/warrington,COR,Other Commercial Prop.,43560,Consult.& Prof. Serv,440000,09/06/2020,5100430886,10000,Delta-Simons Envi Consultants,117649
WARRINGTON BOROUGH COUNCIL,http://opendatacommunities.org/id/unitary-authority/warrington,DG0,86 Sankey Street,43115,Security Systems,250000,09/06/2020,5100430887,884.85,Chubb Fire and Security Ltd,105335
WARRINGTON BOROUGH COUNCIL,http://opendatacommunities.org/id/unitary-authority/warrington,FWB,BCF - Equipment Store,54930,Equipment Purchase & Contract,400000,09/06/2020,5100430894,1426,Harvest Healthcare Ltd,108555
WARRINGTON BOROUGH COUNCIL,http://opendatacommunities.org/id/unitary-authority/warrington,FWB,Transport - Adult Social Care,54950,Transport-Snad Cot,300600,09/06/2020,5100430895,588,Avatar Exectutive Travel,117555
WARRINGTON BOROUGH COUNCIL,http://opendatacommunities.org/id/unitary-authority/warrington,FWB,Transport - Adult Social Care,54950,Transport-Snad Cot,300600,09/06/2020,5100430896,670,Direct Taxis,101873
WARRINGTON BOROUGH COUNCIL,http://opendatacommunities.org/id/unitary-authority/warrington,RSC,ICT Centralised Budget,23100,Computer Software - Maintenance,450850,09/06/2020,5100430902,542.52,MCPC Systems Ltd,100858
WARRINGTON BOROUGH COUNCIL,http://opendatacommunities.org/id/unitary-authority/warrington,NEO,Neighbourhood & Community Other,83002,Computer Hardware - Purchase,450700,09/06/2020,5100430906,1858.53,Dell,104659
WARRINGTON BOROUGH COUNCIL,http://opendatacommunities.org/id/unitary-authority/warrington,FWB,30 Hours DS Fund,31401,Training,190150,09/06/2020,5100430916,3168,Jarvis Training Management Ltd,102325
WARRINGTON BOROUGH COUNCIL,http://opendatacommunities.org/id/unitary-authority/warrington,COR,Markets,43711,Materials,400500,09/06/2020,5100430919,4800,TNP - The Networking People,110271
WARRINGTON BOROUGH COUNCIL,http://opendatacommunities.org/id/unitary-authority/warrington,FWB,Transport - Adult Social Care,54950,Transport-Snad Cot,300600,09/06/2020,5100430924,2220,Redacted for personal data,103064
WARRINGTON BOROUGH COUNCIL,http://opendatacommunities.org/id/unitary-authority/warrington,FWB,Transport - Adult Social Care,54950,Stationery,430150,09/06/2020,5100430925,641.25,Stirton's Wheels,103536
WARRINGTON BOROUGH COUNCIL,http://opendatacommunities.org/id/unitary-authority/warrington,ENO,Building Maintenance Environment & Regen,82001,Consult.& Prof. Serv,440000,10/06/2020,5100430970,1677.51,Ramboll Uk Ltd,104002
WARRINGTON BOROUGH COUNCIL,http://opendatacommunities.org/id/unitary-authority/warrington,ENO,Highways Other,82005,Carriageway-Resurfacing,532250,10/06/2020,5100430978,12549.68,Tarmac,100489
WARRINGTON BOROUGH COUNCIL,http://opendatacommunities.org/id/unitary-authority/warrington,ENO,Highways Other,82005,Carriageway-Resurfacing,532250,10/06/2020,5100430979,6428.88,Tarmac,100489
WARRINGTON BOROUGH COUNCIL,http://opendatacommunities.org/id/unitary-authority/warrington,NEO,Neighbourhood & Community Other,83002,Computer Hardware - Purchase,450700,16/06/2020,5100430986,1858.53,Dell,104659
WARRINGTON BOROUGH COUNCIL,http://opendatacommunities.org/id/unitary-authority/warrington,FWB,Director Adult Social Care,54000,Subscriptions,470000,10/06/2020,5100430989,15000,Tameside M B,440155
WARRINGTON BOROUGH COUNCIL,http://opendatacommunities.org/id/unitary-authority/warrington,FWB,Homelessness,43650,Supplies & Services - Covid 19,499919,10/06/2020,5100430994,1353.58,The Gateway (Warrington) Ltd,440117
WARRINGTON BOROUGH COUNCIL,http://opendatacommunities.org/id/unitary-authority/warrington,ET0,Golf Course Client,41432,Consult.& Prof. Serv,440000,10/06/2020,5100430997,4590,Dr David Robertson,100073
WARRINGTON BOROUGH COUNCIL,http://opendatacommunities.org/id/unitary-authority/warrington,ET0,Crematorium,41411,Consult.& Prof. Serv,440000,10/06/2020,5100431001,822,BSI - Management Systems,104551
WARRINGTON BOROUGH COUNCIL,http://opendatacommunities.org/id/unitary-authority/warrington,COR,Redevelopment Sites,43580,Security Systems,250000,10/06/2020,5100431005,5550,Sentry Security Ltd,103829
WARRINGTON BOROUGH COUNCIL,http://opendatacommunities.org/id/unitary-authority/warrington,ET0,South Warington M'way Junction,40057,Consult.& Prof. Serv,440000,16/06/2020,5100431006,5148,Atkins Ltd,105752
WARRINGTON BOROUGH COUNCIL,http://opendatacommunities.org/id/unitary-authority/warrington,RSC,Printing & Graphics,23040,External Printing,430100,10/06/2020,5100431007,1197,Hcc Promotions Ltd,103915
WARRINGTON BOROUGH COUNCIL,http://opendatacommunities.org/id/unitary-authority/warrington,FWB,Special Schools Transport,33208,Statemented - Special Unit Pupil Transpo,300750,11/06/2020,5100431016,1770,Direct Taxis,101873
WARRINGTON BOROUGH COUNCIL,http://opendatacommunities.org/id/unitary-authority/warrington,FWB,Special Schools Transport,33208,Statemented - Special Unit Pupil Transpo,300750,11/06/2020,5100431017,1425,Direct Taxis,101873
WARRINGTON BOROUGH COUNCIL,http://opendatacommunities.org/id/unitary-authority/warrington,FWB,Special Schools Transport,33208,Statemented - Special Unit Pupil Transpo,300750,11/06/2020,5100431018,1575,Direct Taxis,101873
WARRINGTON BOROUGH COUNCIL,http://opendatacommunities.org/id/unitary-authority/warrington,FWB,Special Schools Transport,33208,Statemented - Special Unit Pupil Transpo,300750,11/06/2020,5100431019,1695,Direct Taxis,101873
WARRINGTON BOROUGH COUNCIL,http://opendatacommunities.org/id/unitary-authority/warrington,ENO,Highways Other,82005,Consult.& Prof. Serv,440000,11/06/2020,5100431054,25500,Yotta Limited,100880
WARRINGTON BOROUGH COUNCIL,http://opendatacommunities.org/id/unitary-authority/warrington,ET0,PW&F Management Operations,41427,Kennel Fees,440550,11/06/2020,5100431061,960,Animal Wardens Ltd,103042
WARRINGTON BOROUGH COUNCIL,http://opendatacommunities.org/id/unitary-authority/warrington,RSC,ICT Centralised Budget,23100,Computer Software - Maintenance,450850,11/06/2020,5100431065,6785,Keysoft Solutions Ltd,100347
WARRINGTON BOROUGH COUNCIL,http://opendatacommunities.org/id/unitary-authority/warrington,FWB,Emergency Planning (Civil Defence),12240,Fees (Including Agents Fees),441450,11/06/2020,5100431069,1969,Police and Crime Commissioner Chesh,104596
WARRINGTON BOROUGH COUNCIL,http://opendatacommunities.org/id/unitary-authority/warrington,FWB,Special Schools Transport,33208,Statemented - Special Unit Pupil Transpo,300750,11/06/2020,5100431070,1260,Direct Taxis,101873
WARRINGTON BOROUGH COUNCIL,http://opendatacommunities.org/id/unitary-authority/warrington,FWB,Special Schools Transport,33208,Statemented - Special Unit Pupil Transpo,300750,11/06/2020,5100431071,3040,Direct Taxis,101873
WARRINGTON BOROUGH COUNCIL,http://opendatacommunities.org/id/unitary-authority/warrington,FWB,Special Schools Transport,33208,Statemented - Special Unit Pupil Transpo,300750,11/06/2020,5100431072,2289,Direct Taxis,101873
WARRINGTON BOROUGH COUNCIL,http://opendatacommunities.org/id/unitary-authority/warrington,FWB,Special Schools Transport,33208,Statemented - Special Unit Pupil Transpo,300750,11/06/2020,5100431073,1350,Direct Taxis,101873
WARRINGTON BOROUGH COUNCIL,http://opendatacommunities.org/id/unitary-authority/warrington,FWB,Special Schools Transport,33208,Statemented - Special Unit Pupil Transpo,300750,11/06/2020,5100431074,1350,Direct Taxis,101873
WARRINGTON BOROUGH COUNCIL,http://opendatacommunities.org/id/unitary-authority/warrington,FWB,Special Schools Transport,33208,Statemented - Special Unit Pupil Transpo,300750,11/06/2020,5100431075,2160,Direct Taxis,101873
WARRINGTON BOROUGH COUNCIL,http://opendatacommunities.org/id/unitary-authority/warrington,FWB,Special Schools Transport,33208,Statemented - Special Unit Pupil Transpo,300750,11/06/2020,5100431076,2100,Direct Taxis,101873
WARRINGTON BOROUGH COUNCIL,http://opendatacommunities.org/id/unitary-authority/warrington,FWB,Transport - Adult Social Care,54950,Transport-Snad Cot,300600,11/06/2020,5100431077,560,Arrivals Star,101879
WARRINGTON BOROUGH COUNCIL,http://opendatacommunities.org/id/unitary-authority/warrington,FWB,Special Schools Transport,33208,Statemented - Special Unit Pupil Transpo,300750,11/06/2020,5100431078,1455,Arrivals Star,101879
WARRINGTON BOROUGH COUNCIL,http://opendatacommunities.org/id/unitary-authority/warrington,FWB,Special Schools Transport,33208,Statemented - Special Unit Pupil Transpo,300750,11/06/2020,5100431079,1575,Arrivals Star,101879
WARRINGTON BOROUGH COUNCIL,http://opendatacommunities.org/id/unitary-authority/warrington,ET0,Building Cleaning Revenue,41112,Equipment Purchase & Contract,400000,11/06/2020,5100431081,546,Bunzl Cleaning And Hygiene Supplies,104650
WARRINGTON BOROUGH COUNCIL,http://opendatacommunities.org/id/unitary-authority/warrington,ET0,Transport Holding Account,41311,Vehicle Hire Charges,320000,11/06/2020,5100431085,540,P S D Vehicle Rental,100551
WARRINGTON BOROUGH COUNCIL,http://opendatacommunities.org/id/unitary-authority/warrington,FWB,BCF - Padgate House,54760,Supplies & Services - Covid 19,499919,11/06/2020,5100431094,2280,Easy Clean Limited,117665
WARRINGTON BOROUGH COUNCIL,http://opendatacommunities.org/id/unitary-authority/warrington,FWB,Special Schools Transport,33208,Statemented - Special Unit Pupil Transpo,300750,11/06/2020,5100431100,960,Arrivals Star,101879
WARRINGTON BOROUGH COUNCIL,http://opendatacommunities.org/id/unitary-authority/warrington,FWB,Special Schools Transport,33208,Statemented - Special Unit Pupil Transpo,300750,11/06/2020,5100431102,1736,Diamond Travel,104665
WARRINGTON BOROUGH COUNCIL,http://opendatacommunities.org/id/unitary-authority/warrington,FWB,Transport - Adult Social Care,54950,Transport-Snad Cot,300600,11/06/2020,5100431104,1072,Direct Taxis,101873
WARRINGTON BOROUGH COUNCIL,http://opendatacommunities.org/id/unitary-authority/warrington,FWB,Special Schools Transport,33208,Statemented - Special Unit Pupil Transpo,300750,11/06/2020,5100431105,2752,Elite Services NW Ltd,109753
WARRINGTON BOROUGH COUNCIL,http://opendatacommunities.org/id/unitary-authority/warrington,FWB,Special Schools Transport,33208,Statemented - Special Unit Pupil Transpo,300750,11/06/2020,5100431106,2137.5,Mackies Travel,116390
WARRINGTON BOROUGH COUNCIL,http://opendatacommunities.org/id/unitary-authority/warrington,FWB,Special Schools Transport,33208,Statemented - Special Unit Pupil Transpo,300750,11/06/2020,5100431107,1560,Mackies Travel,116390
WARRINGTON BOROUGH COUNCIL,http://opendatacommunities.org/id/unitary-authority/warrington,FWB,DSG Post-16 Special Educational Needs,32309,Fees (Including Agents Fees),441450,11/06/2020,5100431111,1350,TSOM Mentoring,117565
WARRINGTON BOROUGH COUNCIL,http://opendatacommunities.org/id/unitary-authority/warrington,FWB,DSG Post-16 Special Educational Needs,32309,Fees (Including Agents Fees),441450,11/06/2020,5100431122,3120,The David Lewis Centre,104879
WARRINGTON BOROUGH COUNCIL,http://opendatacommunities.org/id/unitary-authority/warrington,FWB,DSG Post-16 Special Educational Needs,32309,Fees (Including Agents Fees),441450,11/06/2020,5100431123,2074.05,The Royal School For The Blind,400046
WARRINGTON BOROUGH COUNCIL,http://opendatacommunities.org/id/unitary-authority/warrington,FWB,DSG Post-16 Special Educational Needs,32309,Fees (Including Agents Fees),441450,11/06/2020,5100431124,3228.34,The Royal School For The Blind,400046
WARRINGTON BOROUGH COUNCIL,http://opendatacommunities.org/id/unitary-authority/warrington,ET0,Transport Holding Account,41311,Veh Maint. Materials,300000,11/06/2020,5100431125,723.38,Turner Groundscare,105201
WARRINGTON BOROUGH COUNCIL,http://opendatacommunities.org/id/unitary-authority/warrington,FWB,DSG Post-16 Special Educational Needs,32309,Fees (Including Agents Fees),441450,11/06/2020,5100431126,2080,The David Lewis Centre,104879
WARRINGTON BOROUGH COUNCIL,http://opendatacommunities.org/id/unitary-authority/warrington,DG0,Contingency,45227,Maintenance of Plant & Machinery,250050,11/06/2020,5100431129,33902.05,Mears Limited,114197
WARRINGTON BOROUGH COUNCIL,http://opendatacommunities.org/id/unitary-authority/warrington,FWB,Special Schools Transport,33208,Statemented - Special Unit Pupil Transpo,300750,12/06/2020,5100431159,900,Warrington Travel,112256
WARRINGTON BOROUGH COUNCIL,http://opendatacommunities.org/id/unitary-authority/warrington,FWB,Children's Contracts,31116,Payment of Grants,470050,23/06/2020,5100431163,33250,Halton Borough Council,410008
WARRINGTON BOROUGH COUNCIL,http://opendatacommunities.org/id/unitary-authority/warrington,ET0,Transport Holding Account,41311,Vehicle Hire Charges,320000,23/06/2020,5100431165,765,Jetchem Systems Ltd,104834
WARRINGTON BOROUGH COUNCIL,http://opendatacommunities.org/id/unitary-authority/warrington,COR,Markets,43711,Materials,400500,12/06/2020,5100431170,3118,Evac+Chair International Ltd,102150
WARRINGTON BOROUGH COUNCIL,http://opendatacommunities.org/id/unitary-authority/warrington,ET0,Recreation & Games,41431,Materials,400500,12/06/2020,5100431172,856,M C & M A Stewart Haulage Ltd,105159
WARRINGTON BOROUGH COUNCIL,http://opendatacommunities.org/id/unitary-authority/warrington,ET0,Recreation & Games,41431,Materials,400500,12/06/2020,5100431174,856,M C & M A Stewart Haulage Ltd,105159
WARRINGTON BOROUGH COUNCIL,http://opendatacommunities.org/id/unitary-authority/warrington,FWB,Housing Strategy,43620,Equipment Purchase & Contract,400000,12/06/2020,5100431183,1800,Complete Home Energy Systems,111861
WARRINGTON BOROUGH COUNCIL,http://opendatacommunities.org/id/unitary-authority/warrington,FWB,Bungalow 1,31315,Fees (Including Agents Fees),441450,12/06/2020,5100431186,570,Team Teach,100398
WARRINGTON BOROUGH COUNCIL,http://opendatacommunities.org/id/unitary-authority/warrington,FWB,Bungalow 1,31315,Fees (Including Agents Fees),441450,12/06/2020,5100431187,570,Team Teach,100398
WARRINGTON BOROUGH COUNCIL,http://opendatacommunities.org/id/unitary-authority/warrington,FWB,DSG Post-16 Special Educational Needs,32309,Fees (Including Agents Fees),441450,12/06/2020,5100431188,23421.3,Oliver House Priory,107946
WARRINGTON BOROUGH COUNCIL,http://opendatacommunities.org/id/unitary-authority/warrington,FWB,DSG Post-16 Special Educational Needs,32309,Fees (Including Agents Fees),441450,12/06/2020,5100431189,29800.08,Oliver House Priory,107946
WARRINGTON BOROUGH COUNCIL,http://opendatacommunities.org/id/unitary-authority/warrington,ET0,Parks & Open Spaces,41426,Chemicals,401100,12/06/2020,5100431193,932.64,Flogas,101284
WARRINGTON BOROUGH COUNCIL,http://opendatacommunities.org/id/unitary-authority/warrington,ET0,Traffic and Safety,44350,Equipment Purchase & Contract,400000,12/06/2020,5100431198,2090,Auto Items Ltd,110058
WARRINGTON BOROUGH COUNCIL,http://opendatacommunities.org/id/unitary-authority/warrington,ET0,Traffic and Safety,44350,Equipment Purchase & Contract,400000,12/06/2020,5100431198,1310,Auto Items Ltd,110058
WARRINGTON BOROUGH COUNCIL,http://opendatacommunities.org/id/unitary-authority/warrington,ET0,Golf Course Client,41432,Medical & Hygiene Supplies,401050,12/06/2020,5100431200,781,Phs Group Ltd,105024
WARRINGTON BOROUGH COUNCIL,http://opendatacommunities.org/id/unitary-authority/warrington,DG0,Contingency,45227,Maintenance of Plant & Machinery,250050,12/06/2020,5100431202,44509.4,Mears Limited,114197
WARRINGTON BOROUGH COUNCIL,http://opendatacommunities.org/id/unitary-authority/warrington,DG0,Contingency,45227,Maintenance of Plant & Machinery,250050,12/06/2020,5100431202,8947.62,Mears Limited,114197
WARRINGTON BOROUGH COUNCIL,http://opendatacommunities.org/id/unitary-authority/warrington,DG0,Contingency,45227,Maintenance of Plant & Machinery,250050,12/06/2020,5100431203,84355.92,Mears Limited,114197
WARRINGTON BOROUGH COUNCIL,http://opendatacommunities.org/id/unitary-authority/warrington,DG0,Contingency,45227,Maintenance of Plant & Machinery,250050,15/06/2020,5100431207,6877.36,Mears Limited,114197
WARRINGTON BOROUGH COUNCIL,http://opendatacommunities.org/id/unitary-authority/warrington,DG0,Contingency,45227,Maintenance of Plant & Machinery,250050,15/06/2020,5100431207,571.13,Mears Limited,114197
WARRINGTON BOROUGH COUNCIL,http://opendatacommunities.org/id/unitary-authority/warrington,FWB,Inclusion,32207,Fees (Including Agents Fees),441450,15/06/2020,5100431209,1020,PsyCATS,117777
WARRINGTON BOROUGH COUNCIL,http://opendatacommunities.org/id/unitary-authority/warrington,FWB,Contracts - SM Commissioning Team 1,55910,Public Health Contract Payments,540000,25/06/2020,5100431313,272166,Bridgewater Community Healthcare,108932
WARRINGTON BOROUGH COUNCIL,http://opendatacommunities.org/id/unitary-authority/warrington,FWB,Contracts - SM Commissioning Team 1,55910,Public Health Contract Payments,540000,25/06/2020,5100431314,272166,Bridgewater Community Healthcare,108932
WARRINGTON BOROUGH COUNCIL,http://opendatacommunities.org/id/unitary-authority/warrington,FWB,Appropriate Adults Project,33314,Consult.& Prof. Serv,440000,15/06/2020,5100431317,1239.73,Child Action North West,109412
WARRINGTON BOROUGH COUNCIL,http://opendatacommunities.org/id/unitary-authority/warrington,ET0,Walton Estate,41430,Security Systems,250000,15/06/2020,5100431318,3143,Elite Digital Systems Limited,114251
WARRINGTON BOROUGH COUNCIL,http://opendatacommunities.org/id/unitary-authority/warrington,HOL,Insurance Fund,91100,Insurance Premium,443350,15/06/2020,5100431319,2248.85,Motor Accident Protection Services,105883
WARRINGTON BOROUGH COUNCIL,http://opendatacommunities.org/id/unitary-authority/warrington,ET0,Transport Holding Account,41311,Maintenance Work - Sub Contractors,301150,22/06/2020,5100431322,3104.03,Terberg Matec Uk Ltd,105173
WARRINGTON BOROUGH COUNCIL,http://opendatacommunities.org/id/unitary-authority/warrington,ENO,Highways LTP,82004,Environmental Works,531050,15/06/2020,5100431323,36128.74,Network Surfacing Ltd,113235
WARRINGTON BOROUGH COUNCIL,http://opendatacommunities.org/id/unitary-authority/warrington,RSC,Printing & Graphics,23040,External Printing,430100,15/06/2020,5100431324,1020,Hcc Promotions Ltd,103915
WARRINGTON BOROUGH COUNCIL,http://opendatacommunities.org/id/unitary-authority/warrington,FWB,Care Purchase Budget,54490,Rent Of Premises,220000,15/06/2020,5100431346,826.6,Arena Housing,102199
WARRINGTON BOROUGH COUNCIL,http://opendatacommunities.org/id/unitary-authority/warrington,ET0,Crematorium,41411,Maintenance of Plant & Machinery,250050,22/06/2020,5100431349,547,LEEC limited,112211
WARRINGTON BOROUGH COUNCIL,http://opendatacommunities.org/id/unitary-authority/warrington,ET0,Building Cleaning Revenue,41112,Equipment Purchase & Contract,400000,15/06/2020,5100431359,963.6,Bunzl Cleaning And Hygiene Supplies,104650
WARRINGTON BOROUGH COUNCIL,http://opendatacommunities.org/id/unitary-authority/warrington,ET0,Building Cleaning Revenue,41112,Equipment Purchase & Contract,400000,15/06/2020,5100431359,6595,Bunzl Cleaning And Hygiene Supplies,104650
WARRINGTON BOROUGH COUNCIL,http://opendatacommunities.org/id/unitary-authority/warrington,ENO,Environmental Projects,82007,Building Work,200850,16/06/2020,5100431367,18675,Evo Energy,115346
WARRINGTON BOROUGH COUNCIL,http://opendatacommunities.org/id/unitary-authority/warrington,FWB,Special Schools Transport,33208,Statemented - Special Unit Pupil Transpo,300750,16/06/2020,5100431420,2208,J J Travel & Transport Ltd,104838
WARRINGTON BOROUGH COUNCIL,http://opendatacommunities.org/id/unitary-authority/warrington,FWB,Special Schools Transport,33208,Statemented - Special Unit Pupil Transpo,300750,16/06/2020,5100431421,2171.8,Mackies Travel,116390
WARRINGTON BOROUGH COUNCIL,http://opendatacommunities.org/id/unitary-authority/warrington,FWB,Special Schools Transport,33208,Statemented - Special Unit Pupil Transpo,300750,16/06/2020,5100431422,1125,Redacted for personal data,117345
WARRINGTON BOROUGH COUNCIL,http://opendatacommunities.org/id/unitary-authority/warrington,FWB,BCF - Equipment Store,54930,Supplies & Services - Covid 19,499919,17/06/2020,5100431456,883,Acorn Building Projects Ltd,105557
WARRINGTON BOROUGH COUNCIL,http://opendatacommunities.org/id/unitary-authority/warrington,FWB,Special Schools Transport,33208,Statemented - Special Unit Pupil Transpo,300750,17/06/2020,5100431464,1593,Abba Cars,105302
WARRINGTON BOROUGH COUNCIL,http://opendatacommunities.org/id/unitary-authority/warrington,FWB,Special Schools Transport,33208,Statemented - Special Unit Pupil Transpo,300750,17/06/2020,5100431465,1260,Redacted for personal data,116267
WARRINGTON BOROUGH COUNCIL,http://opendatacommunities.org/id/unitary-authority/warrington,FWB,Permanence staff teams,31021,Transport SLA,300400,17/06/2020,5100431468,1350,Redacted for personal data,116267
WARRINGTON BOROUGH COUNCIL,http://opendatacommunities.org/id/unitary-authority/warrington,FWB,Transport - Adult Social Care,54950,Transport-Snad Cot,300600,17/06/2020,5100431469,640,Warrington Cars,113774
WARRINGTON BOROUGH COUNCIL,http://opendatacommunities.org/id/unitary-authority/warrington,NEO,IT Projects,83003,Computer Hardware - Purchase,450700,18/06/2020,5100431471,56499,Insight Direct Uk Ltd,101883
WARRINGTON BOROUGH COUNCIL,http://opendatacommunities.org/id/unitary-authority/warrington,ET0,On Street Car Parking,44323,Car Park Attendants,530250,18/06/2020,5100431472,30160.98,NSL Services Group,113509
WARRINGTON BOROUGH COUNCIL,http://opendatacommunities.org/id/unitary-authority/warrington,ET0,Surface Car Parks,44322,Car Park Attendants,530250,18/06/2020,5100431472,1045.89,NSL Services Group,113509
WARRINGTON BOROUGH COUNCIL,http://opendatacommunities.org/id/unitary-authority/warrington,ET0,Time Square MSCP,44321,Car Park Attendants,530250,18/06/2020,5100431472,39897.77,NSL Services Group,113509
WARRINGTON BOROUGH COUNCIL,http://opendatacommunities.org/id/unitary-authority/warrington,ET0,Waste Recycling,41820,MRF Recycling,530750,18/06/2020,5100431473,181041.28,Wsr Recycling Ltd,101196
WARRINGTON BOROUGH COUNCIL,http://opendatacommunities.org/id/unitary-authority/warrington,ENO,Priority Infrastructure,82009,Consult.& Prof. Serv,440000,18/06/2020,5100431474,327317.15,Mott Macdonald Ltd,104950
WARRINGTON BOROUGH COUNCIL,http://opendatacommunities.org/id/unitary-authority/warrington,COR,Concessionary Travel,60000,Travelling Allowance,330000,18/06/2020,5100431475,219628.88,Cheshire West And Chester,103357
WARRINGTON BOROUGH COUNCIL,http://opendatacommunities.org/id/unitary-authority/warrington,ENP,Environment & Regeneration,82000,Building Work,200850,22/06/2020,5100431477,754210,Vinci Construction UK Ltd,108760
WARRINGTON BOROUGH COUNCIL,http://opendatacommunities.org/id/unitary-authority/warrington,FWB,Special Schools Transport,33208,Statemented - Special Unit Pupil Transpo,300750,17/06/2020,5100431480,2079,Warrington Cars,113774
WARRINGTON BOROUGH COUNCIL,http://opendatacommunities.org/id/unitary-authority/warrington,DG0,Employment Skills,22210,Supplies & Services - Covid 19,499919,17/06/2020,5100431482,49000,Bubble Customised Clothing,116019
WARRINGTON BOROUGH COUNCIL,http://opendatacommunities.org/id/unitary-authority/warrington,ENO,Priority Infrastructure,82009,Consult.& Prof. Serv,440000,18/06/2020,5100431517,81118.94,Balfour Beatty Civil Engineering Li,114442
WARRINGTON BOROUGH COUNCIL,http://opendatacommunities.org/id/unitary-authority/warrington,ENO,Highways Other,82005,Environmental Works,531050,18/06/2020,5100431518,1316250,Balfour Beatty Civil Engineering Li,114442
WARRINGTON BOROUGH COUNCIL,http://opendatacommunities.org/id/unitary-authority/warrington,ET0,Woolston Depot,41331,Building Work,200850,18/06/2020,5100431519,745,C & J Leigh,105951
WARRINGTON BOROUGH COUNCIL,http://opendatacommunities.org/id/unitary-authority/warrington,FWB,Special Schools Transport,33208,Statemented - Special Unit Pupil Transpo,300750,18/06/2020,5100431521,2208,J J Travel & Transport Ltd,104838
WARRINGTON BOROUGH COUNCIL,http://opendatacommunities.org/id/unitary-authority/warrington,FWB,Special Schools Transport,33208,Statemented - Special Unit Pupil Transpo,300750,18/06/2020,5100431524,1192.5,Warrington Cars,113774
WARRINGTON BOROUGH COUNCIL,http://opendatacommunities.org/id/unitary-authority/warrington,FWB,DSG Post-16 Special Educational Needs,32309,Fees (Including Agents Fees),441450,19/06/2020,5100431528,3484.57,Liverpool City Council,440037
WARRINGTON BOROUGH COUNCIL,http://opendatacommunities.org/id/unitary-authority/warrington,ET0,Street Lighting (Other Works),44243,Materials,400500,18/06/2020,5100431551,5585,Jrs Fabrications Ltd,105378
WARRINGTON BOROUGH COUNCIL,http://opendatacommunities.org/id/unitary-authority/warrington,FWB,DSG Inter Authority Recoupment,32009,Fees (Including Agents Fees),441450,18/06/2020,5100431554,3157.92,Adelaide Acad.Trust c/o Finch Woods,117573
WARRINGTON BOROUGH COUNCIL,http://opendatacommunities.org/id/unitary-authority/warrington,FWB,Transport - Adult Social Care,54950,Transport-Snad Cot,300600,18/06/2020,5100431556,1036,Redacted for personal data,112712
WARRINGTON BOROUGH COUNCIL,http://opendatacommunities.org/id/unitary-authority/warrington,FWB,Transport - Adult Social Care,54950,Transport-Snad Cot,300600,18/06/2020,5100431557,1580,Sure & Safe Minibus Service Ltd,100137
WARRINGTON BOROUGH COUNCIL,http://opendatacommunities.org/id/unitary-authority/warrington,FWB,Special Schools Transport,33208,Statemented - Special Unit Pupil Transpo,300750,18/06/2020,5100431558,1014.3,Rixton Travel Services,116154
WARRINGTON BOROUGH COUNCIL,http://opendatacommunities.org/id/unitary-authority/warrington,FWB,Special Schools Transport,33208,Statemented - Special Unit Pupil Transpo,300750,18/06/2020,5100431559,3760,Sure & Safe Minibus Service Ltd,100137
WARRINGTON BOROUGH COUNCIL,http://opendatacommunities.org/id/unitary-authority/warrington,ET0,Local Bus Contracts,44430,Payments To Operator,530150,18/06/2020,5100431560,1887.67,Warrington Borough Transport Ltd,105226
WARRINGTON BOROUGH COUNCIL,http://opendatacommunities.org/id/unitary-authority/warrington,ET0,Local Bus Contracts,44430,Payments To Operator,530150,18/06/2020,5100431562,728.58,Warrington Borough Transport Ltd,105226
WARRINGTON BOROUGH COUNCIL,http://opendatacommunities.org/id/unitary-authority/warrington,ET0,Local Bus Contracts,44430,Payments To Operator,530150,18/06/2020,5100431563,4810,Warrington Borough Transport Ltd,105226
WARRINGTON BOROUGH COUNCIL,http://opendatacommunities.org/id/unitary-authority/warrington,ET0,Local Bus Contracts,44430,Payments To Operator,530150,18/06/2020,5100431564,858.33,Warrington Borough Transport Ltd,105226
WARRINGTON BOROUGH COUNCIL,http://opendatacommunities.org/id/unitary-authority/warrington,ET0,Local Bus Contracts,44430,Payments To Operator,530150,18/06/2020,5100431565,4083.33,Warrington Borough Transport Ltd,105226
WARRINGTON BOROUGH COUNCIL,http://opendatacommunities.org/id/unitary-authority/warrington,ET0,Local Bus Contracts,44430,Payments To Operator,530150,18/06/2020,5100431566,1697.42,Warrington Borough Transport Ltd,105226
WARRINGTON BOROUGH COUNCIL,http://opendatacommunities.org/id/unitary-authority/warrington,ET0,Local Bus Contracts,44430,Payments To Operator,530150,18/06/2020,5100431567,2150.42,Warrington Borough Transport Ltd,105226
WARRINGTON BOROUGH COUNCIL,http://opendatacommunities.org/id/unitary-authority/warrington,FWB,Home to School Transport,33210,Mainstream Pupil Transport,300800,18/06/2020,5100431568,900,Warrington Borough Transport Ltd,105226
WARRINGTON BOROUGH COUNCIL,http://opendatacommunities.org/id/unitary-authority/warrington,ET0,Local Bus Contracts,44430,Payments To Operator,530150,18/06/2020,5100431570,732.48,Warrington Borough Transport Ltd,105226
WARRINGTON BOROUGH COUNCIL,http://opendatacommunities.org/id/unitary-authority/warrington,ET0,Local Bus Contracts,44430,Payments To Operator,530150,18/06/2020,5100431572,1512.5,Warrington Borough Transport Ltd,105226
WARRINGTON BOROUGH COUNCIL,http://opendatacommunities.org/id/unitary-authority/warrington,ET0,Local Bus Contracts,44430,Payments To Operator,530150,18/06/2020,5100431573,2500,Warrington Borough Transport Ltd,105226
WARRINGTON BOROUGH COUNCIL,http://opendatacommunities.org/id/unitary-authority/warrington,FWB,Prison Substance Misuse Services,53840,Drug Action,443600,25/06/2020,5100431653,1046.61,MOJ Shared Service Centre,102024
WARRINGTON BOROUGH COUNCIL,http://opendatacommunities.org/id/unitary-authority/warrington,FWB,Prison Substance Misuse Services,53840,Drug Action,443600,25/06/2020,5100431654,1046.61,MOJ Shared Service Centre,102024
WARRINGTON BOROUGH COUNCIL,http://opendatacommunities.org/id/unitary-authority/warrington,FWB,Director of Public Health,55000,Public Health Contribution Payments,540010,25/06/2020,5100431655,4737.87,Halton Borough Council,410059
WARRINGTON BOROUGH COUNCIL,http://opendatacommunities.org/id/unitary-authority/warrington,FWB,Director of Public Health,55000,Public Health Contribution Payments,540010,19/06/2020,5100431656,4737.87,Halton Borough Council,410059
WARRINGTON BOROUGH COUNCIL,http://opendatacommunities.org/id/unitary-authority/warrington,FWB,Director of Public Health,55000,Public Health Contribution Payments,540010,25/06/2020,5100431657,4737.87,Halton Borough Council,410059
WARRINGTON BOROUGH COUNCIL,http://opendatacommunities.org/id/unitary-authority/warrington,CYP,Childrens & Young People,81000,Specific Work,200200,19/06/2020,5100431664,4256.66,FRS Roofing Services Ltd,116696
WARRINGTON BOROUGH COUNCIL,http://opendatacommunities.org/id/unitary-authority/warrington,COR,Markets,43711,Equipment Purchase & Contract,400000,19/06/2020,5100431673,2567.1,Halton Container Services Limited,101003
WARRINGTON BOROUGH COUNCIL,http://opendatacommunities.org/id/unitary-authority/warrington,COR,Markets,43711,Equipment Purchase & Contract,400000,19/06/2020,5100431673,2675.4,Halton Container Services Limited,101003
WARRINGTON BOROUGH COUNCIL,http://opendatacommunities.org/id/unitary-authority/warrington,COR,Markets,43711,Equipment Purchase & Contract,400000,19/06/2020,5100431673,523.6,Halton Container Services Limited,101003
WARRINGTON BOROUGH COUNCIL,http://opendatacommunities.org/id/unitary-authority/warrington,ET0,Transport Holding Account,41311,Oil - Lubricating,301300,19/06/2020,5100431683,832,Concept Oils Ltd,109000
WARRINGTON BOROUGH COUNCIL,http://opendatacommunities.org/id/unitary-authority/warrington,ET0,Transport Holding Account,41311,Oil - Lubricating,301300,19/06/2020,5100431683,1980,Concept Oils Ltd,109000
WARRINGTON BOROUGH COUNCIL,http://opendatacommunities.org/id/unitary-authority/warrington,FWB,Homelessness,43650,Emergency Accommodation Allowance,550500,19/06/2020,5100431705,665,The Patten Arms Hotel,115465
WARRINGTON BOROUGH COUNCIL,http://opendatacommunities.org/id/unitary-authority/warrington,FWB,Homelessness,43650,Emergency Accommodation Allowance,550500,19/06/2020,5100431707,1200,The Patten Arms Hotel,115465
WARRINGTON BOROUGH COUNCIL,http://opendatacommunities.org/id/unitary-authority/warrington,ET0,Transport Holding Account,41311,Maintenance Work - Sub Contractors,301150,25/06/2020,5100431711,562.82,NTM GB LTD,107628
WARRINGTON BOROUGH COUNCIL,http://opendatacommunities.org/id/unitary-authority/warrington,ENO,Priority Infrastructure,82009,Environmental Works,531050,22/06/2020,5100431715,108816.73,Network Surfacing Ltd,113235
WARRINGTON BOROUGH COUNCIL,http://opendatacommunities.org/id/unitary-authority/warrington,DG0,New Town House,43119,Security Systems,250000,22/06/2020,5100431718,1399.96,Adt Fire And Security Plc,100549
WARRINGTON BOROUGH COUNCIL,http://opendatacommunities.org/id/unitary-authority/warrington,FWB,Care Call,54550,Equipment Purchase & Contract,400000,22/06/2020,5100431871,1850,Solon Security Ltd,101203
WARRINGTON BOROUGH COUNCIL,http://opendatacommunities.org/id/unitary-authority/warrington,FWB,Care Call,54550,Equipment Purchase & Contract,400000,22/06/2020,5100431872,1638,Tunstall Healthcare UK Ltd,105427
WARRINGTON BOROUGH COUNCIL,http://opendatacommunities.org/id/unitary-authority/warrington,FWB,Care Call,54550,Equipment Purchase & Contract,400000,22/06/2020,5100431872,3980,Tunstall Healthcare UK Ltd,105427
WARRINGTON BOROUGH COUNCIL,http://opendatacommunities.org/id/unitary-authority/warrington,FWB,BCF - Telecare/Sensory,54560,Equipment Purchase & Contract,400000,22/06/2020,5100431873,1100,Tunstall Healthcare UK Ltd,105427
WARRINGTON BOROUGH COUNCIL,http://opendatacommunities.org/id/unitary-authority/warrington,ENO,Highways Other,82005,Traffic Section,531150,22/06/2020,5100431875,7033.8,Tarmac,100489
WARRINGTON BOROUGH COUNCIL,http://opendatacommunities.org/id/unitary-authority/warrington,ENO,Highways LTP,82004,Traffic Section,531150,22/06/2020,5100431875,3392.51,Tarmac,100489
WARRINGTON BOROUGH COUNCIL,http://opendatacommunities.org/id/unitary-authority/warrington,ENO,Highways Other,82005,Traffic Section,531150,22/06/2020,5100431875,1828.13,Tarmac,100489
WARRINGTON BOROUGH COUNCIL,http://opendatacommunities.org/id/unitary-authority/warrington,ET0,Traffic and Safety,44350,Permanent Traffic Regulation Orders,442350,22/06/2020,5100431875,3226.81,Tarmac,100489
WARRINGTON BOROUGH COUNCIL,http://opendatacommunities.org/id/unitary-authority/warrington,ET0,Traffic and Safety,44350,Unlit Signs,531200,22/06/2020,5100431875,1758.25,Tarmac,100489
WARRINGTON BOROUGH COUNCIL,http://opendatacommunities.org/id/unitary-authority/warrington,ENO,Highways Other,82005,Patching Cat2,532300,22/06/2020,5100431876,3665.97,Tarmac,100489
WARRINGTON BOROUGH COUNCIL,http://opendatacommunities.org/id/unitary-authority/warrington,ET0,Dropped Crossings,44211,Equipment Purchase & Contract,400000,22/06/2020,5100431876,1331.78,Tarmac,100489
WARRINGTON BOROUGH COUNCIL,http://opendatacommunities.org/id/unitary-authority/warrington,ET0,Or Rm C'way & F'way,44260,M.C.R.Flexible Cat1,530850,22/06/2020,5100431876,13326.16,Tarmac,100489
WARRINGTON BOROUGH COUNCIL,http://opendatacommunities.org/id/unitary-authority/warrington,ET0,Or Rm C'way & F'way,44260,Fct Cat1,530950,22/06/2020,5100431876,5801.22,Tarmac,100489
WARRINGTON BOROUGH COUNCIL,http://opendatacommunities.org/id/unitary-authority/warrington,ET0,Or Rm C'way & F'way,44260,Safety Fences Cat1,531100,22/06/2020,5100431876,711.65,Tarmac,100489
WARRINGTON BOROUGH COUNCIL,http://opendatacommunities.org/id/unitary-authority/warrington,COR,Markets,43711,Maintenance of Plant & Machinery,250050,22/06/2020,5100431881,4549,Spark Risk limited,116169
WARRINGTON BOROUGH COUNCIL,http://opendatacommunities.org/id/unitary-authority/warrington,FWB,BCF - Equipment Store,54930,Equipment Purchase & Contract,400000,22/06/2020,5100431887,2048.4,Sunrise Medical,104828
WARRINGTON BOROUGH COUNCIL,http://opendatacommunities.org/id/unitary-authority/warrington,ET0,Dropped Crossings,44211,Equipment Purchase & Contract,400000,22/06/2020,5100431892,1262.6,Tarmac,100489
WARRINGTON BOROUGH COUNCIL,http://opendatacommunities.org/id/unitary-authority/warrington,ET0,Or Rm C'way & F'way,44260,M.C.R.Flexible Cat1,530850,22/06/2020,5100431892,4871.14,Tarmac,100489
WARRINGTON BOROUGH COUNCIL,http://opendatacommunities.org/id/unitary-authority/warrington,ET0,Or Rm C'way & F'way,44260,Fct Cat1,530950,22/06/2020,5100431892,10250.17,Tarmac,100489
WARRINGTON BOROUGH COUNCIL,http://opendatacommunities.org/id/unitary-authority/warrington,ET0,Or Rm C'way & F'way,44260,Clean Repair Drains,531000,22/06/2020,5100431892,2087.21,Tarmac,100489
WARRINGTON BOROUGH COUNCIL,http://opendatacommunities.org/id/unitary-authority/warrington,FWB,Special Schools Transport,33208,Statemented - Special Unit Pupil Transpo,300750,22/06/2020,5100431896,862.5,Raza Taxis,105056
WARRINGTON BOROUGH COUNCIL,http://opendatacommunities.org/id/unitary-authority/warrington,FWB,Special Schools Transport,33208,Statemented - Special Unit Pupil Transpo,300750,22/06/2020,5100431898,2250,K & J Travel,115925
WARRINGTON BOROUGH COUNCIL,http://opendatacommunities.org/id/unitary-authority/warrington,FWB,Special Schools Transport,33208,Statemented - Special Unit Pupil Transpo,300750,22/06/2020,5100431913,2571,Sure & Safe Minibus Service Ltd,100137
WARRINGTON BOROUGH COUNCIL,http://opendatacommunities.org/id/unitary-authority/warrington,COR,Other Commercial Prop.,43560,Consult.& Prof. Serv,440000,22/06/2020,5100431923,1952.75,CBRE Limited,113065
WARRINGTON BOROUGH COUNCIL,http://opendatacommunities.org/id/unitary-authority/warrington,COR,Other Commercial Prop.,43560,Consult.& Prof. Serv,440000,22/06/2020,5100431923,1250,CBRE Limited,113065
WARRINGTON BOROUGH COUNCIL,http://opendatacommunities.org/id/unitary-authority/warrington,DG0,Westy Community Centre,45069,Consult.& Prof. Serv,440000,22/06/2020,5100431925,520,Hydrock Consultants Limited,116675
WARRINGTON BOROUGH COUNCIL,http://opendatacommunities.org/id/unitary-authority/warrington,FWB,Homelessness,43650,Emergency Accommodation Allowance,550500,22/06/2020,5100431927,1203.33,The Patten Arms Hotel,115465
WARRINGTON BOROUGH COUNCIL,http://opendatacommunities.org/id/unitary-authority/warrington,FWB,Homelessness,43650,Emergency Accommodation Allowance,550500,22/06/2020,5100431929,1604.17,The Patten Arms Hotel,115465
WARRINGTON BOROUGH COUNCIL,http://opendatacommunities.org/id/unitary-authority/warrington,ET0,Waste Disposal,41830,Residual Waste Disposal,530500,23/06/2020,5100431965,102233.61,VIRIDOR WASTE MANAGEMENT,117566
WARRINGTON BOROUGH COUNCIL,http://opendatacommunities.org/id/unitary-authority/warrington,FWB,BCF - Padgate House,54760,Supplies & Services - Covid 19,499919,23/06/2020,5100431990,1160,Easy Clean Limited,117665
WARRINGTON BOROUGH COUNCIL,http://opendatacommunities.org/id/unitary-authority/warrington,FWB,Transport - Adult Social Care,54950,Transport-Snad Cot,300600,23/06/2020,5100431998,1206,Direct Taxis,101873
WARRINGTON BOROUGH COUNCIL,http://opendatacommunities.org/id/unitary-authority/warrington,FWB,Transport - Adult Social Care,54950,Transport-Snad Cot,300600,23/06/2020,5100432000,900,Abba Cars,105302
WARRINGTON BOROUGH COUNCIL,http://opendatacommunities.org/id/unitary-authority/warrington,ET0,Local Bus Contracts,44430,Payments To Operator,530150,23/06/2020,5100432017,1887.67,Warrington Borough Transport Ltd,105226
WARRINGTON BOROUGH COUNCIL,http://opendatacommunities.org/id/unitary-authority/warrington,ET0,Local Bus Contracts,44430,Payments To Operator,530150,23/06/2020,5100432019,728.58,Warrington Borough Transport Ltd,105226
WARRINGTON BOROUGH COUNCIL,http://opendatacommunities.org/id/unitary-authority/warrington,RSC,HR Advisory,20005,Consult.& Prof. Serv,440000,23/06/2020,5100432023,11875.57,People Asset Management Ltd,105943
WARRINGTON BOROUGH COUNCIL,http://opendatacommunities.org/id/unitary-authority/warrington,COR,Markets,43711,Supplies & Services - Covid 19,499919,23/06/2020,5100432025,2000,Harrow Green Limited,110974
WARRINGTON BOROUGH COUNCIL,http://opendatacommunities.org/id/unitary-authority/warrington,ET0,Local Bus Contracts,44430,Payments To Operator,530150,23/06/2020,5100432030,4810,Warrington Borough Transport Ltd,105226
WARRINGTON BOROUGH COUNCIL,http://opendatacommunities.org/id/unitary-authority/warrington,ET0,Local Bus Contracts,44430,Payments To Operator,530150,23/06/2020,5100432031,858.33,Warrington Borough Transport Ltd,105226
WARRINGTON BOROUGH COUNCIL,http://opendatacommunities.org/id/unitary-authority/warrington,ET0,Local Bus Contracts,44430,Payments To Operator,530150,23/06/2020,5100432032,4083.33,Warrington Borough Transport Ltd,105226
WARRINGTON BOROUGH COUNCIL,http://opendatacommunities.org/id/unitary-authority/warrington,ET0,Local Bus Contracts,44430,Payments To Operator,530150,23/06/2020,5100432033,1697.42,Warrington Borough Transport Ltd,105226
WARRINGTON BOROUGH COUNCIL,http://opendatacommunities.org/id/unitary-authority/warrington,ET0,Local Bus Contracts,44430,Payments To Operator,530150,23/06/2020,5100432034,2150.42,Warrington Borough Transport Ltd,105226
WARRINGTON BOROUGH COUNCIL,http://opendatacommunities.org/id/unitary-authority/warrington,FWB,Home to School Transport,33210,Mainstream Pupil Transport,300800,23/06/2020,5100432035,900,Warrington Borough Transport Ltd,105226
WARRINGTON BOROUGH COUNCIL,http://opendatacommunities.org/id/unitary-authority/warrington,ET0,Local Bus Contracts,44430,Payments To Operator,530150,23/06/2020,5100432036,732.48,Warrington Borough Transport Ltd,105226
WARRINGTON BOROUGH COUNCIL,http://opendatacommunities.org/id/unitary-authority/warrington,ET0,Local Bus Contracts,44430,Payments To Operator,530150,23/06/2020,5100432038,1512.5,Warrington Borough Transport Ltd,105226
WARRINGTON BOROUGH COUNCIL,http://opendatacommunities.org/id/unitary-authority/warrington,ET0,Local Bus Contracts,44430,Payments To Operator,530150,23/06/2020,5100432039,2500,Warrington Borough Transport Ltd,105226
WARRINGTON BOROUGH COUNCIL,http://opendatacommunities.org/id/unitary-authority/warrington,PIO,People & Improvement Other,85002,Consult.& Prof. Serv,440000,23/06/2020,5100432046,8499.23,Bam Construction Ltd,105324
WARRINGTON BOROUGH COUNCIL,http://opendatacommunities.org/id/unitary-authority/warrington,ENO,Highways Other,82005,Carriageway-Resurfacing,532250,23/06/2020,5100432048,36306.15,Tarmac,100489
WARRINGTON BOROUGH COUNCIL,http://opendatacommunities.org/id/unitary-authority/warrington,ET0,Land Drainage,44120,Consult.& Prof. Serv,440000,23/06/2020,5100432052,8696,Aecom Limited,101037
WARRINGTON BOROUGH COUNCIL,http://opendatacommunities.org/id/unitary-authority/warrington,FWB,Contracts - SM Commissioning Team 1,55910,Public Health Contract Payments,540000,25/06/2020,5100432053,272166,Bridgewater Community Healthcare,108932
WARRINGTON BOROUGH COUNCIL,http://opendatacommunities.org/id/unitary-authority/warrington,FWB,Special Schools Transport,33208,Statemented - Special Unit Pupil Transpo,300750,23/06/2020,5100432060,1650,Redacted for personal data,116267
WARRINGTON BOROUGH COUNCIL,http://opendatacommunities.org/id/unitary-authority/warrington,FWB,Children with Disabilities,31005,Transport SLA,300400,23/06/2020,5100432061,1750,Warrington Cars,113774
WARRINGTON BOROUGH COUNCIL,http://opendatacommunities.org/id/unitary-authority/warrington,FWB,Special Schools Transport,33208,Statemented - Special Unit Pupil Transpo,300750,23/06/2020,5100432062,988,Redacted for personal data,101021
WARRINGTON BOROUGH COUNCIL,http://opendatacommunities.org/id/unitary-authority/warrington,FWB,Special Schools Transport,33208,Statemented - Special Unit Pupil Transpo,300750,23/06/2020,5100432063,704.6,Gary's Airport Transfers,116159
WARRINGTON BOROUGH COUNCIL,http://opendatacommunities.org/id/unitary-authority/warrington,ET0,Transport Holding Account,41311,Veh Maint. Materials,300000,23/06/2020,5100432068,581,Man Truck & Bus Uk Ltd.,102737
WARRINGTON BOROUGH COUNCIL,http://opendatacommunities.org/id/unitary-authority/warrington,ENO,Environmental Projects,82007,Consult.& Prof. Serv,440000,25/06/2020,5100432099,5000,Evo Energy,115346
WARRINGTON BOROUGH COUNCIL,http://opendatacommunities.org/id/unitary-authority/warrington,ET0,Street Lighting Client,44241,Lighting Energy Char,531550,24/06/2020,5100432202,17235.92,Npower Electricity,101884
WARRINGTON BOROUGH COUNCIL,http://opendatacommunities.org/id/unitary-authority/warrington,ET0,Street Lighting Client,44241,Lighting Energy Char,531550,24/06/2020,5100432205,19859.1,Npower Electricity,101884
WARRINGTON BOROUGH COUNCIL,http://opendatacommunities.org/id/unitary-authority/warrington,ET0,Street Lighting Client,44241,Lighting Energy Char,531550,24/06/2020,5100432207,9567.75,Npower Electricity,101884
WARRINGTON BOROUGH COUNCIL,http://opendatacommunities.org/id/unitary-authority/warrington,ET0,School Brow Depot,41330,Training,190150,24/06/2020,5100432215,3190,Albion Environmental Ltd,103153
WARRINGTON BOROUGH COUNCIL,http://opendatacommunities.org/id/unitary-authority/warrington,ET0,Or Rm C'way & F'way,44260,Road Markings Cat1,531250,24/06/2020,5100432221,585.48,Tarmac,100489
WARRINGTON BOROUGH COUNCIL,http://opendatacommunities.org/id/unitary-authority/warrington,ET0,Or Rm C'way & F'way,44260,Patching Cat2,532300,24/06/2020,5100432221,1214.11,Tarmac,100489
WARRINGTON BOROUGH COUNCIL,http://opendatacommunities.org/id/unitary-authority/warrington,COR,Markets,43711,Equipment Purchase & Contract,400000,24/06/2020,5100432235,96769.55,HEBS Group Limited,117587
WARRINGTON BOROUGH COUNCIL,http://opendatacommunities.org/id/unitary-authority/warrington,ET0,Transport Holding Account,41311,Diesel,300100,24/06/2020,5100432252,20994,Standard Fuel Oils Ltd,117478
WARRINGTON BOROUGH COUNCIL,http://opendatacommunities.org/id/unitary-authority/warrington,ET0,Transport Holding Account,41311,Oil - Gas,301250,24/06/2020,5100432254,2499,Standard Fuel Oils Ltd,117478
WARRINGTON BOROUGH COUNCIL,http://opendatacommunities.org/id/unitary-authority/warrington,ET0,Waste Recycling,41820,Green Waste Treatment,530800,25/06/2020,5100432305,27101.41,White Moss Horticulture Ltd,104283
WARRINGTON BOROUGH COUNCIL,http://opendatacommunities.org/id/unitary-authority/warrington,ET0,Waste Recycling,41820,Green Waste Treatment,530800,25/06/2020,5100432306,3867.07,White Moss Horticulture Ltd,104283
WARRINGTON BOROUGH COUNCIL,http://opendatacommunities.org/id/unitary-authority/warrington,ET0,Waste Disposal,41830,Diverted Waste,530550,25/06/2020,5100432307,723.52,White Moss Horticulture Ltd,104283
WARRINGTON BOROUGH COUNCIL,http://opendatacommunities.org/id/unitary-authority/warrington,ET0,Waste Disposal,41830,Diverted Waste,530550,25/06/2020,5100432308,625,White Moss Horticulture Ltd,104283
WARRINGTON BOROUGH COUNCIL,http://opendatacommunities.org/id/unitary-authority/warrington,RSC,ICT Centralised Budget,23100,Computer Software - Maintenance,450850,25/06/2020,5100432312,6000,Locata Housing Services,114319
WARRINGTON BOROUGH COUNCIL,http://opendatacommunities.org/id/unitary-authority/warrington,ENO,Highways LTP,82004,Traffic Section,531150,25/06/2020,5100432313,5675,Tarmac,100489
WARRINGTON BOROUGH COUNCIL,http://opendatacommunities.org/id/unitary-authority/warrington,ET0,Traffic and Safety,44350,Unlit Signs,531200,25/06/2020,5100432314,1125,Tarmac,100489
WARRINGTON BOROUGH COUNCIL,http://opendatacommunities.org/id/unitary-authority/warrington,ET0,Golf Course Client,41432,Supplies & Services - Covid 19,499919,25/06/2020,5100432319,975,Acts Sound & Lighting,104450
WARRINGTON BOROUGH COUNCIL,http://opendatacommunities.org/id/unitary-authority/warrington,ET0,Or Winter Maint,44280,Ice Prediction Costs,531800,25/06/2020,5100432321,22342,Vaisala Limited,107012
WARRINGTON BOROUGH COUNCIL,http://opendatacommunities.org/id/unitary-authority/warrington,ENO,Priority Infrastructure,82009,Consult.& Prof. Serv,440000,25/06/2020,5100432328,3700,Lambert Smith Hampton,100591
WARRINGTON BOROUGH COUNCIL,http://opendatacommunities.org/id/unitary-authority/warrington,FWB,Housing Strategy,43620,Equipment Purchase & Contract,400000,25/06/2020,5100432329,1800,Complete Home Energy Systems,111861
WARRINGTON BOROUGH COUNCIL,http://opendatacommunities.org/id/unitary-authority/warrington,FWB,Virtual School,31112,Looked after children in Warrington,301000,25/06/2020,5100432353,2523.1,The Russett School,400576
WARRINGTON BOROUGH COUNCIL,http://opendatacommunities.org/id/unitary-authority/warrington,ENO,Highways Other,82005,Surf.Dress-C'Way,532400,25/06/2020,5100432354,16753.24,Road Maintenance Services Ltd,105408
WARRINGTON BOROUGH COUNCIL,http://opendatacommunities.org/id/unitary-authority/warrington,ENO,Highways Other,82005,Surf.Dress-C'Way,532400,25/06/2020,5100432355,15061.81,Road Maintenance Services Ltd,105408
WARRINGTON BOROUGH COUNCIL,http://opendatacommunities.org/id/unitary-authority/warrington,ENO,Highways Other,82005,Surf.Dress-C'Way,532400,25/06/2020,5100432356,30316.21,Road Maintenance Services Ltd,105408
WARRINGTON BOROUGH COUNCIL,http://opendatacommunities.org/id/unitary-authority/warrington,ENO,Highways Other,82005,Surf.Dress-C'Way,532400,25/06/2020,5100432357,31052.85,Road Maintenance Services Ltd,105408
WARRINGTON BOROUGH COUNCIL,http://opendatacommunities.org/id/unitary-authority/warrington,RSC,Transformation Team,52210,Computer Software - Purchase,450800,25/06/2020,5100432359,19952,Firmstep Limited,116490
WARRINGTON BOROUGH COUNCIL,http://opendatacommunities.org/id/unitary-authority/warrington,ENO,Highways LTP,82004,Materials,400500,25/06/2020,5100432361,2124,WT Jenkins,106173
WARRINGTON BOROUGH COUNCIL,http://opendatacommunities.org/id/unitary-authority/warrington,DG0,Site Management,43530,Security Systems,250000,25/06/2020,5100432365,888,Sentry Security Ltd,103829
WARRINGTON BOROUGH COUNCIL,http://opendatacommunities.org/id/unitary-authority/warrington,FWB,Housing Strategy,43620,Equipment Purchase & Contract,400000,25/06/2020,5100432370,2000,Complete Home Energy Systems,111861
WARRINGTON BOROUGH COUNCIL,http://opendatacommunities.org/id/unitary-authority/warrington,FWB,DSG Post-16 Special Educational Needs,32309,Fees (Including Agents Fees),441450,25/06/2020,5100432378,5505,Chatsworth High School,400586
WARRINGTON BOROUGH COUNCIL,http://opendatacommunities.org/id/unitary-authority/warrington,FWB,DSG Post-16 Special Educational Needs,32309,Fees (Including Agents Fees),441450,25/06/2020,5100432379,8678.32,Birchwood Academy High School,112025
WARRINGTON BOROUGH COUNCIL,http://opendatacommunities.org/id/unitary-authority/warrington,FWB,Emergency Planning (Civil Defence),12240,Training,190150,25/06/2020,5100432381,903,Environment Agency,440120
WARRINGTON BOROUGH COUNCIL,http://opendatacommunities.org/id/unitary-authority/warrington,ET0,Transport Holding Account,41311,Veh Maint. Materials,300000,26/06/2020,5100432483,895,Walton Summit Truck Centre Ltd,112806
WARRINGTON BOROUGH COUNCIL,http://opendatacommunities.org/id/unitary-authority/warrington,FWB,Trading Standards North West,41564,Fees (Including Agents Fees),441450,26/06/2020,5100432489,8155,Cheshire East Council,410116
WARRINGTON BOROUGH COUNCIL,http://opendatacommunities.org/id/unitary-authority/warrington,FWB,Trading Standards North West,41564,Consult.& Prof. Serv,440000,26/06/2020,5100432518,9525,Mustard Market Research Ltd,114008
WARRINGTON BOROUGH COUNCIL,http://opendatacommunities.org/id/unitary-authority/warrington,FWB,Housing Strategy,43620,Employees - Covid 19,199919,26/06/2020,5100432532,506.4,Ashberry Recruitment Limited,117639
WARRINGTON BOROUGH COUNCIL,http://opendatacommunities.org/id/unitary-authority/warrington,RSC,Business Intelligence,12300,Computer Hardware - Maintenance,450750,26/06/2020,5100432535,693.12,Canon (Uk) Ltd,100465
WARRINGTON BOROUGH COUNCIL,http://opendatacommunities.org/id/unitary-authority/warrington,FWB,BCF - Equipment Store,54930,Equipment Purchase & Contract,400000,26/06/2020,5100432544,629.44,Drive DeVilbiss Healthcare Ltd,101899
WARRINGTON BOROUGH COUNCIL,http://opendatacommunities.org/id/unitary-authority/warrington,ENO,Highways LTP,82004,Equipment Purchase & Contract,400000,29/06/2020,5100432648,6575,Tarmac,100489
WARRINGTON BOROUGH COUNCIL,http://opendatacommunities.org/id/unitary-authority/warrington,FWB,DSG Independent School Fees,32011,Fees (Including Agents Fees),441450,29/06/2020,5100432663,5921.42,Belmont School Limited,400047
WARRINGTON BOROUGH COUNCIL,http://opendatacommunities.org/id/unitary-authority/warrington,FWB,DSG Independent School Fees,32011,Fees (Including Agents Fees),441450,29/06/2020,5100432664,4389.91,Chaigeley Educational Foundation,400123
WARRINGTON BOROUGH COUNCIL,http://opendatacommunities.org/id/unitary-authority/warrington,FWB,DSG Independent School Fees,32011,Fees (Including Agents Fees),441450,29/06/2020,5100432665,3328.91,Chaigeley Educational Foundation,400123
WARRINGTON BOROUGH COUNCIL,http://opendatacommunities.org/id/unitary-authority/warrington,FWB,DSG Independent School Fees,32011,Fees (Including Agents Fees),441450,29/06/2020,5100432666,2272.91,Chaigeley Educational Foundation,400123
WARRINGTON BOROUGH COUNCIL,http://opendatacommunities.org/id/unitary-authority/warrington,FWB,DSG Independent School Fees,32011,Fees (Including Agents Fees),441450,29/06/2020,5100432667,2272.91,Chaigeley Educational Foundation,400123
WARRINGTON BOROUGH COUNCIL,http://opendatacommunities.org/id/unitary-authority/warrington,FWB,DSG Independent School Fees,32011,Fees (Including Agents Fees),441450,29/06/2020,5100432668,2272.91,Chaigeley Educational Foundation,400123
WARRINGTON BOROUGH COUNCIL,http://opendatacommunities.org/id/unitary-authority/warrington,FWB,DSG Independent School Fees,32011,Fees (Including Agents Fees),441450,29/06/2020,5100432669,4389.91,Chaigeley Educational Foundation,400123
WARRINGTON BOROUGH COUNCIL,http://opendatacommunities.org/id/unitary-authority/warrington,RSC,One - Off ICT Costs,23200,Computer Software - Maintenance,450850,29/06/2020,5100432670,23250,Sunrise Software Limited,103717
WARRINGTON BOROUGH COUNCIL,http://opendatacommunities.org/id/unitary-authority/warrington,FWB,DSG Independent School Fees,32011,Fees (Including Agents Fees),441450,29/06/2020,5100432680,3328.91,Chaigeley Educational Foundation,400123
WARRINGTON BOROUGH COUNCIL,http://opendatacommunities.org/id/unitary-authority/warrington,FWB,DSG Independent School Fees,32011,Fees (Including Agents Fees),441450,29/06/2020,5100432682,5802.63,Nugent Care,101082
WARRINGTON BOROUGH COUNCIL,http://opendatacommunities.org/id/unitary-authority/warrington,FWB,DSG Independent School Fees,32011,Fees (Including Agents Fees),441450,29/06/2020,5100432683,5802.63,Nugent Care,101082
WARRINGTON BOROUGH COUNCIL,http://opendatacommunities.org/id/unitary-authority/warrington,FWB,DSG Independent School Fees,32011,Fees (Including Agents Fees),441450,29/06/2020,5100432684,5747.37,Nugent Care,101082
WARRINGTON BOROUGH COUNCIL,http://opendatacommunities.org/id/unitary-authority/warrington,COR,Other Commercial Prop.,43560,Consult.& Prof. Serv,440000,29/06/2020,5100432685,6343.9,Exacta Plc,111218
WARRINGTON BOROUGH COUNCIL,http://opendatacommunities.org/id/unitary-authority/warrington,ET0,Recreation & Games,41431,Materials,400500,29/06/2020,5100432700,1560,Rigby Taylor Ltd,105070
WARRINGTON BOROUGH COUNCIL,http://opendatacommunities.org/id/unitary-authority/warrington,FWB,DSG Independent School Fees,32011,Fees (Including Agents Fees),441450,29/06/2020,5100432703,1958.67,The Priory,101736
WARRINGTON BOROUGH COUNCIL,http://opendatacommunities.org/id/unitary-authority/warrington,FWB,DSG Independent School Fees,32011,Fees (Including Agents Fees),441450,29/06/2020,5100432704,6007.17,Pontville School,109772
WARRINGTON BOROUGH COUNCIL,http://opendatacommunities.org/id/unitary-authority/warrington,FWB,DSG Independent School Fees,32011,Fees (Including Agents Fees),441450,29/06/2020,5100432705,6007.17,Pontville School,109772
WARRINGTON BOROUGH COUNCIL,http://opendatacommunities.org/id/unitary-authority/warrington,FWB,DSG Independent School Fees,32011,Fees (Including Agents Fees),441450,29/06/2020,5100432706,4798.58,Pontville School,109772
WARRINGTON BOROUGH COUNCIL,http://opendatacommunities.org/id/unitary-authority/warrington,FWB,DSG Independent School Fees,32011,Fees (Including Agents Fees),441450,29/06/2020,5100432709,3214.32,The Royal School For The Blind,400046
WARRINGTON BOROUGH COUNCIL,http://opendatacommunities.org/id/unitary-authority/warrington,FWB,DSG Independent School Fees,32011,Fees (Including Agents Fees),441450,29/06/2020,5100432715,4649.5,Lakeside School Limited,103188
WARRINGTON BOROUGH COUNCIL,http://opendatacommunities.org/id/unitary-authority/warrington,FWB,DSG Independent School Fees,32011,Fees (Including Agents Fees),441450,29/06/2020,5100432716,5273.25,Lakeside School Limited,103188
WARRINGTON BOROUGH COUNCIL,http://opendatacommunities.org/id/unitary-authority/warrington,FWB,Intermediate Care Review iBCF,57125,Employee Expenses,190200,03/06/2020,1900550671,3850,Julie Haywood Consulting Ltd,117273
WARRINGTON BOROUGH COUNCIL,http://opendatacommunities.org/id/unitary-authority/warrington,FWB,Intermediate Care Review iBCF,57125,Employee Expenses,190200,03/06/2020,1900550674,9350,Julie Haywood Consulting Ltd,117273
WARRINGTON BOROUGH COUNCIL,http://opendatacommunities.org/id/unitary-authority/warrington,COR,Hatters Row,43710,Rent Of Premises,220000,24/06/2020,1900559118,23843.75,Manchester & Provincial Car Pks Ltd,104918
WARRINGTON BOROUGH COUNCIL,http://opendatacommunities.org/id/unitary-authority/warrington,RSC,Coroners Service,11100,Analysts Fees,440300,23/06/2020,1900558833,640,Eurofins Forensic Services Ltd,116517
WARRINGTON BOROUGH COUNCIL,http://opendatacommunities.org/id/unitary-authority/warrington,FWB,DSG Independent School Fees,32011,Independent School Fees,490200,15/05/2020,1900544570,4607.47,Seashell Trust,103082
WARRINGTON BOROUGH COUNCIL,http://opendatacommunities.org/id/unitary-authority/warrington,RSC,Coroners Service,11100,Analysts Fees,440300,01/06/2020,1900549941,748,Forensics Ltd,105295
WARRINGTON BOROUGH COUNCIL,http://opendatacommunities.org/id/unitary-authority/warrington,RSC,Coroners Service,11100,Analysts Fees,440300,05/06/2020,1900551448,1066.75,Forensics Ltd,105295
WARRINGTON BOROUGH COUNCIL,http://opendatacommunities.org/id/unitary-authority/warrington,RSC,Coroners Service,11100,Analysts Fees,440300,05/06/2020,1900551467,714,Forensics Ltd,105295
WARRINGTON BOROUGH COUNCIL,http://opendatacommunities.org/id/unitary-authority/warrington,RSC,Coroners Service,11100,Analysts Fees,440300,08/06/2020,1900552204,841.5,Forensics Ltd,105295
WARRINGTON BOROUGH COUNCIL,http://opendatacommunities.org/id/unitary-authority/warrington,RSC,Coroners Service,11100,Analysts Fees,440300,23/06/2020,1900558822,1517.25,Forensics Ltd,105295
WARRINGTON BOROUGH COUNCIL,http://opendatacommunities.org/id/unitary-authority/warrington,RSC,Coroners Service,11100,Analysts Fees,440300,23/06/2020,1900558805,820.25,Forensics Ltd,105295
WARRINGTON BOROUGH COUNCIL,http://opendatacommunities.org/id/unitary-authority/warrington,RSC,Coroners Service,11100,Analysts Fees,440300,23/06/2020,1900558806,935,Forensics Ltd,105295
WARRINGTON BOROUGH COUNCIL,http://opendatacommunities.org/id/unitary-authority/warrington,FWB,SCM Catering,33176,Consult.& Prof. Serv,440000,06/05/2020,1900542696,1090,Soil Association,116442
WARRINGTON BOROUGH COUNCIL,http://opendatacommunities.org/id/unitary-authority/warrington,RSC,Coroners Service,11100,Hire Of Mortuaries,220200,08/06/2020,1900552217,3259.1,Mid Cheshire Hospitals,440149
WARRINGTON BOROUGH COUNCIL,http://opendatacommunities.org/id/unitary-authority/warrington,RSC,Coroners Service,11100,Hire Of Mortuaries,220200,08/06/2020,1900552217,2626.14,Mid Cheshire Hospitals,440149
WARRINGTON BOROUGH COUNCIL,http://opendatacommunities.org/id/unitary-authority/warrington,FWB,Care Purchase - West,54080,Supported Accommodation,440975,09/06/2020,1900552757,2739.56,Autism Initiatives,104503
WARRINGTON BOROUGH COUNCIL,http://opendatacommunities.org/id/unitary-authority/warrington,FWB,Care Purchase - West,54080,CP-Day Care-External,441100,09/06/2020,1900552757,2960.8,Autism Initiatives,104503
WARRINGTON BOROUGH COUNCIL,http://opendatacommunities.org/id/unitary-authority/warrington,FWB,Care Purchase - Central,54050,Supported Accommodation,440975,09/06/2020,1900552758,7027.84,Autism Initiatives,104503
WARRINGTON BOROUGH COUNCIL,http://opendatacommunities.org/id/unitary-authority/warrington,FWB,Care Purchase - West,54080,Supported Accommodation,440975,09/06/2020,1900552759,7628.84,Autism Initiatives,104503
WARRINGTON BOROUGH COUNCIL,http://opendatacommunities.org/id/unitary-authority/warrington,FWB,Care Purchase - West,54080,Supported Accommodation,440975,09/06/2020,1900552756,2977.8,Autism Initiatives,104503
WARRINGTON BOROUGH COUNCIL,http://opendatacommunities.org/id/unitary-authority/warrington,FWB,Care Purchase - West,54080,CP-Day Care-External,441100,09/06/2020,1900552756,2722.56,Autism Initiatives,104503
WARRINGTON BOROUGH COUNCIL,http://opendatacommunities.org/id/unitary-authority/warrington,FWB,Care Purchase - West,54080,Supported Accommodation,440975,09/06/2020,1900552755,2819,Autism Initiatives,104503
WARRINGTON BOROUGH COUNCIL,http://opendatacommunities.org/id/unitary-authority/warrington,FWB,Staffing - Cluster Central & West,31510,Supplies & Services - Covid 19,499919,09/06/2020,1900552650,654,Kids Planet Warrington,105710
WARRINGTON BOROUGH COUNCIL,http://opendatacommunities.org/id/unitary-authority/warrington,FWB,Staffing - Cluster Central & West,31510,Supplies & Services - Covid 19,499919,26/06/2020,1900559795,572.25,Kids Planet Warrington,105710
WARRINGTON BOROUGH COUNCIL,http://opendatacommunities.org/id/unitary-authority/warrington,FWB,Care Purchase - East,54060,CP Adult Placement,443450,10/06/2020,1900552927,502.58,Macintyre Care,104907
WARRINGTON BOROUGH COUNCIL,http://opendatacommunities.org/id/unitary-authority/warrington,FWB,Care Purchase - South,54070,CP Adult Placement,443450,10/06/2020,1900552932,535,Macintyre Care,104907
WARRINGTON BOROUGH COUNCIL,http://opendatacommunities.org/id/unitary-authority/warrington,FWB,Care Purchase - South,54070,CP Adult Placement,443450,10/06/2020,1900552936,508.47,Macintyre Care,104907
WARRINGTON BOROUGH COUNCIL,http://opendatacommunities.org/id/unitary-authority/warrington,FWB,Care Purchase - Central,54050,CP Adult Placement,443450,10/06/2020,1900552938,535,Macintyre Care,104907
WARRINGTON BOROUGH COUNCIL,http://opendatacommunities.org/id/unitary-authority/warrington,FWB,Care Purchase - South,54070,CP Adult Placement,443450,10/06/2020,1900552947,535,Macintyre Care,104907
WARRINGTON BOROUGH COUNCIL,http://opendatacommunities.org/id/unitary-authority/warrington,FWB,Care Purchase - Central,54050,CP Adult Placement,443450,10/06/2020,1900552956,535,Macintyre Care,104907
WARRINGTON BOROUGH COUNCIL,http://opendatacommunities.org/id/unitary-authority/warrington,FWB,Care Purchase - Central,54050,CP Adult Placement,443450,10/06/2020,1900552957,585,Macintyre Care,104907
WARRINGTON BOROUGH COUNCIL,http://opendatacommunities.org/id/unitary-authority/warrington,FWB,Care Purchase - East,54060,CP Adult Placement,443450,10/06/2020,1900552959,568.6,Macintyre Care,104907
WARRINGTON BOROUGH COUNCIL,http://opendatacommunities.org/id/unitary-authority/warrington,FWB,Care Purchase - East,54060,CP Adult Placement,443450,10/06/2020,1900552962,535,Macintyre Care,104907
WARRINGTON BOROUGH COUNCIL,http://opendatacommunities.org/id/unitary-authority/warrington,FWB,Care Purchase - West,54080,CP-Domicil.External,440950,26/06/2020,1900560008,11560,NFC Health & Social Ltd,117610
WARRINGTON BOROUGH COUNCIL,http://opendatacommunities.org/id/unitary-authority/warrington,FWB,Care Purchase - West,54080,CP-Domicil.External,440950,26/06/2020,1900560009,11560,NFC Health & Social Ltd,117610
WARRINGTON BOROUGH COUNCIL,http://opendatacommunities.org/id/unitary-authority/warrington,FWB,CiC Management,30200,Fees (Including Agents Fees),441450,08/06/2020,1900552176,8658,Bolton Mbc,440106
WARRINGTON BOROUGH COUNCIL,http://opendatacommunities.org/id/unitary-authority/warrington,FWB,Homelessness,43650,Premises - Covid 19,299919,11/06/2020,1900553540,33075,Travellodge Hotels Limited,117626
WARRINGTON BOROUGH COUNCIL,http://opendatacommunities.org/id/unitary-authority/warrington,FWB,Homelessness,43650,Premises - Covid 19,299919,11/06/2020,1900553541,27562.5,Travellodge Hotels Limited,117626
WARRINGTON BOROUGH COUNCIL,http://opendatacommunities.org/id/unitary-authority/warrington,FWB,Care Purchase - Central,54050,CP-Domicil.External,440950,03/06/2020,1900550696,8640,QAS Ambulance Ltd,117648
WARRINGTON BOROUGH COUNCIL,http://opendatacommunities.org/id/unitary-authority/warrington,FWB,Care Purchase - Central,54050,CP-Domicil.External,440950,03/06/2020,1900550695,8640,QAS Ambulance Ltd,117648
WARRINGTON BOROUGH COUNCIL,http://opendatacommunities.org/id/unitary-authority/warrington,FWB,Care Purchase - Central,54050,CP-Domicil.External,440950,09/06/2020,1900552659,9600,QAS Ambulance Ltd,117648
WARRINGTON BOROUGH COUNCIL,http://opendatacommunities.org/id/unitary-authority/warrington,HOL,Single Billing Holding Account,91130,ICT Comms - Line Rental,450200,04/06/2020,1900551076,17572.19,EE Airtime,104996
WARRINGTON BOROUGH COUNCIL,http://opendatacommunities.org/id/unitary-authority/warrington,FWB,Fostering Placements,30003,Fostering Accommodation,441050,01/06/2020,1900550026,1000,Foster Care Values Ltd,117489
WARRINGTON BOROUGH COUNCIL,http://opendatacommunities.org/id/unitary-authority/warrington,FWB,Care Purchase - Central,54050,CP-Domicil.External,440950,03/06/2020,1900550669,6720,QAS Ambulance Ltd,117648
WARRINGTON BOROUGH COUNCIL,http://opendatacommunities.org/id/unitary-authority/warrington,FWB,Fostering Placements,30003,Fostering Accommodation,441050,01/06/2020,1900550034,1000,Foster Care Values Ltd,117489
WARRINGTON BOROUGH COUNCIL,http://opendatacommunities.org/id/unitary-authority/warrington,FWB,Fostering Placements,30003,Fostering Accommodation,441050,12/06/2020,1900554353,1000,Foster Care Values Ltd,117489
WARRINGTON BOROUGH COUNCIL,http://opendatacommunities.org/id/unitary-authority/warrington,FWB,Fostering Placements,30003,Fostering Accommodation,441050,29/06/2020,1900560315,1000,Foster Care Values Ltd,117489
WARRINGTON BOROUGH COUNCIL,http://opendatacommunities.org/id/unitary-authority/warrington,FWB,Central Schools,32502,Furniture & Fittings Curriculum,400200,17/06/2020,1900555099,1242,Weightmans LLP Client Account,110737
WARRINGTON BOROUGH COUNCIL,http://opendatacommunities.org/id/unitary-authority/warrington,RSC,Democratic Services,11400,Training,190150,19/06/2020,1900556401,2392.5,Weightmans LLP Client Account,110737
WARRINGTON BOROUGH COUNCIL,http://opendatacommunities.org/id/unitary-authority/warrington,HOL,Insurance Fund,91100,Insurance Claims,443400,17/06/2020,1900555101,1992,Weightmans Office AC,101452
WARRINGTON BOROUGH COUNCIL,http://opendatacommunities.org/id/unitary-authority/warrington,FWB,Central Schools,32502,Furniture & Fittings Curriculum,400200,17/06/2020,1900555100,4216,Weightmans LLP Client Account,110737
WARRINGTON BOROUGH COUNCIL,http://opendatacommunities.org/id/unitary-authority/warrington,HOL,VAT Control,91010,Input Tax,948100,04/06/2020,1900551078,823.2,Weightmans Office AC,101452
WARRINGTON BOROUGH COUNCIL,http://opendatacommunities.org/id/unitary-authority/warrington,FWB,Care Purchase - South,54070,Bailiff Fees,441400,17/06/2020,1900555114,570,Weightmans Office AC,101452
WARRINGTON BOROUGH COUNCIL,http://opendatacommunities.org/id/unitary-authority/warrington,FWB,Care Purchase - OP & OT East,54430,Security Guards,441000,14/06/2020,1900554370,3126.5,Weightmans LLP Client Account,110737
WARRINGTON BOROUGH COUNCIL,http://opendatacommunities.org/id/unitary-authority/warrington,FWB,Care Purchase Budget,54490,CP Free Nursing Care External,443500,17/06/2020,1900555102,11683.81,HC-One Oval Summerville Care Home,116403
WARRINGTON BOROUGH COUNCIL,http://opendatacommunities.org/id/unitary-authority/warrington,FWB,Care Purchase - Central,54050,CP-Domicil.External,440950,09/06/2020,1900552661,6720,QAS Ambulance Ltd,117648
WARRINGTON BOROUGH COUNCIL,http://opendatacommunities.org/id/unitary-authority/warrington,FWB,Care Purchase - Central,54050,CP-Domicil.External,440950,03/06/2020,1900550697,6720,QAS Ambulance Ltd,117648
WARRINGTON BOROUGH COUNCIL,http://opendatacommunities.org/id/unitary-authority/warrington,FWB,Care Purchase - East,54060,CP-Domicil.External,440950,28/05/2020,1900549215,808.5,Bridgewater Home Care,113753
WARRINGTON BOROUGH COUNCIL,http://opendatacommunities.org/id/unitary-authority/warrington,FWB,Care Purchase - South,54070,CP-Domicil.External,440950,28/05/2020,1900549221,623,Bridgewater Home Care,113753
WARRINGTON BOROUGH COUNCIL,http://opendatacommunities.org/id/unitary-authority/warrington,FWB,Aiming High,32213,People with Physical or Sensory Disabili,535250,02/06/2020,1900550067,2750,Sports Works (Manchester & Cheshire,114994
WARRINGTON BOROUGH COUNCIL,http://opendatacommunities.org/id/unitary-authority/warrington,COR,Corporate Planning Items,61020,Apprenticeship Levy,505175,17/06/2020,1900555136,36362,Hm Revenue And Customs,440026
WARRINGTON BOROUGH COUNCIL,http://opendatacommunities.org/id/unitary-authority/warrington,FWB,Neighbourhood Enga,51305,Supplies & Services - Covid 19,499919,02/06/2020,1900550054,2231,Petrus Events,117662
WARRINGTON BOROUGH COUNCIL,http://opendatacommunities.org/id/unitary-authority/warrington,FWB,Neighbourhood Enga,51305,Supplies & Services - Covid 19,499919,02/06/2020,1900550055,2065,Petrus Events,117662
WARRINGTON BOROUGH COUNCIL,http://opendatacommunities.org/id/unitary-authority/warrington,FWB,Neighbourhood Enga,51305,Supplies & Services - Covid 19,499919,09/06/2020,1900552655,2065,Petrus Events,117662
WARRINGTON BOROUGH COUNCIL,http://opendatacommunities.org/id/unitary-authority/warrington,FWB,Care Purchase - East,54060,CP-Domicil.External,440950,03/06/2020,1900550916,548.12,Redline Business Ta Ashwood Care,113381
WARRINGTON BOROUGH COUNCIL,http://opendatacommunities.org/id/unitary-authority/warrington,FWB,Care Purchase - East,54060,CP-Domicil.External,440950,24/06/2020,1900559198,501.2,Redacted for personal data,117440
WARRINGTON BOROUGH COUNCIL,http://opendatacommunities.org/id/unitary-authority/warrington,FWB,Care Purchase - West,54080,CP-Domicil.External,440950,24/06/2020,1900559203,665,Redacted for personal data,117440
WARRINGTON BOROUGH COUNCIL,http://opendatacommunities.org/id/unitary-authority/warrington,FWB,Care Purchase - West,54080,CP-Domicil.External,440950,24/06/2020,1900559200,875.9,Redacted for personal data,117440
WARRINGTON BOROUGH COUNCIL,http://opendatacommunities.org/id/unitary-authority/warrington,COR,VAT Initiatives,60220,Corporate Initiative,491000,19/06/2020,1900556404,2950,LAVAT Consulting Limited,107266
WARRINGTON BOROUGH COUNCIL,http://opendatacommunities.org/id/unitary-authority/warrington,FWB,Care Purchase - West,54080,CP-Domicil.External,440950,08/06/2020,1900552572,1386,Hummingbird Home Care Ltd,116286
WARRINGTON BOROUGH COUNCIL,http://opendatacommunities.org/id/unitary-authority/warrington,FWB,Care Purchase - South,54070,CP-Domicil.External,440950,08/06/2020,1900552577,1728,Hummingbird Home Care Ltd,116286
WARRINGTON BOROUGH COUNCIL,http://opendatacommunities.org/id/unitary-authority/warrington,FWB,Care Purchase - Central,54050,CP-Domicil.External,440950,08/06/2020,1900552578,516,Hummingbird Home Care Ltd,116286
WARRINGTON BOROUGH COUNCIL,http://opendatacommunities.org/id/unitary-authority/warrington,FWB,Care Purchase - West,54080,CP-Domicil.External,440950,08/06/2020,1900552584,588,Hummingbird Home Care Ltd,116286
WARRINGTON BOROUGH COUNCIL,http://opendatacommunities.org/id/unitary-authority/warrington,FWB,Care Purchase - South,54070,CP-Domicil.External,440950,08/06/2020,1900552585,677.25,Hummingbird Home Care Ltd,116286
WARRINGTON BOROUGH COUNCIL,http://opendatacommunities.org/id/unitary-authority/warrington,FWB,Care Purchase - Central,54050,CP-Domicil.External,440950,03/06/2020,1900550774,718.31,Mayfield Home Care Agency,104928
WARRINGTON BOROUGH COUNCIL,http://opendatacommunities.org/id/unitary-authority/warrington,FWB,Care Purchase - East,54060,CP-Domicil.External,440950,03/06/2020,1900550787,593.9,Mayfield Home Care Agency,104928
WARRINGTON BOROUGH COUNCIL,http://opendatacommunities.org/id/unitary-authority/warrington,FWB,Care Purchase - South,54070,CP-Domicil.External,440950,03/06/2020,1900550802,735.28,Mayfield Home Care Agency,104928
WARRINGTON BOROUGH COUNCIL,http://opendatacommunities.org/id/unitary-authority/warrington,FWB,Care Purchase - Central,54050,CP-Domicil.External,440950,08/06/2020,1900552533,718.31,Mayfield Home Care Agency,104928
WARRINGTON BOROUGH COUNCIL,http://opendatacommunities.org/id/unitary-authority/warrington,FWB,Care Purchase - East,54060,CP-Domicil.External,440950,08/06/2020,1900552546,783.56,Mayfield Home Care Agency,104928
WARRINGTON BOROUGH COUNCIL,http://opendatacommunities.org/id/unitary-authority/warrington,FWB,Care Purchase - South,54070,CP-Domicil.External,440950,08/06/2020,1900552561,735.28,Mayfield Home Care Agency,104928
WARRINGTON BOROUGH COUNCIL,http://opendatacommunities.org/id/unitary-authority/warrington,FWB,Care Purchase - Central,54050,CP-Domicil.External,440950,12/06/2020,1900553993,729.61,Mayfield Home Care Agency,104928
WARRINGTON BOROUGH COUNCIL,http://opendatacommunities.org/id/unitary-authority/warrington,FWB,Care Purchase - East,54060,CP-Domicil.External,440950,12/06/2020,1900554006,771.68,Mayfield Home Care Agency,104928
WARRINGTON BOROUGH COUNCIL,http://opendatacommunities.org/id/unitary-authority/warrington,FWB,Care Purchase - South,54070,CP-Domicil.External,440950,12/06/2020,1900554021,746.6,Mayfield Home Care Agency,104928
WARRINGTON BOROUGH COUNCIL,http://opendatacommunities.org/id/unitary-authority/warrington,FWB,Care Purchase - Central,54050,CP-Domicil.External,440950,12/06/2020,1900554297,718.31,Mayfield Home Care Agency,104928
WARRINGTON BOROUGH COUNCIL,http://opendatacommunities.org/id/unitary-authority/warrington,FWB,Care Purchase - East,54060,CP-Domicil.External,440950,12/06/2020,1900554310,771.68,Mayfield Home Care Agency,104928
WARRINGTON BOROUGH COUNCIL,http://opendatacommunities.org/id/unitary-authority/warrington,FWB,Care Purchase - South,54070,CP-Domicil.External,440950,12/06/2020,1900554325,735.28,Mayfield Home Care Agency,104928
WARRINGTON BOROUGH COUNCIL,http://opendatacommunities.org/id/unitary-authority/warrington,FWB,Care Purchase - Central,54050,CP-Domicil.External,440950,12/06/2020,1900554140,718.31,Mayfield Home Care Agency,104928
WARRINGTON BOROUGH COUNCIL,http://opendatacommunities.org/id/unitary-authority/warrington,FWB,Care Purchase - East,54060,CP-Domicil.External,440950,12/06/2020,1900554115,771.68,Mayfield Home Care Agency,104928
WARRINGTON BOROUGH COUNCIL,http://opendatacommunities.org/id/unitary-authority/warrington,FWB,Care Purchase - South,54070,CP-Domicil.External,440950,12/06/2020,1900554104,735.28,Mayfield Home Care Agency,104928
WARRINGTON BOROUGH COUNCIL,http://opendatacommunities.org/id/unitary-authority/warrington,FWB,Care Purchase - Central,54050,CP-Domicil.External,440950,12/06/2020,1900554235,718.31,Mayfield Home Care Agency,104928
WARRINGTON BOROUGH COUNCIL,http://opendatacommunities.org/id/unitary-authority/warrington,FWB,Care Purchase - East,54060,CP-Domicil.External,440950,12/06/2020,1900554210,804.34,Mayfield Home Care Agency,104928
WARRINGTON BOROUGH COUNCIL,http://opendatacommunities.org/id/unitary-authority/warrington,FWB,Care Purchase - South,54070,CP-Domicil.External,440950,12/06/2020,1900554200,746.6,Mayfield Home Care Agency,104928
WARRINGTON BOROUGH COUNCIL,http://opendatacommunities.org/id/unitary-authority/warrington,FWB,Care Purchase - Central,54050,CP-Domicil.External,440950,19/06/2020,1900556588,718.31,Mayfield Home Care Agency,104928
WARRINGTON BOROUGH COUNCIL,http://opendatacommunities.org/id/unitary-authority/warrington,FWB,Care Purchase - South,54070,CP-Domicil.External,440950,19/06/2020,1900556592,688.56,Mayfield Home Care Agency,104928
WARRINGTON BOROUGH COUNCIL,http://opendatacommunities.org/id/unitary-authority/warrington,FWB,Care Purchase - South,54070,CP-Domicil.External,440950,19/06/2020,1900556553,735.28,Mayfield Home Care Agency,104928
WARRINGTON BOROUGH COUNCIL,http://opendatacommunities.org/id/unitary-authority/warrington,FWB,Care Purchase - West,54080,CP-Domicil.External,440950,11/06/2020,1900553929,1386,Hummingbird Home Care Ltd,116286
WARRINGTON BOROUGH COUNCIL,http://opendatacommunities.org/id/unitary-authority/warrington,FWB,Care Purchase - South,54070,CP-Domicil.External,440950,11/06/2020,1900553934,1728,Hummingbird Home Care Ltd,116286
WARRINGTON BOROUGH COUNCIL,http://opendatacommunities.org/id/unitary-authority/warrington,FWB,Care Purchase - Central,54050,CP-Domicil.External,440950,11/06/2020,1900553935,516,Hummingbird Home Care Ltd,116286
WARRINGTON BOROUGH COUNCIL,http://opendatacommunities.org/id/unitary-authority/warrington,FWB,Care Purchase - West,54080,CP-Domicil.External,440950,11/06/2020,1900553941,588,Hummingbird Home Care Ltd,116286
WARRINGTON BOROUGH COUNCIL,http://opendatacommunities.org/id/unitary-authority/warrington,FWB,Care Purchase - South,54070,CP-Domicil.External,440950,11/06/2020,1900553942,677.25,Hummingbird Home Care Ltd,116286
WARRINGTON BOROUGH COUNCIL,http://opendatacommunities.org/id/unitary-authority/warrington,FWB,Care Purchase - Central,54050,CP-Domicil.External,440950,24/06/2020,1900559422,718.31,Mayfield Home Care Agency,104928
WARRINGTON BOROUGH COUNCIL,http://opendatacommunities.org/id/unitary-authority/warrington,FWB,Care Purchase - South,54070,CP-Domicil.External,440950,24/06/2020,1900559458,688.56,Mayfield Home Care Agency,104928
WARRINGTON BOROUGH COUNCIL,http://opendatacommunities.org/id/unitary-authority/warrington,FWB,Care Purchase - South,54070,CP-Domicil.External,440950,24/06/2020,1900559318,735.28,Mayfield Home Care Agency,104928
WARRINGTON BOROUGH COUNCIL,http://opendatacommunities.org/id/unitary-authority/warrington,FWB,Care Purchase - West,54080,CP-Domicil.External,440950,24/06/2020,1900559342,520.37,Mayfield Home Care Agency,104928
WARRINGTON BOROUGH COUNCIL,http://opendatacommunities.org/id/unitary-authority/warrington,FWB,Care Purchase - South,54070,CP-Domicil.External,440950,11/06/2020,1900553589,542.64,Caremark,114583
WARRINGTON BOROUGH COUNCIL,http://opendatacommunities.org/id/unitary-authority/warrington,FWB,Care Purchase - South,54070,CP-Domicil.External,440950,11/06/2020,1900553586,518.07,Caremark,114583
WARRINGTON BOROUGH COUNCIL,http://opendatacommunities.org/id/unitary-authority/warrington,FWB,Care Purchase - South,54070,CP-Domicil.External,440950,15/06/2020,1900554660,542.64,Caremark,114583
WARRINGTON BOROUGH COUNCIL,http://opendatacommunities.org/id/unitary-authority/warrington,FWB,Care Purchase - South,54070,CP-Domicil.External,440950,15/06/2020,1900554653,518.07,Caremark,114583
WARRINGTON BOROUGH COUNCIL,http://opendatacommunities.org/id/unitary-authority/warrington,FWB,Care Purchase Budget,54490,CP Free Nursing Care External,443500,04/06/2020,1900551012,3973.44,HC-One Oval Ltd Birch Court,104572
WARRINGTON BOROUGH COUNCIL,http://opendatacommunities.org/id/unitary-authority/warrington,FWB,Legal Fees - Safeguarding,30100,Legal Costs Incurred,440200,06/06/2020,1900552155,621.6,Lextox,114551
WARRINGTON BOROUGH COUNCIL,http://opendatacommunities.org/id/unitary-authority/warrington,FWB,Care Purchase Budget,54490,CP Free Nursing Care External,443500,04/06/2020,1900551014,4330.06,HC-One Oval Ltd Birch Court,104572
WARRINGTON BOROUGH COUNCIL,http://opendatacommunities.org/id/unitary-authority/warrington,FWB,Care Purchase Budget,54490,CP Free Nursing Care External,443500,04/06/2020,1900551013,3652.13,HC-One Oval Ltd Birch Court,104572
WARRINGTON BOROUGH COUNCIL,http://opendatacommunities.org/id/unitary-authority/warrington,FWB,Legal Fees - Safeguarding,30100,Legal Costs Incurred,440200,10/06/2020,1900552846,540,WBC One-Time Vendor,900001
WARRINGTON BOROUGH COUNCIL,http://opendatacommunities.org/id/unitary-authority/warrington,FWB,Legal Fees - Safeguarding,30100,Legal Costs Incurred,440200,08/06/2020,1900552171,575,Redacted for personal data,116242
WARRINGTON BOROUGH COUNCIL,http://opendatacommunities.org/id/unitary-authority/warrington,FWB,Care Purchase - East,54060,CP-Domicil.External,440950,03/06/2020,1900550852,569.52,Focus on Care,108343
WARRINGTON BOROUGH COUNCIL,http://opendatacommunities.org/id/unitary-authority/warrington,FWB,Care Purchase - West,54080,CP-Domicil.External,440950,03/06/2020,1900550854,569.52,Focus on Care,108343
WARRINGTON BOROUGH COUNCIL,http://opendatacommunities.org/id/unitary-authority/warrington,FWB,Care Purchase - Central,54050,CP - Employment - Exteranal,494500,17/06/2020,1900555278,1344,Walton Lea Project,102953
WARRINGTON BOROUGH COUNCIL,http://opendatacommunities.org/id/unitary-authority/warrington,FWB,Legal Fees - Safeguarding,30100,Legal Costs Incurred,440200,07/06/2020,1900552170,1337.5,Redacted for personal data,115525
WARRINGTON BOROUGH COUNCIL,http://opendatacommunities.org/id/unitary-authority/warrington,FWB,Care Purchase - East,54060,CP-Domicil.External,440950,08/06/2020,1900552492,569.52,Focus on Care,108343
WARRINGTON BOROUGH COUNCIL,http://opendatacommunities.org/id/unitary-authority/warrington,FWB,Care Purchase - West,54080,CP-Domicil.External,440950,08/06/2020,1900552494,569.52,Focus on Care,108343
WARRINGTON BOROUGH COUNCIL,http://opendatacommunities.org/id/unitary-authority/warrington,FWB,Care Purchase - East,54060,CP-Domicil.External,440950,10/06/2020,1900553366,569.52,Focus on Care,108343
WARRINGTON BOROUGH COUNCIL,http://opendatacommunities.org/id/unitary-authority/warrington,FWB,Care Purchase - West,54080,CP-Domicil.External,440950,10/06/2020,1900553368,569.52,Focus on Care,108343
WARRINGTON BOROUGH COUNCIL,http://opendatacommunities.org/id/unitary-authority/warrington,FWB,Care Purchase - East,54060,CP-Domicil.External,440950,11/06/2020,1900553639,569.52,Focus on Care,108343
WARRINGTON BOROUGH COUNCIL,http://opendatacommunities.org/id/unitary-authority/warrington,FWB,Care Purchase - West,54080,CP-Domicil.External,440950,11/06/2020,1900553641,569.52,Focus on Care,108343
WARRINGTON BOROUGH COUNCIL,http://opendatacommunities.org/id/unitary-authority/warrington,FWB,Care Purchase - East,54060,CP-Domicil.External,440950,10/06/2020,1900552997,693,Focus on Care,108343
WARRINGTON BOROUGH COUNCIL,http://opendatacommunities.org/id/unitary-authority/warrington,FWB,Care Purchase - West,54080,CP-Domicil.External,440950,10/06/2020,1900552995,693,Focus on Care,108343
WARRINGTON BOROUGH COUNCIL,http://opendatacommunities.org/id/unitary-authority/warrington,FWB,Care Purchase - Central,54050,CP-Domicil.External,440950,10/06/2020,1900553008,519.82,Focus on Care,108343
WARRINGTON BOROUGH COUNCIL,http://opendatacommunities.org/id/unitary-authority/warrington,FWB,Care Purchase - West,54080,CP-Domicil.External,440950,10/06/2020,1900552994,519.82,Focus on Care,108343
WARRINGTON BOROUGH COUNCIL,http://opendatacommunities.org/id/unitary-authority/warrington,FWB,Care Purchase - West,54080,CP-Domicil.External,440950,26/06/2020,1900559987,665,Redacted for personal data,117440
WARRINGTON BOROUGH COUNCIL,http://opendatacommunities.org/id/unitary-authority/warrington,FWB,Care Purchase - West,54080,CP-Domicil.External,440950,26/06/2020,1900559978,1019.9,Redacted for personal data,117440
WARRINGTON BOROUGH COUNCIL,http://opendatacommunities.org/id/unitary-authority/warrington,FWB,Care Purchase - East,54060,CP-Domicil.External,440950,11/06/2020,1900553898,693,Focus on Care,108343
WARRINGTON BOROUGH COUNCIL,http://opendatacommunities.org/id/unitary-authority/warrington,FWB,Care Purchase - West,54080,CP-Domicil.External,440950,11/06/2020,1900553896,693,Focus on Care,108343
WARRINGTON BOROUGH COUNCIL,http://opendatacommunities.org/id/unitary-authority/warrington,FWB,Care Purchase - Central,54050,CP-Domicil.External,440950,11/06/2020,1900553910,519.82,Focus on Care,108343
WARRINGTON BOROUGH COUNCIL,http://opendatacommunities.org/id/unitary-authority/warrington,FWB,Care Purchase - West,54080,CP-Domicil.External,440950,11/06/2020,1900553895,519.82,Focus on Care,108343
WARRINGTON BOROUGH COUNCIL,http://opendatacommunities.org/id/unitary-authority/warrington,FWB,Care Purchase - Central,54050,CP - Employment - Exteranal,494500,17/06/2020,1900555277,1344,Walton Lea Project,102953
WARRINGTON BOROUGH COUNCIL,http://opendatacommunities.org/id/unitary-authority/warrington,FWB,Care Purchase - Central,54050,CP - Employment - Exteranal,494500,17/06/2020,1900555275,1344,Walton Lea Project,102953
WARRINGTON BOROUGH COUNCIL,http://opendatacommunities.org/id/unitary-authority/warrington,FWB,Care Purchase - Central,54050,CP - Employment - Exteranal,494500,17/06/2020,1900555276,1344,Walton Lea Project,102953
WARRINGTON BOROUGH COUNCIL,http://opendatacommunities.org/id/unitary-authority/warrington,FWB,Care Purchase - West,54080,CP-Day Care-External,441100,23/06/2020,1900559098,845,My Life Legacy,115974
WARRINGTON BOROUGH COUNCIL,http://opendatacommunities.org/id/unitary-authority/warrington,FWB,Care Purchase - West,54080,CP-Day Care-External,441100,23/06/2020,1900559097,845,My Life Legacy,115974
WARRINGTON BOROUGH COUNCIL,http://opendatacommunities.org/id/unitary-authority/warrington,FWB,Care Purchase - West,54080,CP-Day Care-External,441100,23/06/2020,1900559095,715,My Life Legacy,115974
WARRINGTON BOROUGH COUNCIL,http://opendatacommunities.org/id/unitary-authority/warrington,FWB,Care Purchase - East,54060,CP-Domicil.External,440950,04/06/2020,1900551349,5475.12,U & I Care Ltd,110435
WARRINGTON BOROUGH COUNCIL,http://opendatacommunities.org/id/unitary-authority/warrington,RSC,Coroners Service,11100,Hire Of Mortuaries,220200,23/06/2020,1900558803,7925.62,Warrington And Halton Nhs Ft,440132
WARRINGTON BOROUGH COUNCIL,http://opendatacommunities.org/id/unitary-authority/warrington,FWB,Service Manager - Intermediate Care,53200,Employee Expenses,190200,19/06/2020,1900556380,9280.81,Warrington And Halton Nhs Ft,440132
WARRINGTON BOROUGH COUNCIL,http://opendatacommunities.org/id/unitary-authority/warrington,FWB,Care Purchase - East,54060,CP-Domicil.External,440950,04/06/2020,1900551350,5475.12,U & I Care Ltd,110435
WARRINGTON BOROUGH COUNCIL,http://opendatacommunities.org/id/unitary-authority/warrington,FWB,Special Schools Transport,33208,Statemented - Special Unit Pupil Transpo,300750,11/06/2020,1900553539,988,Redacted for personal data,115134
WARRINGTON BOROUGH COUNCIL,http://opendatacommunities.org/id/unitary-authority/warrington,FWB,Care Purchase - East,54060,CP-Domicil.External,440950,04/06/2020,1900551351,5475.12,U & I Care Ltd,110435
WARRINGTON BOROUGH COUNCIL,http://opendatacommunities.org/id/unitary-authority/warrington,FWB,Care Purchase - Central,54050,CP - Employment - Exteranal,494500,17/06/2020,1900555274,1344,Walton Lea Project,102953
WARRINGTON BOROUGH COUNCIL,http://opendatacommunities.org/id/unitary-authority/warrington,COR,Debt Management Expenses,62080,Consult.& Prof. Serv,440000,02/06/2020,1900550080,1373.29,Traderisks Limited,115745
WARRINGTON BOROUGH COUNCIL,http://opendatacommunities.org/id/unitary-authority/warrington,FWB,Leaving Care Placements,31109,CP-LongStayExternal,441150,12/06/2020,1900554348,2400,BedSpace,103530
WARRINGTON BOROUGH COUNCIL,http://opendatacommunities.org/id/unitary-authority/warrington,FWB,Leaving Care Placements,31109,CP-LongStayExternal,441150,29/06/2020,1900560303,1900,BedSpace,103530
WARRINGTON BOROUGH COUNCIL,http://opendatacommunities.org/id/unitary-authority/warrington,FWB,Leaving Care Placements,31109,CP-LongStayExternal,441150,12/06/2020,1900554346,3400,BedSpace,103530
WARRINGTON BOROUGH COUNCIL,http://opendatacommunities.org/id/unitary-authority/warrington,FWB,Leaving Care Placements,31109,CP-LongStayExternal,441150,12/06/2020,1900554345,2400,BedSpace,103530
WARRINGTON BOROUGH COUNCIL,http://opendatacommunities.org/id/unitary-authority/warrington,FWB,Leaving Care Placements,31109,CP-LongStayExternal,441150,12/06/2020,1900554347,5000,BedSpace,103530
WARRINGTON BOROUGH COUNCIL,http://opendatacommunities.org/id/unitary-authority/warrington,FWB,Care Purchase - Central,54050,CP - Employment - Exteranal,494500,17/06/2020,1900555279,1344,Walton Lea Project,102953
WARRINGTON BOROUGH COUNCIL,http://opendatacommunities.org/id/unitary-authority/warrington,ACP,Assistant Chief Executive,84000,Consult.& Prof. Serv,440000,04/05/2020,1900542434,10455,Geldards,116986
WARRINGTON BOROUGH COUNCIL,http://opendatacommunities.org/id/unitary-authority/warrington,ENO,Environment & Regeneration Other,82002,Consult.& Prof. Serv,440000,05/05/2020,1900542599,3024,Geldards,116986
WARRINGTON BOROUGH COUNCIL,http://opendatacommunities.org/id/unitary-authority/warrington,ENP,Environment & Regeneration,82000,Consult.& Prof. Serv,440000,04/05/2020,1900542433,976,Geldards,116986
WARRINGTON BOROUGH COUNCIL,http://opendatacommunities.org/id/unitary-authority/warrington,ACP,Assistant Chief Executive,84000,Consult.& Prof. Serv,440000,06/05/2020,1900542706,22698,Geldards,116986
WARRINGTON BOROUGH COUNCIL,http://opendatacommunities.org/id/unitary-authority/warrington,ACP,Assistant Chief Executive,84000,Consult.& Prof. Serv,440000,06/05/2020,1900542705,806,Geldards,116986
WARRINGTON BOROUGH COUNCIL,http://opendatacommunities.org/id/unitary-authority/warrington,ET0,Cemeteries & Crematorium Staffing,41400,Employees - Covid 19,199919,23/06/2020,1900558836,49772.4,Showsec International Ltd,100864
WARRINGTON BOROUGH COUNCIL,http://opendatacommunities.org/id/unitary-authority/warrington,ET0,Cemeteries & Crematorium Staffing,41400,Employees - Covid 19,199919,23/06/2020,1900558837,120069.2,Showsec International Ltd,100864
WARRINGTON BOROUGH COUNCIL,http://opendatacommunities.org/id/unitary-authority/warrington,FWB,Care Purchase - Central,54050,CP-Domicil.External,440950,16/06/2020,1900554956,602,Smart Care Services NW Ltd,116031
WARRINGTON BOROUGH COUNCIL,http://opendatacommunities.org/id/unitary-authority/warrington,FWB,Care Purchase - Central,54050,CP-Domicil.External,440950,16/06/2020,1900554966,503.1,Smart Care Services NW Ltd,116031
WARRINGTON BOROUGH COUNCIL,http://opendatacommunities.org/id/unitary-authority/warrington,FWB,Care Purchase - South,54070,CP-Domicil.External,440950,16/06/2020,1900555008,582.82,Smart Care Services NW Ltd,116031
WARRINGTON BOROUGH COUNCIL,http://opendatacommunities.org/id/unitary-authority/warrington,FWB,Care Purchase - Central,54050,CP-Domicil.External,440950,16/06/2020,1900555039,537.64,Smart Care Services NW Ltd,116031
WARRINGTON BOROUGH COUNCIL,http://opendatacommunities.org/id/unitary-authority/warrington,FWB,Care Purchase - Central,54050,CP-Domicil.External,440950,16/06/2020,1900555040,532.06,Smart Care Services NW Ltd,116031
WARRINGTON BOROUGH COUNCIL,http://opendatacommunities.org/id/unitary-authority/warrington,FWB,Care Purchase - Central,54050,CP-Domicil.External,440950,16/06/2020,1900555057,510.44,Smart Care Services NW Ltd,116031
WARRINGTON BOROUGH COUNCIL,http://opendatacommunities.org/id/unitary-authority/warrington,FWB,Care Purchase - South,54070,CP-Domicil.External,440950,16/06/2020,1900555060,598.85,Smart Care Services NW Ltd,116031
WARRINGTON BOROUGH COUNCIL,http://opendatacommunities.org/id/unitary-authority/warrington,FWB,Care Purchase Budget,54490,CP Free Nursing Care External,443500,01/06/2020,1900549928,1158.92,Barchester Healthcare Cheshire Gran,111378
WARRINGTON BOROUGH COUNCIL,http://opendatacommunities.org/id/unitary-authority/warrington,FWB,Care Purchase Budget,54490,CP Free Nursing Care External,443500,01/06/2020,1900549924,662.24,Barchester Healthcare Cheshire Gran,111378
WARRINGTON BOROUGH COUNCIL,http://opendatacommunities.org/id/unitary-authority/warrington,FWB,Care Purchase Budget,54490,CP Free Nursing Care External,443500,01/06/2020,1900549929,543.98,Barchester Healthcare Cheshire Gran,111378
WARRINGTON BOROUGH COUNCIL,http://opendatacommunities.org/id/unitary-authority/warrington,FWB,Care Purchase Budget,54490,CP Free Nursing Care External,443500,01/06/2020,1900549925,662.24,Barchester Healthcare Cheshire Gran,111378
WARRINGTON BOROUGH COUNCIL,http://opendatacommunities.org/id/unitary-authority/warrington,FWB,Care Purchase Budget,54490,CP Free Nursing Care External,443500,01/06/2020,1900549932,662.24,Barchester Healthcare Cheshire Gran,111378
